NUMERO_MANDATO;RIGA_MANDATO;QUIET;IMPORTO_RIGA;IMPORTO_MANDATO;BENEFICIARIO;CIG;TITOLO_PAGAMENTO;DATA_MANDATO;CAPITOLO;ARTICOLO;NUMERO_IMPEGNO;TITOLO;DESCR_TITOLO;LIVELLO_II;DESCR_LIVELLO_II;LIVELLO_III;DESCR_LIVELLO_III;LIVELLO_IV;DESCR_LIVELLO_IV;LIVELLO_V;DESCR_LIVELLO_V;DATA_PAG_EFF
2795;1;0;12.332,05;12.332,05;IVA TESORIERE COMUNALE; ;Versamento IVA commerciale mese di settembre 2018;02/10/2018;2155;0;716;1;Spese correnti;10;Altre spese correnti;3;Versamenti IVA a debito;1;Versamenti IVA a debito per le gestioni commerciali;1;Versamenti IVA a debito per le gestioni commerciali;02/10/2018
2796;1;0;500;500;ASSOC.PETER PAN ATTIVITA' RICREATIVE DUE LIVENZE; ;Prot. n. 16235 del 02-10-2018;04/10/2018;1522;0;671;1;Spese correnti;4;Trasferimenti correnti;4;Trasferimenti correnti a Istituzioni Sociali Private;1;Trasferimenti correnti a Istituzioni Sociali Private;1;Trasferimenti correnti a Istituzioni Sociali Private;04/10/2018
2797;1;0;5.516,87;5.516,87;INNOCENTE & STIPANOVICH SRL;7184445790;ACCONTO Fatt.n. 30/E/18  del 12/09/2018 Lavori per la realizzazione della Casa del Volontariato - 2 stralcio. 3 SAL.;04/10/2018;3060;0;296;2;Spese in conto capitale;2;Investimenti fissi lordi e acquisto di terreni;1;Beni materiali;9;Beni immobili;2;Fabbricati ad uso commerciale;04/10/2018
2798;1;0;17.526,48;17.526,48;INNOCENTE & STIPANOVICH SRL;7184445790;ACCONTO Fatt.n. 30/E/18  del 12/09/2018 Lavori per la realizzazione della Casa del Volontariato - 2 stralcio. 3 SAL.;04/10/2018;3060;0;988;2;Spese in conto capitale;2;Investimenti fissi lordi e acquisto di terreni;1;Beni materiali;9;Beni immobili;2;Fabbricati ad uso commerciale;04/10/2018
2799;1;0;1.580,40;1.580,40;INNOCENTE & STIPANOVICH SRL;7184445790;ACCONTO Fatt.n. 30/E/18  del 12/09/2018 Lavori per la realizzazione della Casa del Volontariato - 2 stralcio. 3 SAL.;04/10/2018;3060;0;988;2;Spese in conto capitale;2;Investimenti fissi lordi e acquisto di terreni;1;Beni materiali;9;Beni immobili;2;Fabbricati ad uso commerciale;04/10/2018
2800;1;0;515;515;INNOCENTE & STIPANOVICH SRL;7184445790;ACCONTO Fatt.n. 30/E/18  del 12/09/2018 Lavori per la realizzazione della Casa del Volontariato - 2 stralcio. 3 SAL.;04/10/2018;3060;0;988;2;Spese in conto capitale;2;Investimenti fissi lordi e acquisto di terreni;1;Beni materiali;9;Beni immobili;2;Fabbricati ad uso commerciale;04/10/2018
2801;1;0;23.564,80;23.564,80;INNOCENTE & STIPANOVICH SRL;7184445790;SALDO Fatt.n. 30/E/18  del 12/09/2018 Lavori per la realizzazione della Casa del Volontariato - 2 stralcio. 3 SAL.;04/10/2018;3060;0;988;2;Spese in conto capitale;2;Investimenti fissi lordi e acquisto di terreni;1;Beni materiali;9;Beni immobili;2;Fabbricati ad uso commerciale;04/10/2018
2802;1;0;2.071,44;2.071,44;OS - OPEN SOFTWARE  S.R.L.;Z6D21D09E2;SALDO Fatt.n. 004059  del 31/08/2018 Rendicontazione verbali spediti tramite FastMail - Stampa/Imbustamento verbali con Servizio Print On Demand;04/10/2018;1281;0;156;1;Spese correnti;3;Acquisto di beni e servizi;2;Acquisto di servizi;16;Servizi amministrativi;999;Altre spese per servizi amministrativi;04/10/2018
2803;1;0;976;976;OS - OPEN SOFTWARE  S.R.L.;ZBB23D6551;SALDO Fatt.n. 004160  del 31/08/2018 Accesso al sistema INFOPOINT-WEB con consultazione dati dei verbale al CDS e oggetti smarriti per il periodo 14/08/18-13/08/19;04/10/2018;1283;0;542;1;Spese correnti;3;Acquisto di beni e servizi;2;Acquisto di servizi;7;Utilizzo di beni di terzi;6;Licenze d'uso per software;04/10/2018
2804;1;0;18.904,00;18.904,00;CONSORZIO INSIEME SCS; ;ACCONTO Fatt.n. 69/PA  del 21/09/2018 Progetti per l'inserimento lavorativo temporaneo di disoccupati privi di tutele - anno 2017;04/10/2018;1671;0;780;1;Spese correnti;4;Trasferimenti correnti;3;Trasferimenti correnti a Imprese;99;Trasferimenti correnti a altre imprese;999;Trasferimenti correnti a altre imprese;04/10/2018
2805;1;0;6.096,00;6.096,00;CONSORZIO INSIEME SCS; ;SALDO Fatt.n. 69/PA  del 21/09/2018 Progetti per l'inserimento lavorativo temporaneo di disoccupati privi di tutele - anno 2017;04/10/2018;1671;0;780;1;Spese correnti;4;Trasferimenti correnti;3;Trasferimenti correnti a Imprese;99;Trasferimenti correnti a altre imprese;999;Trasferimenti correnti a altre imprese;04/10/2018
2806;1;0;13.333,87;13.333,87;COOPERATIVA ITACA SOCIETA' COOPERATIVA SOCIALE ONLUS;70698039FD;SALDO Fatt.n. 2272/PA  del 30/09/2018 Servizio di istruzione c/o la Scuola dell'Infanzia Comunale Sacro Cuore di S.Stino di Livenza - Servizio educativo - Servizio di coordinamento - Mese di settembre 2018;04/10/2018;2164;0;548;1;Spese correnti;3;Acquisto di beni e servizi;2;Acquisto di servizi;15;Contratti di servizio pubblico;999;Altre spese per contratti di servizio pubblico;04/10/2018
2807;1;0;959,95;959,95;PANIFICI ZANI SAS DI ZANI UMBERTO E C.;Z6024CC4E7;SALDO Fatt.n. 017  del 30/09/2018 FORNITURA PANE C/O SCUOLA PIAGET SETTEMBRE 2018;04/10/2018;1415;0;682;1;Spese correnti;3;Acquisto di beni e servizi;1;Acquisto di beni;2;Altri beni di consumo;11;Generi alimentari;04/10/2018
2808;1;0;145,97;145,97;PANIFICI ZANI SAS DI ZANI UMBERTO E C.;Z6024CC4E7;SALDO Fatt.n. 016  del 30/09/2018 FORNITURA PANE C/O SCUOLA SACRO CUORE SETTEMBRE 2018;04/10/2018;1415;0;682;1;Spese correnti;3;Acquisto di beni e servizi;1;Acquisto di beni;2;Altri beni di consumo;11;Generi alimentari;04/10/2018
2809;1;0;1.862,00;1.862,00;DOMUS VESTRA SPA S.MARGHERITA RES.; ;SALDO Fatt.n. 108/PA  del 30/09/2018 RETTA MESE DI SETTEMBRE 2018 SIG. M.S.;04/10/2018;1880;0;230;1;Spese correnti;3;Acquisto di beni e servizi;2;Acquisto di servizi;15;Contratti di servizio pubblico;8;Contratti di servizio di assistenza sociale residenziale e semiresidenziale;04/10/2018
2810;1;0;1.862,00;1.862,00;DOMUS VESTRA SPA S.MARGHERITA RES.; ;SALDO Fatt.n. 109/PA  del 30/09/2018 RETTA MESE DI SETTEMBRE 2018 SIG.RA D.G.;04/10/2018;1877;0;234;1;Spese correnti;3;Acquisto di beni e servizi;2;Acquisto di servizi;15;Contratti di servizio pubblico;8;Contratti di servizio di assistenza sociale residenziale e semiresidenziale;04/10/2018
2811;1;0;2.067,90;2.067,90;MICHELETTI SIMONE;ZA12484D8C;SALDO Fatt.n. 176  del 30/09/2018 Fornitura Vestiario ed Accessori;04/10/2018;1265;0;644;1;Spese correnti;3;Acquisto di beni e servizi;1;Acquisto di beni;2;Altri beni di consumo;4;Vestiario;04/10/2018
2812;1;0;2.221,71;2.221,71;STEP S.R.L.;7122037AD9;SALDO Fatt.n. FATTPA 1298_18  del 01/10/2018 AGGIO RISCOSSIONE COATTIVA UFFICIO TRIBUTI E POLIZIA LOCALE- GIUGNO 2018 - RECUPERO SPESE POSTALI;04/10/2018;2158;0;200;1;Spese correnti;3;Acquisto di beni e servizi;2;Acquisto di servizi;3;Aggi di riscossione;999;Altri aggi di riscossione n.a.c.;04/10/2018
2813;1;0;106,4;106,4;STEP S.R.L.;7122037AD9;SALDO Fatt.n. FATTPA 1251_18  del 24/09/2018 AGGIO IMPOSTA COMUNALE PUBBLICITA' - TOSAP AGOSTO 2018 - RECUPERO SPESE POSTALI;04/10/2018;2158;0;200;1;Spese correnti;3;Acquisto di beni e servizi;2;Acquisto di servizi;3;Aggi di riscossione;999;Altri aggi di riscossione n.a.c.;04/10/2018
2814;1;0;1.106,89;1.106,89;STEP S.R.L.;7122037AD9;SALDO Fatt.n. FATTPA 1307_18  del 01/10/2018 AGGIO RISCOSSIONE COATTIVA NEL MESE DI AGOSTO 2018 POLIZIA URBANA - RECUPERO SPESE PROCEDURA COATTIVA E SPESE POSTALI;04/10/2018;2158;0;200;1;Spese correnti;3;Acquisto di beni e servizi;2;Acquisto di servizi;3;Aggi di riscossione;999;Altri aggi di riscossione n.a.c.;04/10/2018
2815;1;0;2.787,77;2.787,77;STEP S.R.L.;7122037AD9;SALDO Fatt.n. FATTPA 1308_18  del 01/10/2018 AGGIO RISCOSSIONE COATTIVA NEL MESE DI AGOSTO 2018 POLIZIA TRIBUTI - RECUPERO SPESE PROCEDURA COATTIVA E SPESE POSTALI;04/10/2018;2158;0;200;1;Spese correnti;3;Acquisto di beni e servizi;2;Acquisto di servizi;3;Aggi di riscossione;999;Altri aggi di riscossione n.a.c.;04/10/2018
2816;1;0;11,24;11,24;TIM SPA;Z6B132FFD7;SALDO Fatt.n. 7X03730553  del 14/09/2018 5BIM 2018 PERIODO LUGLIO - AGOSTO TELEFONIA MOBILE;04/10/2018;1088;0;179;1;Spese correnti;3;Acquisto di beni e servizi;2;Acquisto di servizi;5;Utenze e canoni;1;Telefonia fissa;04/10/2018
2817;1;0;231,8;231,8;INTRA CREAZIONI D'INTERNI SRL UNIPERSONALE;Z6D246D5BD;SALDO Fatt.n. 1/FE/2018  del 28/09/2018 TELAI ZANZARIERA MOD. FISSO COLORE BIANCO;04/10/2018;3506;0;616;2;Spese in conto capitale;2;Investimenti fissi lordi e acquisto di terreni;1;Beni materiali;9;Beni immobili;18;Musei, teatri e biblioteche;04/10/2018
2818;1;0;240,72;240,72;FERCAR DI CARNIELETTO ROBERTO;ZCA21D3D6C;SALDO Fatt.n. 3/FEA/2018  del 29/09/2018 ACUISTO MATERIALE DI FERRAMENTA MESE DI SETTEMBRE 2018;04/10/2018;1397;0;128;1;Spese correnti;3;Acquisto di beni e servizi;1;Acquisto di beni;2;Altri beni di consumo;999;Altri beni e materiali di consumo n.a.c.;04/10/2018
2819;1;0;9.760,00;9.760,00;SIMBA AGRICOLTURA DI BATTISTELLA SIMONE;ZEF22F70C7;SALDO Fatt.n. PA 18003  del 21/09/2018 TRATTATIVA DIRETTA N. 549256  DETERMINA N. 350 DEL 17/07/2018  IMPEGNO SPESA N. 605 DEL 12/07/2018;04/10/2018;1635;0;605;1;Spese correnti;3;Acquisto di beni e servizi;2;Acquisto di servizi;9;Manutenzione ordinaria e riparazioni;12;Manutenzione ordinaria e riparazioni di terreni e beni materiali non prodotti;04/10/2018
2820;1;0;56,56;56,56;LASTIMMA S.R.L. SEGNALETICA STRADALE;Z0A224227B;SALDO Fatt.n. E-71  del 26/09/2018 TARGA VIARIA CM. 80X25 ALL. ESTRUSO SP. 16 MM. CON PELLICOLA RIFRANGENTE CL. 1 BIFACCIALE E GUSCIO;04/10/2018;1933;0;317;1;Spese correnti;3;Acquisto di beni e servizi;2;Acquisto di servizi;9;Manutenzione ordinaria e riparazioni;12;Manutenzione ordinaria e riparazioni di terreni e beni materiali non prodotti;04/10/2018
2821;1;0;1.769,00;1.769,00;BATTISTON VITTORINO SNC DI BATTISTON STEFANO E F.LLI;ZE224C90AE;SALDO Fatt.n. 43/PA  del 24/09/2018 FORNITURA E POSA IN OPERA DI MATERIALE LAPIDEO PER IL RINFORZO DELLE SPONDE DEL CANALE FOSSON E LA REALIZZAZIONE ED INSTALLAZIONE DI UNA STACCIONATA PARAPETTO SUL NUOVO PONTE;04/10/2018;3327;0;686;2;Spese in conto capitale;2;Investimenti fissi lordi e acquisto di terreni;1;Beni materiali;9;Beni immobili;5;Fabbricati rurali;04/10/2018
2822;1;0;4.490,00;4.490,00;TERMOIDRAULICA SETTIN SNC;Z7824A7A30;SALDO Fatt.n. 6  del 24/09/2018 Interventi di riparazione e sostituzione di accessori di tutti gli impianti degli immobili comunali;04/10/2018;3043;0;679;2;Spese in conto capitale;2;Investimenti fissi lordi e acquisto di terreni;1;Beni materiali;9;Beni immobili;2;Fabbricati ad uso commerciale;04/10/2018
2823;1;0;1.000,00;1.000,00;TERMOIDRAULICA SETTIN SNC;Z7824A7A30;SALDO Fatt.n. 5  del 24/09/2018  Interventi di riparazione e sostituzione di accessori di tutti gli impianti idraulici degli immobili comunali;04/10/2018;1376;0;678;1;Spese correnti;3;Acquisto di beni e servizi;2;Acquisto di servizi;9;Manutenzione ordinaria e riparazioni;8;Manutenzione ordinaria e riparazioni di beni immobili;04/10/2018
2824;1;0;4.392,00;4.392,00;MISSIO VITTORINO;Z0D2478EAA;SALDO Fatt.n. 04/A/2018  del 21/09/2018 LAVORI DI SCAVO E POSA TUBI E POZZETTI PER LO SGRONDO DELLE ACQUE METEORICHE IN VIA BOSCO DI PRASSACCON;04/10/2018;3476;0;619;2;Spese in conto capitale;2;Investimenti fissi lordi e acquisto di terreni;1;Beni materiali;9;Beni immobili;12;Infrastrutture stradali;04/10/2018
2825;1;0;80;80;COMUNE DI CAVALLINO-TREPORTI; ;Rimborso al Comune di Cavallino-Treporti per corso di formazione - Impegno di spesa;04/10/2018;1040;0;541;1;Spese correnti;3;Acquisto di beni e servizi;2;Acquisto di servizi;4;Acquisto di servizi per formazione e addestramento del personale dell'ente;999;Acquisto di servizi per altre spese per formazione e addestramento n.a.c.;04/10/2018
2826;1;0;189;189;F.LLI FURLANIS SNC DI FURLANIS UMBERTO E VITTORINO;Z2A24BEA69;SALDO Fatt.n. 12  del 19/09/2018 Sostituzione della batteria di avviamento del veicolo Skoda Octavia Wagon tg. YA389AM;04/10/2018;1274;0;675;1;Spese correnti;3;Acquisto di beni e servizi;2;Acquisto di servizi;9;Manutenzione ordinaria e riparazioni;1;Manutenzione ordinaria e riparazioni di mezzi di trasporto ad uso civile, di sicurezza e ordine pubblico;04/10/2018
2827;1;0;529;529;LIVENZA TAGLIAMENTO ACQUE SPA;Z2C24AD675;SALDO Fatt.n. 100013/2018/O  del 04/09/2018 FATTURA CONSUMI ACQUA UTENZA: 92167 NUOVA UTENZA VIA GIOVANNI XXIII - CASA DEL VOLONTARIATO;04/10/2018;3062;0;662;2;Spese in conto capitale;2;Investimenti fissi lordi e acquisto di terreni;1;Beni materiali;9;Beni immobili;2;Fabbricati ad uso commerciale;04/10/2018
2828;1;0;123,59;123,59;ATIS S.R.L.;Z1F243B82F;SALDO Fatt.n. 579/V5  del 24/09/2018 Rapportino intervento n.ro 93443 del 21/09/2018 Scuola Piaget S Stino Congelatore verticale sostituzione ventilatore condensatore. Prove di funzionamento. Motore Elco VNT25-40/25;04/10/2018;1462;0;623;1;Spese correnti;3;Acquisto di beni e servizi;2;Acquisto di servizi;9;Manutenzione ordinaria e riparazioni;4;Manutenzione ordinaria e riparazioni di impianti e macchinari;04/10/2018
2829;1;0;1.862,00;1.862,00;AZIENDA ULSS N.2 - MARCA TREVIGIANA; ;SALDO Fatt.n. 18-932-00579  del 21/09/2018 POLO DISABILITA' ASGOSTO 2018 I.M.E;04/10/2018;1880;0;229;1;Spese correnti;3;Acquisto di beni e servizi;2;Acquisto di servizi;15;Contratti di servizio pubblico;8;Contratti di servizio di assistenza sociale residenziale e semiresidenziale;04/10/2018
2831;1;0;1.000,00;1.000,00;CONSORZIO SVILUPPO E GESTIONE ARENILI MARINA CAORLE SRL;ZAF243BAB8;SALDO Fatt.n. 6/PA  del 21/09/2018 Fattura per allestimento con ombrelloni e sdrai per i soggiorni marini a Caorle anno 2018;04/10/2018;1902;0;590;1;Spese correnti;3;Acquisto di beni e servizi;2;Acquisto di servizi;99;Altri servizi;999;Altri servizi diversi n.a.c.;04/10/2018
2832;1;0;42,6;42,6;PANIFICI ZANI SAS DI ZANI UMBERTO E C.;ZB51FB8A80;SALDO Fatt.n. 015  del 19/09/2018 FORNITURA PANE C/O SCUOLA PIAGET LUGLIO 2018;04/10/2018;1415;0;662;1;Spese correnti;3;Acquisto di beni e servizi;1;Acquisto di beni;2;Altri beni di consumo;11;Generi alimentari;04/10/2018
2833;1;0;57,95;57,95;MYO SPA;Z6B24CBC1A;ACCONTO Fatt.n. 2040/180023552  del 20/09/2018 DORSI TONDI - ETICHETTE BIADES. CARTE IDENTITA' - REG. DISPOSIZIONI ANTICIPATE TRATTAMENTO;04/10/2018;1108;0;266;1;Spese correnti;3;Acquisto di beni e servizi;1;Acquisto di beni;2;Altri beni di consumo;1;Carta, cancelleria e stampati;04/10/2018
2834;1;0;18;18;MYO SPA;Z6B24CBC1A;SALDO Fatt.n. 2040/180023552  del 20/09/2018 DORSI TONDI - ETICHETTE BIADES. CARTE IDENTITA' - REG. DISPOSIZIONI ANTICIPATE TRATTAMENTO;04/10/2018;1055;0;261;1;Spese correnti;3;Acquisto di beni e servizi;1;Acquisto di beni;2;Altri beni di consumo;1;Carta, cancelleria e stampati;04/10/2018
2835;1;0;53,68;53,68;MYO SPA;Z6B24CBC1A;SALDO Fatt.n. 2040/180023551  del 20/09/2018 TIMBRO X POLIZIA LOCALE PERS. - TIMBRO X SERVIZI DEMOGRAFICI PERS.;04/10/2018;1108;0;266;1;Spese correnti;3;Acquisto di beni e servizi;1;Acquisto di beni;2;Altri beni di consumo;1;Carta, cancelleria e stampati;04/10/2018
2836;1;0;1.525,00;1.525,00;VELOCAR S.R.L.;Z4D21E7CB3;SALDO Fatt.n. 358/FE  del 03/09/2018 CANONE LOCAZIONE EVO L0 - MESE DI SETTEMBRE 2018;04/10/2018;1302;0;214;1;Spese correnti;3;Acquisto di beni e servizi;2;Acquisto di servizi;8;Leasing operativo;2;Leasing operativo di attrezzature e macchinari;04/10/2018
2837;1;0;640,66;640,66;OMESSO NOMINATIVO NEL RISPETTO DELLA NORMATIVA SULLA PROTEZIONE DATI PERSONALI; ;Pagamento retta anno 2018 soggetto n. AA18017 - compartecipazione sul pagamento della retta del mese di agosto 2018 - bonificio bancarioiban it75w89653620003040000012;04/10/2018;1883;0;238;1;Spese correnti;4;Trasferimenti correnti;2;Trasferimenti correnti a Famiglie;2;Interventi assistenziali;999;Altri assegni e sussidi assistenziali;04/10/2018
2838;1;0;300;300;OMESSO NOMINATIVO NEL RISPETTO DELLA NORMATIVA SULLA PROTEZIONE DATI PERSONALI; ;CONTRIBUTO MINIMO VITALE SIGNOR AA18024 - liquidazione a saldo delle mensilita con quietanza dell'agente contabile Edi Tallon per il successivo riversamento alla comunita' di accoglienza;04/10/2018;1878;0;403;1;Spese correnti;4;Trasferimenti correnti;2;Trasferimenti correnti a Famiglie;2;Interventi assistenziali;999;Altri assegni e sussidi assistenziali;04/10/2018
2839;1;0;126,03;126,03;IDEAL GESTIONI SRL;Z4B2237F98;SALDO Fatt.n. 35/PA  del 18/09/2018 ACQUISTO GENERI ALIMENTARI ED IGENICI SCUOLA SACRO CUORE;04/10/2018;1416;0;499;1;Spese correnti;3;Acquisto di beni e servizi;1;Acquisto di beni;2;Altri beni di consumo;11;Generi alimentari;04/10/2018
2840;1;0;809,47;809,47;2i RETE GAS S.P.A.;ZA524AD6B7;SALDO Fatt.n. 1800011774  del 18/09/2018 Contributo per l'esecuzione di lavori semplici per un allaccio alla rete gas metano su impianto di distribuzione in Via Papa Giovanni XXIII snc presso la Casa del Volontariato;04/10/2018;3062;0;663;2;Spese in conto capitale;2;Investimenti fissi lordi e acquisto di terreni;1;Beni materiali;9;Beni immobili;2;Fabbricati ad uso commerciale;04/10/2018
2841;1;0;49,75;49,75;IDEAL GESTIONI SRL; ;SALDO Fatt.n. 36/PA  del 25/09/2018 ACQUISTO GENERI ALIMENTARI PERSONE INDIGENTI;04/10/2018;1771;0;283;1;Spese correnti;3;Acquisto di beni e servizi;1;Acquisto di beni;2;Altri beni di consumo;11;Generi alimentari;04/10/2018
2842;1;0;-2,5;5,82;GLOBAL POWER S.P.A.;ZA91450307;SALDO Fatt.n. V6/29617  del 29/08/2018 FORNITURA GAS;04/10/2018;1904;0;150;1;Spese correnti;3;Acquisto di beni e servizi;2;Acquisto di servizi;5;Utenze e canoni;4;Energia elettrica;04/10/2018
2842;2;0;8,32;5,82;GLOBAL POWER S.P.A.;ZA91450307;SALDO Fatt.n. V6/33613  del 27/09/2018 FORNITURA GAS;04/10/2018;1904;0;150;1;Spese correnti;3;Acquisto di beni e servizi;2;Acquisto di servizi;5;Utenze e canoni;4;Energia elettrica;04/10/2018
2843;1;0;-2,44;9,3;GLOBAL POWER S.P.A.;ZA91450307;SALDO Fatt.n. V6/29618  del 29/08/2018 FORNITURA GAS;04/10/2018;1904;0;150;1;Spese correnti;3;Acquisto di beni e servizi;2;Acquisto di servizi;5;Utenze e canoni;4;Energia elettrica;04/10/2018
2843;2;0;11,74;9,3;GLOBAL POWER S.P.A.;ZA91450307;SALDO Fatt.n. V6/33614  del 27/09/2018 FORNITURA GAS;04/10/2018;1904;0;150;1;Spese correnti;3;Acquisto di beni e servizi;2;Acquisto di servizi;5;Utenze e canoni;4;Energia elettrica;04/10/2018
2844;1;0;190,34;190,34;GLOBAL POWER S.P.A.;622385037F;SALDO Fatt.n. V0/120874  del 01/10/2018 Fattura Energia Elettrica;04/10/2018;1937;0;178;1;Spese correnti;3;Acquisto di beni e servizi;2;Acquisto di servizi;5;Utenze e canoni;4;Energia elettrica;04/10/2018
2845;1;0;502,46;502,46;GLOBAL POWER S.P.A.;622385037F;SALDO Fatt.n. V0/120867  del 01/10/2018 Fattura Energia Elettrica;04/10/2018;1937;0;178;1;Spese correnti;3;Acquisto di beni e servizi;2;Acquisto di servizi;5;Utenze e canoni;4;Energia elettrica;04/10/2018
2846;1;0;165,18;165,18;GLOBAL POWER S.P.A.;622385037F;SALDO Fatt.n. V0/120868  del 01/10/2018 Fattura Energia Elettrica;04/10/2018;1937;0;178;1;Spese correnti;3;Acquisto di beni e servizi;2;Acquisto di servizi;5;Utenze e canoni;4;Energia elettrica;04/10/2018
2847;1;0;124,59;124,59;GLOBAL POWER S.P.A.;622385037F;SALDO Fatt.n. V0/120872  del 01/10/2018 Fattura Energia Elettrica;04/10/2018;1932;0;177;1;Spese correnti;3;Acquisto di beni e servizi;2;Acquisto di servizi;5;Utenze e canoni;4;Energia elettrica;04/10/2018
2848;1;0;373,02;373,02;GLOBAL POWER S.P.A.;622385037F;SALDO Fatt.n. V0/120866  del 01/10/2018 Fattura Energia Elettrica;04/10/2018;1627;0;166;1;Spese correnti;3;Acquisto di beni e servizi;2;Acquisto di servizi;5;Utenze e canoni;4;Energia elettrica;04/10/2018
2849;1;0;933,67;933,67;GLOBAL POWER S.P.A.;622385037F;SALDO Fatt.n. V0/120865  del 01/10/2018 Fattura Energia Elettrica;04/10/2018;1073;0;158;1;Spese correnti;3;Acquisto di beni e servizi;2;Acquisto di servizi;5;Utenze e canoni;4;Energia elettrica;04/10/2018
2850;1;0;142,26;142,26;GLOBAL POWER S.P.A.;622385037F;SALDO Fatt.n. V0/120875  del 01/10/2018 Fattura Energia Elettrica;04/10/2018;1159;0;163;1;Spese correnti;3;Acquisto di beni e servizi;2;Acquisto di servizi;5;Utenze e canoni;4;Energia elettrica;04/10/2018
2851;1;0;375,49;375,49;GLOBAL POWER S.P.A.;622385037F;SALDO Fatt.n. V0/120888  del 01/10/2018 Fattura Energia Elettrica;04/10/2018;1075;0;160;1;Spese correnti;3;Acquisto di beni e servizi;2;Acquisto di servizi;5;Utenze e canoni;4;Energia elettrica;04/10/2018
2852;1;0;94,89;94,89;GLOBAL POWER S.P.A.;622385037F;SALDO Fatt.n. V0/120878  del 01/10/2018 Fattura Energia Elettrica;04/10/2018;1806;0;171;1;Spese correnti;3;Acquisto di beni e servizi;2;Acquisto di servizi;5;Utenze e canoni;4;Energia elettrica;04/10/2018
2853;1;0;47,15;47,15;GLOBAL POWER S.P.A.;622385037F;SALDO Fatt.n. V0/120900  del 01/10/2018 Fattura Energia Elettrica;04/10/2018;1806;0;171;1;Spese correnti;3;Acquisto di beni e servizi;2;Acquisto di servizi;5;Utenze e canoni;4;Energia elettrica;04/10/2018
2854;1;0;50,36;50,36;GLOBAL POWER S.P.A.;622385037F;SALDO Fatt.n. V0/120898  del 01/10/2018 Fattura Energia Elettrica;04/10/2018;1806;0;171;1;Spese correnti;3;Acquisto di beni e servizi;2;Acquisto di servizi;5;Utenze e canoni;4;Energia elettrica;04/10/2018
2855;1;0;37,83;37,83;GLOBAL POWER S.P.A.;622385037F;SALDO Fatt.n. V0/120896  del 01/10/2018 Fattura Energia Elettrica;04/10/2018;1806;0;171;1;Spese correnti;3;Acquisto di beni e servizi;2;Acquisto di servizi;5;Utenze e canoni;4;Energia elettrica;04/10/2018
2856;1;0;30,41;30,41;GLOBAL POWER S.P.A.;622385037F;SALDO Fatt.n. V0/120879  del 01/10/2018 Fattura Energia Elettrica;04/10/2018;1806;0;171;1;Spese correnti;3;Acquisto di beni e servizi;2;Acquisto di servizi;5;Utenze e canoni;4;Energia elettrica;04/10/2018
2857;1;0;41,88;41,88;GLOBAL POWER S.P.A.;622385037F;SALDO Fatt.n. V0/120889  del 01/10/2018 Fattura Energia Elettrica;04/10/2018;1807;0;172;1;Spese correnti;3;Acquisto di beni e servizi;2;Acquisto di servizi;5;Utenze e canoni;4;Energia elettrica;04/10/2018
2858;1;0;49,04;49,04;GLOBAL POWER S.P.A.;622385037F;SALDO Fatt.n. V0/120877  del 01/10/2018 Fattura Energia Elettrica;04/10/2018;1928;0;176;1;Spese correnti;3;Acquisto di beni e servizi;2;Acquisto di servizi;5;Utenze e canoni;4;Energia elettrica;04/10/2018
2859;1;0;483,33;483,33;GLOBAL POWER S.P.A.;622385037F;SALDO Fatt.n. V0/120873  del 01/10/2018 Fattura Energia Elettrica;04/10/2018;1831;0;175;1;Spese correnti;3;Acquisto di beni e servizi;2;Acquisto di servizi;5;Utenze e canoni;4;Energia elettrica;04/10/2018
2860;1;0;417,3;417,3;GLOBAL POWER S.P.A.;622385037F;SALDO Fatt.n. V0/120894  del 01/10/2018 Fattura Energia Elettrica;04/10/2018;1937;0;178;1;Spese correnti;3;Acquisto di beni e servizi;2;Acquisto di servizi;5;Utenze e canoni;4;Energia elettrica;04/10/2018
2861;1;0;143,08;143,08;GLOBAL POWER S.P.A.;622385037F;SALDO Fatt.n. V0/120893  del 01/10/2018 Fattura Energia Elettrica;04/10/2018;1937;0;178;1;Spese correnti;3;Acquisto di beni e servizi;2;Acquisto di servizi;5;Utenze e canoni;4;Energia elettrica;04/10/2018
2862;1;0;185,01;185,01;GLOBAL POWER S.P.A.;622385037F;SALDO Fatt.n. V0/120891  del 01/10/2018 Fattura Energia Elettrica;04/10/2018;1937;0;178;1;Spese correnti;3;Acquisto di beni e servizi;2;Acquisto di servizi;5;Utenze e canoni;4;Energia elettrica;04/10/2018
2863;1;0;222,14;222,14;GLOBAL POWER S.P.A.;622385037F;SALDO Fatt.n. V0/107452  del 04/09/2018 Fattura Energia Elettrica;04/10/2018;1830;0;149;1;Spese correnti;3;Acquisto di beni e servizi;2;Acquisto di servizi;5;Utenze e canoni;4;Energia elettrica;04/10/2018
2864;1;0;318,1;318,1;GLOBAL POWER S.P.A.;622385037F;SALDO Fatt.n. V0/107453  del 04/09/2018 Fattura Energia Elettrica;04/10/2018;1427;0;147;1;Spese correnti;3;Acquisto di beni e servizi;2;Acquisto di servizi;5;Utenze e canoni;4;Energia elettrica;04/10/2018
2865;1;0;144,93;144,93;GLOBAL POWER S.P.A.;622385037F;SALDO Fatt.n. V0/107454  del 04/09/2018 Fattura Energia Elettrica;04/10/2018;1632;0;144;1;Spese correnti;3;Acquisto di beni e servizi;2;Acquisto di servizi;5;Utenze e canoni;4;Energia elettrica;04/10/2018
2866;1;0;149,77;149,77;GLOBAL POWER S.P.A.;622385037F;SALDO Fatt.n. V0/107459  del 04/09/2018 Fattura Energia Elettrica;04/10/2018;1360;0;142;1;Spese correnti;3;Acquisto di beni e servizi;2;Acquisto di servizi;5;Utenze e canoni;4;Energia elettrica;04/10/2018
2867;1;0;340,36;340,36;GLOBAL POWER S.P.A.;622385037F;SALDO Fatt.n. V0/107463  del 04/09/2018 Fattura Energia Elettrica;04/10/2018;1514;0;148;1;Spese correnti;3;Acquisto di beni e servizi;2;Acquisto di servizi;5;Utenze e canoni;4;Energia elettrica;04/10/2018
2868;1;0;62,34;62,34;GLOBAL POWER S.P.A.;622385037F;SALDO Fatt.n. V0/107465  del 04/09/2018 Fattura Energia Elettrica;04/10/2018;1359;0;140;1;Spese correnti;3;Acquisto di beni e servizi;2;Acquisto di servizi;5;Utenze e canoni;4;Energia elettrica;04/10/2018
2869;1;0;234,29;234,29;GLOBAL POWER S.P.A.;622385037F;SALDO Fatt.n. V0/107466  del 04/09/2018 Fattura Energia Elettrica;04/10/2018;1359;0;141;1;Spese correnti;3;Acquisto di beni e servizi;2;Acquisto di servizi;5;Utenze e canoni;4;Energia elettrica;04/10/2018
2870;1;0;122,58;122,58;GLOBAL POWER S.P.A.;622385037F;SALDO Fatt.n. V0/107467  del 04/09/2018 Fattura Energia Elettrica;04/10/2018;1452;0;146;1;Spese correnti;3;Acquisto di beni e servizi;2;Acquisto di servizi;5;Utenze e canoni;4;Energia elettrica;04/10/2018
2871;1;0;175,38;175,38;GLOBAL POWER S.P.A.;622385037F;SALDO Fatt.n. V0/107468  del 04/09/2018 Fattura Energia Elettrica;05/10/2018;1363;0;145;1;Spese correnti;3;Acquisto di beni e servizi;2;Acquisto di servizi;5;Utenze e canoni;4;Energia elettrica;05/10/2018
2872;1;0;114,51;114,51;GLOBAL POWER S.P.A.;622385037F;SALDO Fatt.n. V0/107469  del 04/09/2018 Fattura Energia Elettrica;05/10/2018;1361;0;143;1;Spese correnti;3;Acquisto di beni e servizi;2;Acquisto di servizi;5;Utenze e canoni;4;Energia elettrica;05/10/2018
2873;1;0;126,14;126,14;GLOBAL POWER S.P.A.;622385037F;SALDO Fatt.n. V0/107470  del 04/09/2018 Fattura Energia Elettrica;05/10/2018;1357;0;138;1;Spese correnti;3;Acquisto di beni e servizi;2;Acquisto di servizi;5;Utenze e canoni;4;Energia elettrica;05/10/2018
2874;1;0;38,24;38,24;GLOBAL POWER S.P.A.;622385037F;SALDO Fatt.n. V0/107473  del 04/09/2018 Fattura Energia Elettrica;05/10/2018;1357;0;139;1;Spese correnti;3;Acquisto di beni e servizi;2;Acquisto di servizi;5;Utenze e canoni;4;Energia elettrica;05/10/2018
2875;1;0;240,59;240,59;GLOBAL POWER S.P.A.;622385037F;SALDO Fatt.n. V0/107475  del 04/09/2018 Fattura Energia Elettrica;05/10/2018;1356;0;137;1;Spese correnti;3;Acquisto di beni e servizi;2;Acquisto di servizi;5;Utenze e canoni;4;Energia elettrica;05/10/2018
2876;1;0;670,8;670,8;GLOBAL POWER S.P.A.;622385037F;SALDO Fatt.n. V0/107478  del 04/09/2018 Fattura Energia Elettrica;05/10/2018;1353;0;136;1;Spese correnti;3;Acquisto di beni e servizi;2;Acquisto di servizi;5;Utenze e canoni;4;Energia elettrica;05/10/2018
2877;1;0;39,89;39,89;GLOBAL POWER S.P.A.;622385037F;SALDO Fatt.n. V0/107482  del 04/09/2018 Fattura Energia Elettrica;05/10/2018;1904;0;150;1;Spese correnti;3;Acquisto di beni e servizi;2;Acquisto di servizi;5;Utenze e canoni;4;Energia elettrica;05/10/2018
2878;1;0;56,2;56,2;GLOBAL POWER S.P.A.;622385037F;SALDO Fatt.n. V0/107480  del 04/09/2018 Fattura Energia Elettrica;05/10/2018;1904;0;150;1;Spese correnti;3;Acquisto di beni e servizi;2;Acquisto di servizi;5;Utenze e canoni;4;Energia elettrica;05/10/2018
2879;1;0;37,95;37,95;GLOBAL POWER S.P.A.;622385037F;SALDO Fatt.n. V0/107464  del 04/09/2018 Fattura Energia Elettrica;05/10/2018;1904;0;150;1;Spese correnti;3;Acquisto di beni e servizi;2;Acquisto di servizi;5;Utenze e canoni;4;Energia elettrica;05/10/2018
2880;1;0;19.739,25;19.739,25;GLOBAL POWER S.P.A.;622385037F;SALDO Fatt.n. V0/120901  del 01/10/2018 Fattura Energia Elettrica;05/10/2018;1937;0;178;1;Spese correnti;3;Acquisto di beni e servizi;2;Acquisto di servizi;5;Utenze e canoni;4;Energia elettrica;05/10/2018
2881;1;0;3,25;3,25;ECONOMO COMUNALE - COMUNE DI S. STINO DI LIVENZA; ;Rimborso bolletta N.   139 del  28-09-18 RIMBORSO SCONTRINO FISCALE N. 28 DEL 27.09.2018 SPESE DI RAPPRESENTANZA CELLA GABRIELLA;11/10/2018;1003;0;211;1;Spese correnti;3;Acquisto di beni e servizi;1;Acquisto di beni;2;Altri beni di consumo;9;Beni per attività di rappresentanza;11/10/2018
2883;1;0;221,5;221,5;ECONOMO COMUNALE - COMUNE DI S. STINO DI LIVENZA; ;Rimborso bolletta N.   127 del  07-09-18 ACQUISTO N. 500 CARTE DIDENTITA' C/O PREFETTURA (COSTO 0,44);11/10/2018;1108;0;266;1;Spese correnti;3;Acquisto di beni e servizi;1;Acquisto di beni;2;Altri beni di consumo;1;Carta, cancelleria e stampati;11/10/2018
2885;1;0;5,4;74,7;ECONOMO COMUNALE - COMUNE DI S. STINO DI LIVENZA; ;Rimborso bolletta N.   125 del  06-09-18 RIMBORSO CAD POSTE ITALIALE AVVISO DI RICEVIMENTO ATTI GIUDIZIARI DEL 06.09.18;11/10/2018;1273;0;330;1;Spese correnti;3;Acquisto di beni e servizi;2;Acquisto di servizi;16;Servizi amministrativi;2;Spese postali;11/10/2018
2885;2;0;6,5;74,7;ECONOMO COMUNALE - COMUNE DI S. STINO DI LIVENZA; ;Rimborso bolletta N.   124 del  04-09-18 RIMBORSO CAD POSTE ITALIANE DEL 04/09/18;11/10/2018;1273;0;330;1;Spese correnti;3;Acquisto di beni e servizi;2;Acquisto di servizi;16;Servizi amministrativi;2;Spese postali;11/10/2018
2885;3;0;6,5;74,7;ECONOMO COMUNALE - COMUNE DI S. STINO DI LIVENZA; ;Rimborso bolletta N.   137 del  24-09-18 RIMBORSO CAD POSTE ITALIANE AVVISO RICEVIMENTO ATTI GIUDIZIARI;11/10/2018;1273;0;330;1;Spese correnti;3;Acquisto di beni e servizi;2;Acquisto di servizi;16;Servizi amministrativi;2;Spese postali;11/10/2018
2885;4;0;6,5;74,7;ECONOMO COMUNALE - COMUNE DI S. STINO DI LIVENZA; ;Rimborso bolletta N.   138 del  26-09-18 RIMBORSO CAD POSTE ITALIANE  DEL 26.09.18 - AVVISO RICEVIMENTO ATTI GIUDIZIARI;11/10/2018;1273;0;330;1;Spese correnti;3;Acquisto di beni e servizi;2;Acquisto di servizi;16;Servizi amministrativi;2;Spese postali;11/10/2018
2885;5;0;13;74,7;ECONOMO COMUNALE - COMUNE DI S. STINO DI LIVENZA; ;Rimborso bolletta N.   133 del  20-09-18 RIMBORSO CAD POSTE ITALIANE AVVISO RICEVIMENTO ATTI GIUDIZIARI DEL 20.09.18;11/10/2018;1273;0;330;1;Spese correnti;3;Acquisto di beni e servizi;2;Acquisto di servizi;16;Servizi amministrativi;2;Spese postali;11/10/2018
2885;6;0;36,8;74,7;ECONOMO COMUNALE - COMUNE DI S. STINO DI LIVENZA; ;Rimborso bolletta N.   128 del  17-09-18 RIMBORSO CAD POSTE ITALIANE COME DA RICEVUTE  DEL 12.01.18, 18.01.18, 01.02.18 E DEL 12.09.18 AVVISO RICEVIMENTO ATTI GIUDIZIARI;11/10/2018;1273;0;330;1;Spese correnti;3;Acquisto di beni e servizi;2;Acquisto di servizi;16;Servizi amministrativi;2;Spese postali;11/10/2018
2886;1;0;50;50;ECONOMO COMUNALE - COMUNE DI S. STINO DI LIVENZA; ;Rimborso bolletta N.   130 del  17-09-18 RIMBORSO RICEVUTA DI PAGAMENTO PER IL SERVIZIO RICARICA TRAFFICO PREPAGATO WIND 327-7781942;11/10/2018;1354;0;219;1;Spese correnti;3;Acquisto di beni e servizi;2;Acquisto di servizi;5;Utenze e canoni;1;Telefonia fissa;11/10/2018
2888;1;0;311,1;311,1;ECONOMO COMUNALE - COMUNE DI S. STINO DI LIVENZA; ;Rimborso bolletta N.   129 del  17-09-18 RIMBORSO QUOTA SPESE PERSONALI  1 SEMESTRE 2018 - CONTANTI CONSEGNATI AL TUTORE SIG. VISENTIN PAOLO;11/10/2018;1883;0;239;1;Spese correnti;4;Trasferimenti correnti;2;Trasferimenti correnti a Famiglie;2;Interventi assistenziali;999;Altri assegni e sussidi assistenziali;11/10/2018
2890;1;0;-3,47;12,68;VERITAS S.P.A.;Z5D2239422;SALDO Fatt.n. 810000231750  del 21/09/2018 SERVIZIO IDRICO INTEGRATO periodo 01.07.2018-31.08.2018 CIMITERO VIA NICOLO' TOMMASEO;11/10/2018;1811;0;174;1;Spese correnti;3;Acquisto di beni e servizi;2;Acquisto di servizi;5;Utenze e canoni;5;Acqua;11/10/2018
2890;2;0;3,82;12,68;VERITAS S.P.A.;Z5D2239422;SALDO Fatt.n. 810000231750  del 21/09/2018 SERVIZIO IDRICO INTEGRATO periodo 01.07.2018-31.08.2018 CIMITERO VIA NICOLO' TOMMASEO;11/10/2018;1811;0;174;1;Spese correnti;3;Acquisto di beni e servizi;2;Acquisto di servizi;5;Utenze e canoni;5;Acqua;11/10/2018
2890;3;0;12,33;12,68;VERITAS S.P.A.;Z5D2239422;SALDO Fatt.n. 810000231696  del 21/09/2018 SERVIZIO IDRICO INTEGRATO periodo 29.06.2018-31.08.2018 AREA VERDE VIA ALLENDE;11/10/2018;1811;0;174;1;Spese correnti;3;Acquisto di beni e servizi;2;Acquisto di servizi;5;Utenze e canoni;5;Acqua;11/10/2018
2891;1;0;363,8;363,8;GLOBAL POWER S.P.A.;622385037F;SALDO Fatt.n. V0/120869  del 01/10/2018 Fattura Energia Elettrica;11/10/2018;1830;0;149;1;Spese correnti;3;Acquisto di beni e servizi;2;Acquisto di servizi;5;Utenze e canoni;4;Energia elettrica;11/10/2018
2892;1;0;262,81;262,81;GLOBAL POWER S.P.A.;622385037F;SALDO Fatt.n. V0/120870  del 01/10/2018 Fattura Energia Elettrica;11/10/2018;1427;0;147;1;Spese correnti;3;Acquisto di beni e servizi;2;Acquisto di servizi;5;Utenze e canoni;4;Energia elettrica;11/10/2018
2893;1;0;109,12;109,12;GLOBAL POWER S.P.A.;622385037F;SALDO Fatt.n. V0/120871  del 01/10/2018 Fattura Energia Elettrica;11/10/2018;1632;0;144;1;Spese correnti;3;Acquisto di beni e servizi;2;Acquisto di servizi;5;Utenze e canoni;4;Energia elettrica;11/10/2018
2894;1;0;179,52;179,52;GLOBAL POWER S.P.A.;622385037F;SALDO Fatt.n. V0/120876  del 01/10/2018 Fattura Energia Elettrica;11/10/2018;1360;0;142;1;Spese correnti;3;Acquisto di beni e servizi;2;Acquisto di servizi;5;Utenze e canoni;4;Energia elettrica;11/10/2018
2895;1;0;113,18;113,18;GLOBAL POWER S.P.A.;622385037F;SALDO Fatt.n. V0/120882  del 01/10/2018 Fattura Energia Elettrica;11/10/2018;1359;0;140;1;Spese correnti;3;Acquisto di beni e servizi;2;Acquisto di servizi;5;Utenze e canoni;4;Energia elettrica;11/10/2018
2896;1;0;332,97;332,97;GLOBAL POWER S.P.A.;622385037F;SALDO Fatt.n. V0/120883  del 01/10/2018 Fattura Energia Elettrica;11/10/2018;1359;0;141;1;Spese correnti;3;Acquisto di beni e servizi;2;Acquisto di servizi;5;Utenze e canoni;4;Energia elettrica;11/10/2018
2897;1;0;139,26;139,26;GLOBAL POWER S.P.A.;622385037F;SALDO Fatt.n. V0/120884  del 01/10/2018 Fattura Energia Elettrica;11/10/2018;1452;0;146;1;Spese correnti;3;Acquisto di beni e servizi;2;Acquisto di servizi;5;Utenze e canoni;4;Energia elettrica;11/10/2018
2898;1;0;704,27;704,27;GLOBAL POWER S.P.A.;622385037F;SALDO Fatt.n. V0/120880  del 01/10/2018 Fattura Energia Elettrica;11/10/2018;1514;0;148;1;Spese correnti;3;Acquisto di beni e servizi;2;Acquisto di servizi;5;Utenze e canoni;4;Energia elettrica;11/10/2018
2899;1;0;126,18;126,18;GLOBAL POWER S.P.A.;622385037F;SALDO Fatt.n. V0/120885  del 01/10/2018 Fattura Energia Elettrica;11/10/2018;1363;0;145;1;Spese correnti;3;Acquisto di beni e servizi;2;Acquisto di servizi;5;Utenze e canoni;4;Energia elettrica;11/10/2018
2900;1;0;139,21;139,21;GLOBAL POWER S.P.A.;622385037F;SALDO Fatt.n. V0/120886  del 01/10/2018 Fattura Energia Elettrica;11/10/2018;1361;0;143;1;Spese correnti;3;Acquisto di beni e servizi;2;Acquisto di servizi;5;Utenze e canoni;4;Energia elettrica;11/10/2018
2901;1;0;158,28;158,28;GLOBAL POWER S.P.A.;622385037F;SALDO Fatt.n. V0/120887  del 01/10/2018 Fattura Energia Elettrica;11/10/2018;1357;0;138;1;Spese correnti;3;Acquisto di beni e servizi;2;Acquisto di servizi;5;Utenze e canoni;4;Energia elettrica;11/10/2018
2902;1;0;142,14;142,14;GLOBAL POWER S.P.A.;622385037F;SALDO Fatt.n. V0/120890  del 01/10/2018 Fattura Energia Elettrica;11/10/2018;1357;0;139;1;Spese correnti;3;Acquisto di beni e servizi;2;Acquisto di servizi;5;Utenze e canoni;4;Energia elettrica;11/10/2018
2903;1;0;314,35;314,35;GLOBAL POWER S.P.A.;622385037F;SALDO Fatt.n. V0/120892  del 01/10/2018 Fattura Energia Elettrica;11/10/2018;1356;0;137;1;Spese correnti;3;Acquisto di beni e servizi;2;Acquisto di servizi;5;Utenze e canoni;4;Energia elettrica;11/10/2018
2904;1;0;791,03;791,03;GLOBAL POWER S.P.A.;622385037F;SALDO Fatt.n. V0/120895  del 01/10/2018 Fattura Energia Elettrica;11/10/2018;1353;0;136;1;Spese correnti;3;Acquisto di beni e servizi;2;Acquisto di servizi;5;Utenze e canoni;4;Energia elettrica;11/10/2018
2905;1;0;25,82;25,82;GLOBAL POWER S.P.A.;622385037F;SALDO Fatt.n. V0/120881  del 01/10/2018 Fattura Energia Elettrica;11/10/2018;1904;0;150;1;Spese correnti;3;Acquisto di beni e servizi;2;Acquisto di servizi;5;Utenze e canoni;4;Energia elettrica;11/10/2018
2906;1;0;45,33;45,33;GLOBAL POWER S.P.A.;622385037F;SALDO Fatt.n. V0/120897  del 01/10/2018 Fattura Energia Elettrica;11/10/2018;1904;0;150;1;Spese correnti;3;Acquisto di beni e servizi;2;Acquisto di servizi;5;Utenze e canoni;4;Energia elettrica;11/10/2018
2907;1;0;33,31;33,31;GLOBAL POWER S.P.A.;622385037F;SALDO Fatt.n. V0/120899  del 01/10/2018 Fattura Energia Elettrica;11/10/2018;1904;0;150;1;Spese correnti;3;Acquisto di beni e servizi;2;Acquisto di servizi;5;Utenze e canoni;4;Energia elettrica;11/10/2018
2908;1;0;1.421,06;1.421,06;COOPERATIVA SOC.A.P.E. ARL;63045241CA;SALDO Fatt.n. 89/PA  del 30/09/2018 Servizio di pulizia presso la delegazione di La Salute di Livenza. Mese di luglio - agosto 2018;11/10/2018;1460;0;303;1;Spese correnti;3;Acquisto di beni e servizi;2;Acquisto di servizi;13;Servizi ausiliari per il funzionamento dell'ente;2;Servizi di pulizia e lavanderia;11/10/2018
2909;1;0;589,7;589,7;COOPERATIVA SOC.A.P.E. ARL;63045241CA;SALDO Fatt.n. 94/PA  del 30/09/2018 APPALTO SERVIZI DI PULIZIA, AUSILIARI E REFEZIONE SCOLASTICA. Oneri di sicurezza luglio e agosto 2018;11/10/2018;2163;0;299;1;Spese correnti;3;Acquisto di beni e servizi;2;Acquisto di servizi;15;Contratti di servizio pubblico;6;Contratti di servizio per le mense scolastiche;11/10/2018
2910;1;0;4.291,98;4.291,98;MICHELE VIAGGI DI MARCASSA MICHELE E C. SNC;74336233C2;SALDO Fatt.n. 75/02  del 29/09/2018 VI RIMETTIAMO FATTURA PER SERVIZIO DI TRASPORTO SCOLASTICO MESE DI SETTEMBRE 2018;11/10/2018;1418;0;629;1;Spese correnti;3;Acquisto di beni e servizi;2;Acquisto di servizi;15;Contratti di servizio pubblico;2;Contratti di servizio di trasporto scolastico;11/10/2018
2914;1;0;1,9;24,3;TESORIERE COMUNALE; ;SERVIZI POS-COMMISSIONI TRANSATO POS COMUNE DI SAN STINO DI LIVENZA98 COMM 009264607 TC (P.     100 -R.    2571);15/10/2018;1066;0;355;1;Spese correnti;3;Acquisto di beni e servizi;2;Acquisto di servizi;17;Servizi finanziari;1;Commissioni per servizi finanziari;15/10/2018
2914;2;0;5,27;24,3;TESORIERE COMUNALE; ;SERVIZI POS-COMMISSIONI TRANSATO POS COMUNE DI SAN STINO DI LIVENZA98 COMM 009264607 TC (P.      99 -R.    2570);15/10/2018;1066;0;355;1;Spese correnti;3;Acquisto di beni e servizi;2;Acquisto di servizi;17;Servizi finanziari;1;Commissioni per servizi finanziari;15/10/2018
2914;3;0;6,19;24,3;TESORIERE COMUNALE; ;SERVIZI POS-COMMISSIONI TRANSATO POS COMUNE DI SAN STINO DI LIVENZA98 COMM 009264607 TC (P.      97 -R.    2568);15/10/2018;1066;0;355;1;Spese correnti;3;Acquisto di beni e servizi;2;Acquisto di servizi;17;Servizi finanziari;1;Commissioni per servizi finanziari;15/10/2018
2914;4;0;10,94;24,3;TESORIERE COMUNALE; ;SERVIZI POS-COMMISSIONI TRANSATO POS COMUNE DI SAN STINO DI LIVENZA98 COMM 009264607 TC (P.      98 -R.    2569);15/10/2018;1066;0;355;1;Spese correnti;3;Acquisto di beni e servizi;2;Acquisto di servizi;17;Servizi finanziari;1;Commissioni per servizi finanziari;15/10/2018
2915;1;0;225;225;A.N.AC.  AUTORITA' NAZIONALE ANTICORRUZIONE; ;DETERMINAZIONE N. 231/2018 - ASSUNZIONE IMPEGNO DI SPESA A FAVORE DELL'ANAC PER LIQUIDAZIONE CONTRIBUTO STAZIONE APPALTANTE - liquidazione MAV 01030627519991992 - QUOTA PER APPALTO PULIZIA PALESTRE E MUNICIPIO IMPORTO COMPLESSIVO 975,00;18/10/2018;1079;0;710;1;Spese correnti;4;Trasferimenti correnti;1;Trasferimenti correnti a Amministrazioni Pubbliche;1;Trasferimenti correnti a Amministrazioni Centrali;10;Trasferimenti correnti a autorità amministrative indipendenti;18/10/2018
2916;1;0;375;375;A.N.AC.  AUTORITA' NAZIONALE ANTICORRUZIONE;747546982A;Determinazione a contrattare art. 192 Dlgs 267/2000 ed art. 32 Dlgs 50/2016. Affidamento dei  servizi di ristorazione scolastica e di servizi ausiliari vari negli istituti scolastici del Comune di San Stino di Livenza - QUOTA PARTE PAGAMENTO MAV 0103;18/10/2018;1079;0;473;1;Spese correnti;4;Trasferimenti correnti;1;Trasferimenti correnti a Amministrazioni Pubbliche;1;Trasferimenti correnti a Amministrazioni Centrali;10;Trasferimenti correnti a autorità amministrative indipendenti;18/10/2018
2917;1;0;375;375;A.N.AC.  AUTORITA' NAZIONALE ANTICORRUZIONE;74336233D2;Determinazione a contrattare art. 192 del D.lgs n.267/2000. Affidamento del trasporto scolastico scuole obbligo Comune di San Stino di Livenza. Delega CUC ed  assunzione di spesa per il pagamento del contributo ANAC a carico della stazione appaltante;18/10/2018;1079;0;404;1;Spese correnti;4;Trasferimenti correnti;1;Trasferimenti correnti a Amministrazioni Pubbliche;1;Trasferimenti correnti a Amministrazioni Centrali;10;Trasferimenti correnti a autorità amministrative indipendenti;18/10/2018
2918;1;0;275,1;275,1;OMESSO NOMINATIVO NEL RISPETTO DELLA NORMATIVA SULLA PROTEZIONE DATI PERSONALI; ;CONTRIBUTO ECONOMICO STRAORDINARIO SIGNOR AA18031 PER MATERIALE SCOLASTICO E LIBRI DI TESTO DEL FIGLIO MINORE - LIQUIDAZIONE in contanti CON QUIETANZA ASSISTENTE SOCIALE FABIO PERAZZOLO;18/10/2018;1423;0;704;1;Spese correnti;4;Trasferimenti correnti;2;Trasferimenti correnti a Famiglie;1;Interventi previdenziali;999;Altri sussidi e assegni;18/10/2018
2919;1;0;166,35;166,35;OMESSO NOMINATIVO NEL RISPETTO DELLA NORMATIVA SULLA PROTEZIONE DATI PERSONALI; ;CONTRIBUTO ECONOMICO STRAORDINARIO SIGNORA AA18035 PER ACQUISTO LIBRI  E MATERIALE SCOLASTICO PER LA FIGLIA MINORE ANCORA IN OBBLIGO SCOLASTICO - emissione mandato in contanti con quietanza dell'agente contabile Edi Tallon;18/10/2018;1423;0;699;1;Spese correnti;4;Trasferimenti correnti;2;Trasferimenti correnti a Famiglie;1;Interventi previdenziali;999;Altri sussidi e assegni;18/10/2018
2920;1;0;136,64;136,64;PITNEY BOWES ITALIA SRL;Z0724A9E67;SALDO Fatt.n. 003260  del 26/09/2018 CONTRATTO ASSISTENZA TECNICA;18/10/2018;1039;0;642;1;Spese correnti;3;Acquisto di beni e servizi;2;Acquisto di servizi;7;Utilizzo di beni di terzi;8;Noleggi di impianti e macchinari;18/10/2018
2921;1;0;59,78;59,78;PITNEY BOWES ITALIA SRL;ZA42429D61;SALDO Fatt.n. 003179  del 24/09/2018 AGG.TO TARIFFE POSTALI AFFRANCAPOST;18/10/2018;1100;0;604;1;Spese correnti;3;Acquisto di beni e servizi;2;Acquisto di servizi;16;Servizi amministrativi;2;Spese postali;18/10/2018
2922;1;0;2.757,20;2.757,20;INTRA CREAZIONI D'INTERNI SRL UNIPERSONALE;ZA923D49EA;SALDO Fatt.n. 000001-2018-A  del 17/07/2018 fornitura tende per scuola primaria corbolone;18/10/2018;3805;0;539;2;Spese in conto capitale;2;Investimenti fissi lordi e acquisto di terreni;1;Beni materiali;9;Beni immobili;3;Fabbricati ad uso scolastico;18/10/2018
2923;1;0;1.061,94;1.061,94;VIVISPORT SRL;ZC324A0B05;SALDO Fatt.n. 0000128/PA  del 30/09/2018 FORNITURA DI ATTREZZATURA SPORTIVA;18/10/2018;3009;0;658;2;Spese in conto capitale;2;Investimenti fissi lordi e acquisto di terreni;1;Beni materiali;99;Altri beni materiali;999;Altri beni materiali diversi;18/10/2018
2924;1;0;305;305;Q-WEB SRL;Z2A253CD32;SALDO Fatt.n. 29/PA  del 12/10/2018 SERVIZIO MANTENIMENTO ANNUALE SEGNALAZIONI WEB;18/10/2018;1050;0;729;1;Spese correnti;3;Acquisto di beni e servizi;2;Acquisto di servizi;2;Organizzazione eventi, pubblicita` e servizi per trasferta;4;Pubblicita`;18/10/2018
2925;1;0;783,19;783,19;STEP S.R.L.;7122037AD9;SALDO Fatt.n. FATTPA 1402_18  del 15/10/2018 AGGIO RISCOSSIONE COATTIVA NEL MESE DI SETTEMBRE 2018 POLIZIA URBANA - RECUPERO SPESE PROCEDURA COATTIVA E SPESE POSTALI;18/10/2018;2158;0;200;1;Spese correnti;3;Acquisto di beni e servizi;2;Acquisto di servizi;3;Aggi di riscossione;999;Altri aggi di riscossione n.a.c.;18/10/2018
2926;1;0;2.316,75;2.316,75;STEP S.R.L.;7122037AD9;SALDO Fatt.n. FATTPA 1401_18  del 15/10/2018 AGGIO RISCOSSIONE COATTIVA UFFICIO TRIBUTISETTEMBRE 2018 - RECUPERO SPESE POSTALI E PROCEDURA COATTIVA;18/10/2018;2158;0;200;1;Spese correnti;3;Acquisto di beni e servizi;2;Acquisto di servizi;3;Aggi di riscossione;999;Altri aggi di riscossione n.a.c.;18/10/2018
2927;1;0;795,71;795,71;STEP S.R.L.;7122037AD9;SALDO Fatt.n. FATTPA 1360_18  del 11/10/2018 AGGIO IMPOSTA COMUNALE PUBBLICITA' - DIRITTI PUIBBLICHE AFFISSIONI - TOSAP SETTEMBRE 2018 - RECUPERO SPESE POSTALI;18/10/2018;2158;0;200;1;Spese correnti;3;Acquisto di beni e servizi;2;Acquisto di servizi;3;Aggi di riscossione;999;Altri aggi di riscossione n.a.c.;18/10/2018
2928;1;0;833,76;833,76;OLIVETTI SPA;Z2321B32EC;SALDO Fatt.n. 0000015678  del 11/10/2018 TRASPORTO ALWAYS FLAT MESE DI SETTEMBRE 2018;18/10/2018;1096;0;313;1;Spese correnti;3;Acquisto di beni e servizi;2;Acquisto di servizi;19;Servizi informatici e di telecomunicazioni;4;Servizi di rete per trasmissione dati e VoIP e relativa manutenzione;18/10/2018
2929;1;0;1.793,40;1.793,40;ATER AZ.TERR.EDIL.RES.PROV. DI VENEZIA; ;SALDO Fatt.n. 12/2018/FE  del 14/09/2018 SALDO COMPETENZE GRADUATORIA ERP 2017;18/10/2018;1614;0;292;1;Spese correnti;3;Acquisto di beni e servizi;2;Acquisto di servizi;99;Altri servizi;999;Altri servizi diversi n.a.c.;18/10/2018
2930;1;0;4.291,98;4.291,98;A.P.A. TOURS DI PANZARIN GIAN LUIGI & C.SNC;74336233C2;SALDO Fatt.n. 055/2018E  del 29/09/2018 Servizio scolastico effettuato per Vs. conto, mese di Settembre 2018, trasporto alunni della scuola elementare, media e materna;18/10/2018;1418;0;627;1;Spese correnti;3;Acquisto di beni e servizi;2;Acquisto di servizi;15;Contratti di servizio pubblico;2;Contratti di servizio di trasporto scolastico;18/10/2018
2931;1;0;2.900,00;2.900,00;PARROCCHIA DI CORBOLONE - S.MARCO EV.; ;Protocollo n. 16971 del 11-10-2018;18/10/2018;1391;0;706;1;Spese correnti;3;Acquisto di beni e servizi;2;Acquisto di servizi;7;Utilizzo di beni di terzi;1;Locazione di beni immobili;18/10/2018
2932;1;0;1.900,00;1.900,00;PARROCCHIA SANTI ANTONIO ABATE E GIUSEPPE; ;Protocollo n. 16929 del 11-10-2018;18/10/2018;1426;0;709;1;Spese correnti;3;Acquisto di beni e servizi;2;Acquisto di servizi;7;Utilizzo di beni di terzi;1;Locazione di beni immobili;18/10/2018
2933;1;0;2.050,00;2.050,00;ASS. LA MACCHIA VERDE; ;Protocollo n. 16951 del 11-10-2018;18/10/2018;1812;0;700;1;Spese correnti;4;Trasferimenti correnti;4;Trasferimenti correnti a Istituzioni Sociali Private;1;Trasferimenti correnti a Istituzioni Sociali Private;1;Trasferimenti correnti a Istituzioni Sociali Private;18/10/2018
2934;1;0;2.550,00;2.550,00;ASSOCIAZ. IL GIARDINO DI HANA ONLUS; ;Protocollo n. 16210 del 02-10-2018  - 124/PA del 01/10/2018 - settembre;18/10/2018;1783;0;223;1;Spese correnti;3;Acquisto di beni e servizi;2;Acquisto di servizi;15;Contratti di servizio pubblico;8;Contratti di servizio di assistenza sociale residenziale e semiresidenziale;18/10/2018
2935;1;0;1.500,00;1.500,00;ISTITUTO COMPRENSIVO RITA LEVI MONTALCINI; ;ASSUNZIONE IMPEGNO DI SPESA PER TRASFERIMENTO FONDI ALL'ISTITUTO COMPRENSIVO RITA LEVI MONTALCINI - ANNO 2018;18/10/2018;1367;0;697;1;Spese correnti;4;Trasferimenti correnti;1;Trasferimenti correnti a Amministrazioni Pubbliche;1;Trasferimenti correnti a Amministrazioni Centrali;2;Trasferimenti correnti a Ministero dell'Istruzione - Istituzioni scolastiche;18/10/2018
2939;1;0;152,5;152,5;ARMERIA BARBUIO DI FACCHINA MASSIMO;ZDB2465392;SALDO Fatt.n. 9/E  del 07/08/2018 PULIZIA EFFETTUATA SU N.5 DI PISTOLE SEMIAUTOMATICHE IN CAL 9X21 DI VOSTRA PROPRIETA' IN DATA 07/08/18;18/10/2018;1277;0;612;1;Spese correnti;3;Acquisto di beni e servizi;2;Acquisto di servizi;9;Manutenzione ordinaria e riparazioni;7;Manutenzione ordinaria e riparazioni di armi;18/10/2018
2940;1;0;202,52;202,52;ARMERIA BARBUIO DI FACCHINA MASSIMO;Z442496568;SALDO Fatt.n. 10/E  del 22/08/2018 TORCE PORTATILI MARCA FENIX MOD. TK20R DA 1000 LUMEN;18/10/2018;1279;0;643;1;Spese correnti;3;Acquisto di beni e servizi;1;Acquisto di beni;2;Altri beni di consumo;999;Altri beni e materiali di consumo n.a.c.;18/10/2018
2942;1;0;760;760;BOATTO GOMME SNC DI BOATTO LORENZO, PAOLO E ROBERTO;Z2824D635A;SALDO Fatt.n. 000002-2018-COMUNE  del 10/10/2018 ACQUISTO DI PNEUMATICI PER I VEICOLI DI SERVIZIO;18/10/2018;1274;0;677;1;Spese correnti;3;Acquisto di beni e servizi;2;Acquisto di servizi;9;Manutenzione ordinaria e riparazioni;1;Manutenzione ordinaria e riparazioni di mezzi di trasporto ad uso civile, di sicurezza e ordine pubblico;18/10/2018
2943;1;0;2.440,46;2.440,46;IL GABBIANO - IL PINO - SOCIETA' COOP.SOCIALE; ;SALDO Fatt.n. 362/PA  del 30/09/2018 RETTE MESE SETTEMBRE 2018 A FAVORE DI G.M.;18/10/2018;1880;0;226;1;Spese correnti;3;Acquisto di beni e servizi;2;Acquisto di servizi;15;Contratti di servizio pubblico;8;Contratti di servizio di assistenza sociale residenziale e semiresidenziale;18/10/2018
2944;1;0;1.938,14;1.938,14;IL GABBIANO - IL PINO - SOCIETA' COOP.SOCIALE; ;SALDO Fatt.n. 363/PA  del 30/09/2018 RETTE MESE SETTEMBRE 2018 A FAVORE DI I.A.;18/10/2018;1880;0;227;1;Spese correnti;3;Acquisto di beni e servizi;2;Acquisto di servizi;15;Contratti di servizio pubblico;8;Contratti di servizio di assistenza sociale residenziale e semiresidenziale;18/10/2018
2945;1;0;2.440,46;2.440,46;IL GABBIANO - IL PINO - SOCIETA' COOP.SOCIALE; ;SALDO Fatt.n. 361/PA  del 30/09/2018 RETTE MESE SETTEMBRE 2018 A FAVORE DI G.A.;18/10/2018;1880;0;228;1;Spese correnti;3;Acquisto di beni e servizi;2;Acquisto di servizi;15;Contratti di servizio pubblico;8;Contratti di servizio di assistenza sociale residenziale e semiresidenziale;18/10/2018
2946;1;0;-2.159,40;2.159,40;STUDIO CAVAGGIONI SCARL;Z331BBF118;SALDO Fatt.n. 233/FE/2018  del 28/09/2018 storno fattura n. 193/2018 RICOGNIZIONE CESPITI;18/10/2018;1030;0;853;1;Spese correnti;3;Acquisto di beni e servizi;2;Acquisto di servizi;11;Prestazioni professionali e specialistiche;999;Altre prestazioni professionali e specialistiche n.a.c.;18/10/2018
2946;2;0;2.159,40;2.159,40;STUDIO CAVAGGIONI SCARL;Z331BBF118;SALDO Fatt.n. 193/FE/2018  del 30/08/2018 1088 - COMUNE DI SAN STINO DI LIVENZA/ - RICOGNIZIONE CESPITI - DET.486_02.11.2016;18/10/2018;1030;0;853;1;Spese correnti;3;Acquisto di beni e servizi;2;Acquisto di servizi;11;Prestazioni professionali e specialistiche;999;Altre prestazioni professionali e specialistiche n.a.c.;18/10/2018
2946;3;0;2.159,40;2.159,40;STUDIO CAVAGGIONI SCARL;Z331BBF118;SALDO Fatt.n. 234/FE/2018  del 28/09/2018 RICOGNIZIONE CESPITI - DET.486/2016;18/10/2018;1030;0;853;1;Spese correnti;3;Acquisto di beni e servizi;2;Acquisto di servizi;11;Prestazioni professionali e specialistiche;999;Altre prestazioni professionali e specialistiche n.a.c.;18/10/2018
2947;1;0;1.849,52;1.849,52;BOTTOSSO SEBASTIAN ENRIQUE;Z4D2286C09;SALDO Fatt.n. FATTPA 3_18  del 09/10/2018 AFFIDAMENTO INTERVENTI DI SISTEMAZIONE, MESSA IN SICUREZZA E MANUTENZIONE DEL VERDE E ALBERATURE DEI GIARDINI PUBBLICI DI VIA MARCONI E AREA A VERDE DI PIAZZA GOLDONI;18/10/2018;3009;0;352;2;Spese in conto capitale;2;Investimenti fissi lordi e acquisto di terreni;1;Beni materiali;99;Altri beni materiali;999;Altri beni materiali diversi;18/10/2018
2948;1;0;1.237,12;1.237,12;DITTA SANTIN R. DI SANTIN DARIO;ZDC24FD949;SALDO Fatt.n. 196PA  del 08/10/2018 RIPARAZIONE E MANUTENZIONE ATTREZZATURE PER IL VERDE PUBBLICO;18/10/2018;1919;0;694;1;Spese correnti;3;Acquisto di beni e servizi;2;Acquisto di servizi;9;Manutenzione ordinaria e riparazioni;4;Manutenzione ordinaria e riparazioni di impianti e macchinari;18/10/2018
2949;1;0;641,07;641,07;MARCHESIN RAG ALBERTO SRL;Z7E22EDAB4;SALDO Fatt.n. 5  del 03/10/2018 Determina a contrarre per l'acquisto di materiale edile neccessario per l'esecuzione di interventi da eseguirsi in amministrazione diretta.;18/10/2018;1666;0;484;1;Spese correnti;3;Acquisto di beni e servizi;1;Acquisto di beni;2;Altri beni di consumo;999;Altri beni e materiali di consumo n.a.c.;18/10/2018
2950;1;0;868,52;868,52;MARCHIOL S.P.A.;Z842252EAD;SALDO Fatt.n. 1118631144  del 29/09/2018 MATERIALE ELETTRICO;18/10/2018;1666;0;356;1;Spese correnti;3;Acquisto di beni e servizi;1;Acquisto di beni;2;Altri beni di consumo;999;Altri beni e materiali di consumo n.a.c.;18/10/2018
2951;1;0;930,22;930,22;TOSATTO FRUIT SRL;Z991FB9B77;SALDO Fatt.n. 16/PA  del 30/09/2018 FORNITURA DERRATE ALIMENTARI CENTRO COTTURA LA SALUTE MESE DI SETTEMBRE;18/10/2018;1415;0;663;1;Spese correnti;3;Acquisto di beni e servizi;1;Acquisto di beni;2;Altri beni di consumo;11;Generi alimentari;18/10/2018
2952;1;0;994,03;994,03;TOSATTO FRUIT SRL;Z991FB9B77;SALDO Fatt.n. 15/PA  del 30/09/2018 FORNITURA DERRATE ALIMENTARI SCUOLA MATERNE PIAGET E SACRO CUORE MESE DI SETTEMBRE;18/10/2018;1415;0;663;1;Spese correnti;3;Acquisto di beni e servizi;1;Acquisto di beni;2;Altri beni di consumo;11;Generi alimentari;18/10/2018
2953;1;0;97,33;539,77;OTIS SERVIZI S.R.L.;Z8A1DE47E5;SALDO Fatt.n. 3FO18112567  del 01/10/2018 Canone di Manutenzione - Servizio Gestione Comunicazione Bidirezionale IMPIANTO: 22N84653 - UBICAZIONE: VIA ANTONIO VIVALDI 18 - PERIODO: 01/10/2018 - 31/03/2019;18/10/2018;1094;0;383;1;Spese correnti;3;Acquisto di beni e servizi;2;Acquisto di servizi;9;Manutenzione ordinaria e riparazioni;8;Manutenzione ordinaria e riparazioni di beni immobili;18/10/2018
2953;2;0;442,44;539,77;OTIS SERVIZI S.R.L.;Z8A1DE47E5;ACCONTO Fatt.n. 3FO18112567  del 01/10/2018 Canone di Manutenzione - Servizio Gestione Comunicazione Bidirezionale IMPIANTO: 22N84653 - UBICAZIONE: VIA ANTONIO VIVALDI 18 - PERIODO: 01/10/2018 - 31/03/2019;18/10/2018;1094;0;383;1;Spese correnti;3;Acquisto di beni e servizi;2;Acquisto di servizi;9;Manutenzione ordinaria e riparazioni;8;Manutenzione ordinaria e riparazioni di beni immobili;18/10/2018
2954;1;0;1.525,00;1.525,00;ROSSI LUIGI;Z8023D05FF;SALDO Fatt.n. 09/18  del 05/10/2018 INTERVENTI SU ATTREZZATURE ELETTRONICHE IN DOTAZIONE AL TEATRO ROMANO PASCUTTO;18/10/2018;3504;0;532;2;Spese in conto capitale;2;Investimenti fissi lordi e acquisto di terreni;1;Beni materiali;3;Mobili e arredi;999;Mobili e arredi n.a.c.;18/10/2018
2955;1;0;8.835,84;8.835,84;COOPSERVIZI GROUP FVG SOCIETA' COOP.SOCIALE;640125638F;SALDO Fatt.n. 222/PA  del 05/10/2018 SERVIZIO DI ASSISTENZA DOMICILIARE MESE DI SETTEMBRE 2018;18/10/2018;2165;0;816;1;Spese correnti;3;Acquisto di beni e servizi;2;Acquisto di servizi;15;Contratti di servizio pubblico;9;Contratti di servizio di assistenza sociale domiciliare;18/10/2018
2956;1;0;2.707,57;2.707,57;ROSSI GIANTS S.R.L.;7108879089;SALDO Fatt.n. 0478/68  del 30/09/2018 Fornitura derrate alimetari centri di cottura comunali la Salute settembre 2018;18/10/2018;1415;0;676;1;Spese correnti;3;Acquisto di beni e servizi;1;Acquisto di beni;2;Altri beni di consumo;11;Generi alimentari;18/10/2018
2957;1;0;3.884,67;3.884,67;ROSSI GIANTS S.R.L.;7108879089;SALDO Fatt.n. 0477/68  del 30/09/2018  Fornitura derrate alimetari centri di cottura comunali Piaget settembre 2018;18/10/2018;1415;0;676;1;Spese correnti;3;Acquisto di beni e servizi;1;Acquisto di beni;2;Altri beni di consumo;11;Generi alimentari;18/10/2018
2958;1;0;4.291,98;4.291,98;A.T.A. DI ANTONIAZZI GIUSEPPE & C. SNC;74336233C2;SALDO Fatt.n. 149/2018E  del 29/09/2018 Servizio scolastico effettuato per Vs. conto nel mese di Settembre 2018 per trasporto alunni della scuola elementare media e materna;18/10/2018;1418;0;626;1;Spese correnti;3;Acquisto di beni e servizi;2;Acquisto di servizi;15;Contratti di servizio pubblico;2;Contratti di servizio di trasporto scolastico;18/10/2018
2959;1;0;1.876,80;1.876,80;STUDIO INFERMIERISTICO ASSOCIATO PRESTINF;6983857D1A;SALDO Fatt.n. 000041-2018-PA  del 30/09/2018 SEDUTE PRESSO I CENTRI PRELIEVI MESE DI SETTEMBRE 2018;18/10/2018;1881;0;296;1;Spese correnti;3;Acquisto di beni e servizi;2;Acquisto di servizi;18;Servizi sanitari;14;Acquisti di servizi socio sanitari a rilevanza sanitaria;18/10/2018
2960;1;0;1.532,00;1.532,00;AZIENDA SPECIALE DON MOSCHETTA; ;SALDO Fatt.n. 87/PA  del 30/09/2018 Retta ospitalita' - P.D. - mese di Settembre 2018;18/10/2018;1877;0;237;1;Spese correnti;3;Acquisto di beni e servizi;2;Acquisto di servizi;15;Contratti di servizio pubblico;8;Contratti di servizio di assistenza sociale residenziale e semiresidenziale;18/10/2018
2961;1;0;602;602;CIRCOLO AUSER VOLONTARIATO LA.CA.SA. - ETS; ;Protocollo n. 16390 del 04-10-2018;18/10/2018;1667;0;474;1;Spese correnti;4;Trasferimenti correnti;4;Trasferimenti correnti a Istituzioni Sociali Private;1;Trasferimenti correnti a Istituzioni Sociali Private;1;Trasferimenti correnti a Istituzioni Sociali Private;18/10/2018
2962;1;0;17.600,00;17.600,00;INNOCENTE & STIPANOVICH SRL;ZA1239EED4;SALDO Fatt.n. 34/E/18  del 28/09/2018 Lavori per la realizzazione della Casa del Volontariato - 2 stralcio. Fornitura e posa di una piattaforma oleodinamica;18/10/2018;3060;0;988;2;Spese in conto capitale;2;Investimenti fissi lordi e acquisto di terreni;1;Beni materiali;9;Beni immobili;2;Fabbricati ad uso commerciale;18/10/2018
2963;1;0;131,15;131,15;ASIS SRL;Z1C225630B;SALDO Fatt.n. 308  del 29/09/2018 Rif. rapporto n.178/MT del 12.09.2018 Eseguita sostituzione batteria CMOS. Eseguita pulizia ram e check disk. Verifica funzionamento - Minuterie -Rif. rapporto n.189/MT del 28.09.2018 Eseguita scansione e pulizia vir;18/10/2018;1132;0;307;1;Spese correnti;3;Acquisto di beni e servizi;2;Acquisto di servizi;19;Servizi informatici e di telecomunicazioni;5;Servizi per i sistemi e relativa manutenzione;18/10/2018
2964;1;0;1.815,66;1.815,66;COOPERATIVA SOC.A.P.E. ARL;ZBF229AA0A;SALDO Fatt.n. 7/PAA  del 30/09/2018 Emettiamo fattura per progetto sociale di inserimento lavorativo. Mese di settembre 2018;18/10/2018;1918;0;468;1;Spese correnti;3;Acquisto di beni e servizi;2;Acquisto di servizi;9;Manutenzione ordinaria e riparazioni;12;Manutenzione ordinaria e riparazioni di terreni e beni materiali non prodotti;18/10/2018
2965;1;0;508,68;508,68;LIVENZA TAGLIAMENTO ACQUE SPA;Z5D2239422;SALDO Fatt.n. 001287/2018/E  del 08/10/2018 FATTURA CONSUMI ACQUA   UTENZA: 15815 PERIODO II 2018 VIA FRATELLI MARTINA 22 ASILO INFANTILE;18/10/2018;1362;0;187;1;Spese correnti;3;Acquisto di beni e servizi;2;Acquisto di servizi;5;Utenze e canoni;5;Acqua;18/10/2018
2966;1;0;300,27;300,27;LIVENZA TAGLIAMENTO ACQUE SPA;Z5D2239422;SALDO Fatt.n. 001293/2018/E  del 08/10/2018 FATTURA CONSUMI ACQUA   UTENZA: 62301 PERIODO II 2018 VIA PAPA GIOVANNI XXIII SC.MATERNA PIAGET;18/10/2018;1364;0;188;1;Spese correnti;3;Acquisto di beni e servizi;2;Acquisto di servizi;5;Utenze e canoni;5;Acqua;18/10/2018
2967;1;0;204,22;204,22;LIVENZA TAGLIAMENTO ACQUE SPA;Z5D2239422;SALDO Fatt.n. 001241/2018/E  del 08/10/2018 FATTURA CONSUMI ACQUA   UTENZA: 16454 PERIODO II 2018 VIA DE GASPERI  ALCIDE 10 SCUOLE ELEMENT.;18/10/2018;1372;0;189;1;Spese correnti;3;Acquisto di beni e servizi;2;Acquisto di servizi;5;Utenze e canoni;5;Acqua;18/10/2018
2968;1;0;270,46;270,46;LIVENZA TAGLIAMENTO ACQUE SPA;Z5D2239422;SALDO Fatt.n. 001245/2018/E  del 08/10/2018 FATTURA CONSUMI ACQUA   UTENZA: 17622 PERIODO II 2018 C.SO CAVOUR 83 SC. ELEMENTARE LA SALUTE;18/10/2018;1371;0;190;1;Spese correnti;3;Acquisto di beni e servizi;2;Acquisto di servizi;5;Utenze e canoni;5;Acqua;18/10/2018
2969;1;0;118,49;118,49;LIVENZA TAGLIAMENTO ACQUE SPA;Z5D2239422;SALDO Fatt.n. 001288/2018/E  del 08/10/2018 FATTURA CONSUMI ACQUA   UTENZA: 15955 PERIODO II 2018 P.ZZA CAVALIERI DI VITTORIO V.TO 1 SCUOLE ELEM.;18/10/2018;1378;0;191;1;Spese correnti;3;Acquisto di beni e servizi;2;Acquisto di servizi;5;Utenze e canoni;5;Acqua;18/10/2018
2970;1;0;196,37;196,37;LIVENZA TAGLIAMENTO ACQUE SPA;Z5D2239422;SALDO Fatt.n. 001289/2018/E  del 08/10/2018 FATTURA CONSUMI ACQUA   UTENZA: 16191 PERIODO II 2018 VIA BIVERONE 35 SCUOLE ELEM.;18/10/2018;1379;0;192;1;Spese correnti;3;Acquisto di beni e servizi;2;Acquisto di servizi;5;Utenze e canoni;5;Acqua;18/10/2018
2971;1;0;163,96;163,96;LIVENZA TAGLIAMENTO ACQUE SPA;Z5D2239422;SALDO Fatt.n. 001249/2018/E  del 08/10/2018 FATTURA CONSUMI ACQUA   UTENZA: 18148 PERIODO II 2018 VIA CAVOUR 83 SCUOLE ELEM.;18/10/2018;1382;0;193;1;Spese correnti;3;Acquisto di beni e servizi;2;Acquisto di servizi;5;Utenze e canoni;5;Acqua;18/10/2018
2972;1;0;3,19;3,19;LIVENZA TAGLIAMENTO ACQUE SPA;Z5D2239422;SALDO Fatt.n. 001292/2018/E  del 08/10/2018 FATTURA CONSUMI ACQUA   UTENZA: 57234 PERIODO II 2018 C.SO CAVOUR 83 SCUOLA ELEMENTARE;18/10/2018;1382;0;193;1;Spese correnti;3;Acquisto di beni e servizi;2;Acquisto di servizi;5;Utenze e canoni;5;Acqua;18/10/2018
2973;1;0;9,02;9,02;LIVENZA TAGLIAMENTO ACQUE SPA;Z5D2239422;SALDO Fatt.n. 001295/2018/E  del 08/10/2018 FATTURA CONSUMI ACQUA   UTENZA: 81693 PERIODO II 2018 VIA DE GASPERI ALCIDE SCUOLA MEDIA TONIOLO;18/10/2018;1384;0;194;1;Spese correnti;3;Acquisto di beni e servizi;2;Acquisto di servizi;5;Utenze e canoni;5;Acqua;18/10/2018
2974;1;0;550,22;550,22;LIVENZA TAGLIAMENTO ACQUE SPA;Z5D2239422;SALDO Fatt.n. 001246/2018/E  del 08/10/2018 FATTURA CONSUMI ACQUA   UTENZA: 17710 PERIODO II 2018 VIA DE GASPERI ALCIDE SCUOLE MEDIE;18/10/2018;1384;0;194;1;Spese correnti;3;Acquisto di beni e servizi;2;Acquisto di servizi;5;Utenze e canoni;5;Acqua;18/10/2018
2975;1;0;206,31;206,31;LIVENZA TAGLIAMENTO ACQUE SPA;Z5D2239422;SALDO Fatt.n. 001242/2018/E  del 08/10/2018 FATTURA CONSUMI ACQUA   UTENZA: 16610 PERIODO II 2018 C.SO CAVOUR 1 LA SALUTE SCUOLA MEDIA;18/10/2018;1385;0;195;1;Spese correnti;3;Acquisto di beni e servizi;2;Acquisto di servizi;5;Utenze e canoni;5;Acqua;18/10/2018
2976;1;0;3,19;3,19;LIVENZA TAGLIAMENTO ACQUE SPA;Z5D2239422;SALDO Fatt.n. 001291/2018/E  del 08/10/2018 FATTURA CONSUMI ACQUA   UTENZA: 54894 PERIODO II 2018 C.SO CAVOUR LA SALUTE SCUOLA MEDIA FOGAZZARO;18/10/2018;1385;0;195;1;Spese correnti;3;Acquisto di beni e servizi;2;Acquisto di servizi;5;Utenze e canoni;5;Acqua;18/10/2018
2977;1;0;52,58;52,58;LIVENZA TAGLIAMENTO ACQUE SPA;Z5D2239422;SALDO Fatt.n. 001255/2018/E  del 08/10/2018 FATTURA CONSUMI ACQUA   UTENZA: 19600 PERIODO II 2018 VIA DE GASPERI ALCIDE PALESTRA;18/10/2018;1429;0;196;1;Spese correnti;3;Acquisto di beni e servizi;2;Acquisto di servizi;5;Utenze e canoni;5;Acqua;18/10/2018
2978;1;0;56,49;56,49;LIVENZA TAGLIAMENTO ACQUE SPA;Z5D2239422;SALDO Fatt.n. 001244/2018/E  del 08/10/2018 FATTURA CONSUMI ACQUA   UTENZA: 17394 PERIODO II 2018 VIA DE GASPERI ALCIDE PALESTRA;18/10/2018;1429;0;196;1;Spese correnti;3;Acquisto di beni e servizi;2;Acquisto di servizi;5;Utenze e canoni;5;Acqua;18/10/2018
2979;1;0;355,86;355,86;LIVENZA TAGLIAMENTO ACQUE SPA;Z5D2239422;SALDO Fatt.n. 001273/2018/E  del 08/10/2018 FATTURA CONSUMI ACQUA   UTENZA: 69080 PERIODO II 2018 AMM.NE COM.LE C.SO CAVOUR LA SALUTE PALESTRA;18/10/2018;1453;0;197;1;Spese correnti;3;Acquisto di beni e servizi;2;Acquisto di servizi;5;Utenze e canoni;5;Acqua;18/10/2018
2980;1;0;140,21;140,21;LIVENZA TAGLIAMENTO ACQUE SPA;Z5D2239422;SALDO Fatt.n. 001265/2018/E  del 08/10/2018 FATTURA CONSUMI ACQUA   UTENZA: 58086 PERIODO II 2018 MENSA SCOL. C.SO CAVOUR LA SALUTE;18/10/2018;1459;0;198;1;Spese correnti;3;Acquisto di beni e servizi;2;Acquisto di servizi;5;Utenze e canoni;5;Acqua;18/10/2018
2981;1;0;5,13;5,13;LIVENZA TAGLIAMENTO ACQUE SPA;Z5D2239422;SALDO Fatt.n. 001290/2018/E  del 08/10/2018 FATTURA CONSUMI ACQUA   UTENZA: 53690 PERIODO II 2018 VIA PAPA GIOVANNI XXIII CINEMA TEATRO;18/10/2018;1527;0;199;1;Spese correnti;3;Acquisto di beni e servizi;2;Acquisto di servizi;5;Utenze e canoni;5;Acqua;18/10/2018
2982;1;0;914,64;914,64;LIVENZA TAGLIAMENTO ACQUE SPA;Z5D2239422;SALDO Fatt.n. 001277/2018/E  del 08/10/2018 FATTURA CONSUMI ACQUA   UTENZA: 18800 PERIODO II 2018 ALLOGGI ANZIANI VIA PAPA GIOVANNI XXIII 4;18/10/2018;1904;0;150;1;Spese correnti;3;Acquisto di beni e servizi;2;Acquisto di servizi;5;Utenze e canoni;4;Energia elettrica;18/10/2018
2983;1;0;6.693,28;6.693,28;STIPENDI TESORIERE COMUNALE; ;STIPENDI MESE DI: OTTOBRE 18;19/10/2018;1001;0;1;1;Spese correnti;3;Acquisto di beni e servizi;2;Acquisto di servizi;1;Organi e incarichi istituzionali dell'amministrazione;1;Organi istituzionali dell'amministrazione - Indennità;19/10/2018
2985;1;0;618,59;618,59;ONERI TESORIERE COMUNALE; ;VERS.CONTRIB. MESE: OTTOBRE 18 A CARICO DELL`ENTE;19/10/2018;1017;0;16;1;Spese correnti;4;Trasferimenti correnti;1;Trasferimenti correnti a Amministrazioni Pubbliche;3;Trasferimenti correnti a Enti di Previdenza;1;Trasferimenti correnti a INPS;19/10/2018
3000;1;0;11,3;11,3;STIPENDI TESORIERE COMUNALE; ;STIPENDI MESE DI: OTTOBRE 18;19/10/2018;1084;0;61;1;Spese correnti;3;Acquisto di beni e servizi;2;Acquisto di servizi;2;Organizzazione eventi, pubblicita` e servizi per trasferta;2;Indennità di missione e di trasferta;19/10/2018
3004;1;0;27,4;27,4;STIPENDI TESORIERE COMUNALE; ;STIPENDI MESE DI: OTTOBRE 18;19/10/2018;1114;0;62;1;Spese correnti;3;Acquisto di beni e servizi;2;Acquisto di servizi;2;Organizzazione eventi, pubblicita` e servizi per trasferta;2;Indennità di missione e di trasferta;19/10/2018
3011;1;0;19,8;19,8;STIPENDI TESORIERE COMUNALE; ;STIPENDI MESE DI: OTTOBRE 18;19/10/2018;1266;0;63;1;Spese correnti;3;Acquisto di beni e servizi;2;Acquisto di servizi;2;Organizzazione eventi, pubblicita` e servizi per trasferta;2;Indennità di missione e di trasferta;19/10/2018
3012;1;0;445;445;STIPENDI TESORIERE COMUNALE; ;STIPENDI MESE DI: OTTOBRE 18;19/10/2018;1269;0;83;1;Spese correnti;3;Acquisto di beni e servizi;2;Acquisto di servizi;12;Lavoro flessibile, quota LSU e acquisto di servizi da agenzie di lavoro interinale;2;Quota LSU in carico all'ente;19/10/2018
3022;1;0;12,6;12,6;STIPENDI TESORIERE COMUNALE; ;STIPENDI MESE DI: OTTOBRE 18;19/10/2018;1475;0;64;1;Spese correnti;3;Acquisto di beni e servizi;2;Acquisto di servizi;2;Organizzazione eventi, pubblicita` e servizi per trasferta;2;Indennità di missione e di trasferta;19/10/2018
3027;1;0;182;182;STIPENDI TESORIERE COMUNALE; ;STIPENDI MESE DI: OTTOBRE 18;19/10/2018;1663;0;84;1;Spese correnti;3;Acquisto di beni e servizi;2;Acquisto di servizi;12;Lavoro flessibile, quota LSU e acquisto di servizi da agenzie di lavoro interinale;2;Quota LSU in carico all'ente;19/10/2018
3057;1;0;3.618,28;3.618,28;SODI SCIENTIFICA SRL;Z1B1AFDF0D;SALDO Fatt.n. S-611  del 30/09/2018 LOCAZIONE MENSILE AUTOVELOX 106 SETTEMBRE 2018;24/10/2018;1302;0;153;1;Spese correnti;3;Acquisto di beni e servizi;2;Acquisto di servizi;8;Leasing operativo;2;Leasing operativo di attrezzature e macchinari;24/10/2018
3058;1;0;22,88;22,88;ENEL ENERGIA S.P.A.;ZE71F60C42;SALDO Fatt.n. 004811706800  del 05/10/2018 FORNITURA GAS VIA GIOVANNI XXIII 4 AGOSTO - SETTEMBRE 2018;24/10/2018;1904;0;150;1;Spese correnti;3;Acquisto di beni e servizi;2;Acquisto di servizi;5;Utenze e canoni;4;Energia elettrica;24/10/2018
3059;1;0;2.751,60;2.751,60;FONDAZIONE PICCOLO RIFUGIO ONLUS; ;SALDO Fatt.n. 548/E  del 30/09/2018 RETTA MESE DI SETTEMBRE 2018 M.M.;24/10/2018;1880;0;232;1;Spese correnti;3;Acquisto di beni e servizi;2;Acquisto di servizi;15;Contratti di servizio pubblico;8;Contratti di servizio di assistenza sociale residenziale e semiresidenziale;24/10/2018
3060;1;0;2.000,00;2.000,00;OPERA DIOCESANA ASSISTENZA;ZF5243BCEB;SALDO Fatt.n. 2018/9/P3  del 08/10/2018 CONTRIBUTO SOGGIORNO ANZIANI LUGLIO 2018 PRESSO LA CASA MARINA BRUNO E PAOLA MARI DI CAORLE;24/10/2018;1902;0;591;1;Spese correnti;3;Acquisto di beni e servizi;2;Acquisto di servizi;99;Altri servizi;999;Altri servizi diversi n.a.c.;24/10/2018
3063;1;0;123,94;123,94;FONDAZIONE E.N.P.A.M.; ;PAGAMENTO BOLLETTINO MAV COD. 05696236369906248 SCADENZA 16.11.2018 - COLLEGATO AL MANDATO 3063 - CONTRIB.PREVIDENZIALE D.LGS 267/2000-DOTT.SSA TEZZOT GIORGIA;25/10/2018;1017;0;16;1;Spese correnti;4;Trasferimenti correnti;1;Trasferimenti correnti a Amministrazioni Pubbliche;3;Trasferimenti correnti a Enti di Previdenza;1;Trasferimenti correnti a INPS;25/10/2018
3064;1;0;619,7;619,7;FONDAZIONE E.N.P.A.M.; ;PAGAMENTO BOLLETTINO MAV COD. 05696236369907965  SCADENZA 16.11.2018 - COLLEGATO AL MANDATO 3064 - CONTRIB. PREVIDENZIALE D.LGS 267/2000 - DOTT.SSA TEZZOT GIORGIA.;25/10/2018;1017;0;16;1;Spese correnti;4;Trasferimenti correnti;1;Trasferimenti correnti a Amministrazioni Pubbliche;3;Trasferimenti correnti a Enti di Previdenza;1;Trasferimenti correnti a INPS;25/10/2018
3065;1;0;720;720;OMESSO NOMINATIVO NEL RISPETTO DELLA NORMATIVA SULLA PROTEZIONE DATI PERSONALI; ;ASSUNZIONE IMPEGNI DI SPESA PER LIQUIDAZIONE AI BENEFICIARI DELL ICDB 1 SEMESTRE 2018  - VEDI ELENCO ALLEGATO IN ATTI - ARMELLIN CELESTINA;25/10/2018;1895;0;707;1;Spese correnti;4;Trasferimenti correnti;2;Trasferimenti correnti a Famiglie;2;Interventi assistenziali;999;Altri assegni e sussidi assistenziali;25/10/2018
3066;1;0;720;720;OMESSO NOMINATIVO NEL RISPETTO DELLA NORMATIVA SULLA PROTEZIONE DATI PERSONALI; ;ASSUNZIONE IMPEGNI DI SPESA PER LIQUIDAZIONE AI BENEFICIARI DELL ICDB 1 SEMESTRE 2018  - VEDI ELENCO ALLEGATO IN ATTI - BARBETTA SILVIA;25/10/2018;1895;0;707;1;Spese correnti;4;Trasferimenti correnti;2;Trasferimenti correnti a Famiglie;2;Interventi assistenziali;999;Altri assegni e sussidi assistenziali;25/10/2018
3067;1;0;720;720;OMESSO NOMINATIVO NEL RISPETTO DELLA NORMATIVA SULLA PROTEZIONE DATI PERSONALI; ;ASSUNZIONE IMPEGNI DI SPESA PER LIQUIDAZIONE AI BENEFICIARI DELL ICDB 1 SEMESTRE 2018  - VEDI ELENCO ALLEGATO IN ATTI - BASSO LUIGIA FIORINA;25/10/2018;1895;0;707;1;Spese correnti;4;Trasferimenti correnti;2;Trasferimenti correnti a Famiglie;2;Interventi assistenziali;999;Altri assegni e sussidi assistenziali;25/10/2018
3068;1;0;720;720;OMESSO NOMINATIVO NEL RISPETTO DELLA NORMATIVA SULLA PROTEZIONE DATI PERSONALI; ;ASSUNZIONE IMPEGNI DI SPESA PER LIQUIDAZIONE AI BENEFICIARI DELL ICDB 1 SEMESTRE 2018  - VEDI ELENCO ALLEGATO IN ATTI - BATTISTELLA ANNA;25/10/2018;1895;0;707;1;Spese correnti;4;Trasferimenti correnti;2;Trasferimenti correnti a Famiglie;2;Interventi assistenziali;999;Altri assegni e sussidi assistenziali;25/10/2018
3069;1;0;720;720;OMESSO NOMINATIVO NEL RISPETTO DELLA NORMATIVA SULLA PROTEZIONE DATI PERSONALI; ;ASSUNZIONE IMPEGNI DI SPESA PER LIQUIDAZIONE AI BENEFICIARI DELL ICDB 1 SEMESTRE 2018  - VEDI ELENCO ALLEGATO IN ATTI - BATTISTIN NICOLA;25/10/2018;1895;0;707;1;Spese correnti;4;Trasferimenti correnti;2;Trasferimenti correnti a Famiglie;2;Interventi assistenziali;999;Altri assegni e sussidi assistenziali;25/10/2018
3070;1;0;720;720;OMESSO NOMINATIVO NEL RISPETTO DELLA NORMATIVA SULLA PROTEZIONE DATI PERSONALI; ;ASSUNZIONE IMPEGNI DI SPESA PER LIQUIDAZIONE AI BENEFICIARI DELL ICDB 1 SEMESTRE 2018  - VEDI ELENCO ALLEGATO IN ATTI - BIGAI MARIA;25/10/2018;1895;0;707;1;Spese correnti;4;Trasferimenti correnti;2;Trasferimenti correnti a Famiglie;2;Interventi assistenziali;999;Altri assegni e sussidi assistenziali;25/10/2018
3071;1;0;720;720;OMESSO NOMINATIVO NEL RISPETTO DELLA NORMATIVA SULLA PROTEZIONE DATI PERSONALI; ;ASSUNZIONE IMPEGNI DI SPESA PER LIQUIDAZIONE AI BENEFICIARI DELL ICDB 1 SEMESTRE 2018  - VEDI ELENCO ALLEGATO IN ATTI - BOEM BARBARA;25/10/2018;1895;0;707;1;Spese correnti;4;Trasferimenti correnti;2;Trasferimenti correnti a Famiglie;2;Interventi assistenziali;999;Altri assegni e sussidi assistenziali;25/10/2018
3072;1;0;720;720;OMESSO NOMINATIVO NEL RISPETTO DELLA NORMATIVA SULLA PROTEZIONE DATI PERSONALI; ;ASSUNZIONE IMPEGNI DI SPESA PER LIQUIDAZIONE AI BENEFICIARI DELL ICDB 1 SEMESTRE 2018  - VEDI ELENCO ALLEGATO IN ATTI - BOER GIUSEPPINA;25/10/2018;1895;0;707;1;Spese correnti;4;Trasferimenti correnti;2;Trasferimenti correnti a Famiglie;2;Interventi assistenziali;999;Altri assegni e sussidi assistenziali;25/10/2018
3073;1;0;720;720;OMESSO NOMINATIVO NEL RISPETTO DELLA NORMATIVA SULLA PROTEZIONE DATI PERSONALI; ;ASSUNZIONE IMPEGNI DI SPESA PER LIQUIDAZIONE AI BENEFICIARI DELL ICDB 1 SEMESTRE 2018  - VEDI ELENCO ALLEGATO IN ATTI - BONDI DINA MARIA;25/10/2018;1895;0;707;1;Spese correnti;4;Trasferimenti correnti;2;Trasferimenti correnti a Famiglie;2;Interventi assistenziali;999;Altri assegni e sussidi assistenziali;25/10/2018
3074;1;0;720;720;OMESSO NOMINATIVO NEL RISPETTO DELLA NORMATIVA SULLA PROTEZIONE DATI PERSONALI; ;ASSUNZIONE IMPEGNI DI SPESA PER LIQUIDAZIONE AI BENEFICIARI DELL ICDB 1 SEMESTRE 2018  - VEDI ELENCO ALLEGATO IN ATTI - BORTOLIN GIOVANNI;25/10/2018;1895;0;707;1;Spese correnti;4;Trasferimenti correnti;2;Trasferimenti correnti a Famiglie;2;Interventi assistenziali;999;Altri assegni e sussidi assistenziali;25/10/2018
3075;1;0;360;360;OMESSO NOMINATIVO NEL RISPETTO DELLA NORMATIVA SULLA PROTEZIONE DATI PERSONALI; ;ASSUNZIONE IMPEGNI DI SPESA PER LIQUIDAZIONE AI BENEFICIARI DELL ICDB 1 SEMESTRE 2018  - VEDI ELENCO ALLEGATO IN ATTI - BRICHESE IOLANDA;25/10/2018;1895;0;707;1;Spese correnti;4;Trasferimenti correnti;2;Trasferimenti correnti a Famiglie;2;Interventi assistenziali;999;Altri assegni e sussidi assistenziali;25/10/2018
3076;1;0;720;720;OMESSO NOMINATIVO NEL RISPETTO DELLA NORMATIVA SULLA PROTEZIONE DATI PERSONALI; ;ASSUNZIONE IMPEGNI DI SPESA PER LIQUIDAZIONE AI BENEFICIARI DELL ICDB 1 SEMESTRE 2018  - VEDI ELENCO ALLEGATO IN ATTI - BUCCIOL TERESA;25/10/2018;1895;0;707;1;Spese correnti;4;Trasferimenti correnti;2;Trasferimenti correnti a Famiglie;2;Interventi assistenziali;999;Altri assegni e sussidi assistenziali;25/10/2018
3077;1;0;720;720;OMESSO NOMINATIVO NEL RISPETTO DELLA NORMATIVA SULLA PROTEZIONE DATI PERSONALI; ;ASSUNZIONE IMPEGNI DI SPESA PER LIQUIDAZIONE AI BENEFICIARI DELL ICDB 1 SEMESTRE 2018  - VEDI ELENCO ALLEGATO IN ATTI - CALIMAN MATTIA;25/10/2018;1895;0;707;1;Spese correnti;4;Trasferimenti correnti;2;Trasferimenti correnti a Famiglie;2;Interventi assistenziali;999;Altri assegni e sussidi assistenziali;25/10/2018
3078;1;0;720;720;OMESSO NOMINATIVO NEL RISPETTO DELLA NORMATIVA SULLA PROTEZIONE DATI PERSONALI; ;ASSUNZIONE IMPEGNI DI SPESA PER LIQUIDAZIONE AI BENEFICIARI DELL ICDB 1 SEMESTRE 2018  - VEDI ELENCO ALLEGATO IN ATTI - CARBONERA AMADIO;25/10/2018;1895;0;707;1;Spese correnti;4;Trasferimenti correnti;2;Trasferimenti correnti a Famiglie;2;Interventi assistenziali;999;Altri assegni e sussidi assistenziali;25/10/2018
3079;1;0;720;720;OMESSO NOMINATIVO NEL RISPETTO DELLA NORMATIVA SULLA PROTEZIONE DATI PERSONALI; ;ASSUNZIONE IMPEGNI DI SPESA PER LIQUIDAZIONE AI BENEFICIARI DELL ICDB 1 SEMESTRE 2018  - VEDI ELENCO ALLEGATO IN ATTI - CARELLA GIUSEPPINA;25/10/2018;1895;0;707;1;Spese correnti;4;Trasferimenti correnti;2;Trasferimenti correnti a Famiglie;2;Interventi assistenziali;999;Altri assegni e sussidi assistenziali;25/10/2018
3080;1;0;120;120;OMESSO NOMINATIVO NEL RISPETTO DELLA NORMATIVA SULLA PROTEZIONE DATI PERSONALI; ;ASSUNZIONE IMPEGNI DI SPESA PER LIQUIDAZIONE AI BENEFICIARI DELL ICDB 1 SEMESTRE 2018  - VEDI ELENCO ALLEGATO IN ATTI - CATTO ANTONIETTA;25/10/2018;1895;0;707;1;Spese correnti;4;Trasferimenti correnti;2;Trasferimenti correnti a Famiglie;2;Interventi assistenziali;999;Altri assegni e sussidi assistenziali;25/10/2018
3081;1;0;720;720;OMESSO NOMINATIVO NEL RISPETTO DELLA NORMATIVA SULLA PROTEZIONE DATI PERSONALI; ;ASSUNZIONE IMPEGNI DI SPESA PER LIQUIDAZIONE AI BENEFICIARI DELL ICDB 1 SEMESTRE 2018  - VEDI ELENCO ALLEGATO IN ATTI - CAVAZZA GIULIANA;25/10/2018;1895;0;707;1;Spese correnti;4;Trasferimenti correnti;2;Trasferimenti correnti a Famiglie;2;Interventi assistenziali;999;Altri assegni e sussidi assistenziali;25/10/2018
3082;1;0;720;720;OMESSO NOMINATIVO NEL RISPETTO DELLA NORMATIVA SULLA PROTEZIONE DATI PERSONALI; ;ASSUNZIONE IMPEGNI DI SPESA PER LIQUIDAZIONE AI BENEFICIARI DELL ICDB 1 SEMESTRE 2018  - VEDI ELENCO ALLEGATO IN ATTI - CIOBANU COSMIN LUCIAN;25/10/2018;1895;0;707;1;Spese correnti;4;Trasferimenti correnti;2;Trasferimenti correnti a Famiglie;2;Interventi assistenziali;999;Altri assegni e sussidi assistenziali;25/10/2018
3083;1;0;720;720;OMESSO NOMINATIVO NEL RISPETTO DELLA NORMATIVA SULLA PROTEZIONE DATI PERSONALI; ;ASSUNZIONE IMPEGNI DI SPESA PER LIQUIDAZIONE AI BENEFICIARI DELL ICDB 1 SEMESTRE 2018  - VEDI ELENCO ALLEGATO IN ATTI - CLAUT LUISA;25/10/2018;1895;0;707;1;Spese correnti;4;Trasferimenti correnti;2;Trasferimenti correnti a Famiglie;2;Interventi assistenziali;999;Altri assegni e sussidi assistenziali;25/10/2018
3084;1;0;720;720;OMESSO NOMINATIVO NEL RISPETTO DELLA NORMATIVA SULLA PROTEZIONE DATI PERSONALI; ;ASSUNZIONE IMPEGNI DI SPESA PER LIQUIDAZIONE AI BENEFICIARI DELL ICDB 1 SEMESTRE 2018  - VEDI ELENCO ALLEGATO IN ATTI - CONTE VINCENZO PIO;25/10/2018;1895;0;707;1;Spese correnti;4;Trasferimenti correnti;2;Trasferimenti correnti a Famiglie;2;Interventi assistenziali;999;Altri assegni e sussidi assistenziali;25/10/2018
3085;1;0;720;720;OMESSO NOMINATIVO NEL RISPETTO DELLA NORMATIVA SULLA PROTEZIONE DATI PERSONALI; ;ASSUNZIONE IMPEGNI DI SPESA PER LIQUIDAZIONE AI BENEFICIARI DELL ICDB 1 SEMESTRE 2018  - VEDI ELENCO ALLEGATO IN ATTI - CORAZZA ELSA;25/10/2018;1895;0;707;1;Spese correnti;4;Trasferimenti correnti;2;Trasferimenti correnti a Famiglie;2;Interventi assistenziali;999;Altri assegni e sussidi assistenziali;25/10/2018
3086;1;0;720;720;OMESSO NOMINATIVO NEL RISPETTO DELLA NORMATIVA SULLA PROTEZIONE DATI PERSONALI; ;ASSUNZIONE IMPEGNI DI SPESA PER LIQUIDAZIONE AI BENEFICIARI DELL ICDB 1 SEMESTRE 2018  - VEDI ELENCO ALLEGATO IN ATTI - DI CRETICO AURORA MARIA;25/10/2018;1895;0;707;1;Spese correnti;4;Trasferimenti correnti;2;Trasferimenti correnti a Famiglie;2;Interventi assistenziali;999;Altri assegni e sussidi assistenziali;25/10/2018
3087;1;0;720;720;OMESSO NOMINATIVO NEL RISPETTO DELLA NORMATIVA SULLA PROTEZIONE DATI PERSONALI; ;ASSUNZIONE IMPEGNI DI SPESA PER LIQUIDAZIONE AI BENEFICIARI DELL ICDB 1 SEMESTRE 2018  - VEDI ELENCO ALLEGATO IN ATTI - FINOTTO PAOLO;25/10/2018;1895;0;707;1;Spese correnti;4;Trasferimenti correnti;2;Trasferimenti correnti a Famiglie;2;Interventi assistenziali;999;Altri assegni e sussidi assistenziali;25/10/2018
3088;1;0;720;720;OMESSO NOMINATIVO NEL RISPETTO DELLA NORMATIVA SULLA PROTEZIONE DATI PERSONALI; ;ASSUNZIONE IMPEGNI DI SPESA PER LIQUIDAZIONE AI BENEFICIARI DELL ICDB 1 SEMESTRE 2018  - VEDI ELENCO ALLEGATO IN ATTI - FISCHER ALBINO;25/10/2018;1895;0;707;1;Spese correnti;4;Trasferimenti correnti;2;Trasferimenti correnti a Famiglie;2;Interventi assistenziali;999;Altri assegni e sussidi assistenziali;25/10/2018
3089;1;0;720;720;OMESSO NOMINATIVO NEL RISPETTO DELLA NORMATIVA SULLA PROTEZIONE DATI PERSONALI; ;ASSUNZIONE IMPEGNI DI SPESA PER LIQUIDAZIONE AI BENEFICIARI DELL ICDB 1 SEMESTRE 2018  - VEDI ELENCO ALLEGATO IN ATTI - GERETTO MARIA;25/10/2018;1895;0;707;1;Spese correnti;4;Trasferimenti correnti;2;Trasferimenti correnti a Famiglie;2;Interventi assistenziali;999;Altri assegni e sussidi assistenziali;25/10/2018
3090;1;0;720;720;OMESSO NOMINATIVO NEL RISPETTO DELLA NORMATIVA SULLA PROTEZIONE DATI PERSONALI; ;ASSUNZIONE IMPEGNI DI SPESA PER LIQUIDAZIONE AI BENEFICIARI DELL ICDB 1 SEMESTRE 2018  - VEDI ELENCO ALLEGATO IN ATTI - GERETTO CAROLINA;25/10/2018;1895;0;707;1;Spese correnti;4;Trasferimenti correnti;2;Trasferimenti correnti a Famiglie;2;Interventi assistenziali;999;Altri assegni e sussidi assistenziali;25/10/2018
3091;1;0;720;720;OMESSO NOMINATIVO NEL RISPETTO DELLA NORMATIVA SULLA PROTEZIONE DATI PERSONALI; ;ASSUNZIONE IMPEGNI DI SPESA PER LIQUIDAZIONE AI BENEFICIARI DELL ICDB 1 SEMESTRE 2018  - VEDI ELENCO ALLEGATO IN ATTI - GOBBATO GIANNINO;25/10/2018;1895;0;707;1;Spese correnti;4;Trasferimenti correnti;2;Trasferimenti correnti a Famiglie;2;Interventi assistenziali;999;Altri assegni e sussidi assistenziali;25/10/2018
3092;1;0;720;720;OMESSO NOMINATIVO NEL RISPETTO DELLA NORMATIVA SULLA PROTEZIONE DATI PERSONALI; ;ASSUNZIONE IMPEGNI DI SPESA PER LIQUIDAZIONE AI BENEFICIARI DELL ICDB 1 SEMESTRE 2018  - VEDI ELENCO ALLEGATO IN ATTI - KASTRATI OMER;25/10/2018;1895;0;707;1;Spese correnti;4;Trasferimenti correnti;2;Trasferimenti correnti a Famiglie;2;Interventi assistenziali;999;Altri assegni e sussidi assistenziali;25/10/2018
3093;1;0;720;720;OMESSO NOMINATIVO NEL RISPETTO DELLA NORMATIVA SULLA PROTEZIONE DATI PERSONALI; ;ASSUNZIONE IMPEGNI DI SPESA PER LIQUIDAZIONE AI BENEFICIARI DELL ICDB 1 SEMESTRE 2018  - VEDI ELENCO ALLEGATO IN ATTI - LUNARDELLI FILOMENA;25/10/2018;1895;0;707;1;Spese correnti;4;Trasferimenti correnti;2;Trasferimenti correnti a Famiglie;2;Interventi assistenziali;999;Altri assegni e sussidi assistenziali;25/10/2018
3094;1;0;480;480;OMESSO NOMINATIVO NEL RISPETTO DELLA NORMATIVA SULLA PROTEZIONE DATI PERSONALI; ;ASSUNZIONE IMPEGNI DI SPESA PER LIQUIDAZIONE AI BENEFICIARI DELL ICDB 1 SEMESTRE 2018  - VEDI ELENCO ALLEGATO IN ATTI - MANZATO CRISTINA;25/10/2018;1895;0;707;1;Spese correnti;4;Trasferimenti correnti;2;Trasferimenti correnti a Famiglie;2;Interventi assistenziali;999;Altri assegni e sussidi assistenziali;25/10/2018
3095;1;3161;720;720;OMESSO NOMINATIVO NEL RISPETTO DELLA NORMATIVA SULLA PROTEZIONE DATI PERSONALI; ;ASSUNZIONE IMPEGNI DI SPESA PER LIQUIDAZIONE AI BENEFICIARI DELL ICDB 1 SEMESTRE 2018  - VEDI ELENCO ALLEGATO IN ATTI - MANZATO ALESSANDRA;25/10/2018;1895;0;707;1;Spese correnti;4;Trasferimenti correnti;2;Trasferimenti correnti a Famiglie;2;Interventi assistenziali;999;Altri assegni e sussidi assistenziali;21/11/2018
3096;1;0;720;720;OMESSO NOMINATIVO NEL RISPETTO DELLA NORMATIVA SULLA PROTEZIONE DATI PERSONALI; ;ASSUNZIONE IMPEGNI DI SPESA PER LIQUIDAZIONE AI BENEFICIARI DELL ICDB 1 SEMESTRE 2018  - VEDI ELENCO ALLEGATO IN ATTI - MARCOLIN FEDERICO;25/10/2018;1895;0;707;1;Spese correnti;4;Trasferimenti correnti;2;Trasferimenti correnti a Famiglie;2;Interventi assistenziali;999;Altri assegni e sussidi assistenziali;25/10/2018
3097;1;0;720;720;OMESSO NOMINATIVO NEL RISPETTO DELLA NORMATIVA SULLA PROTEZIONE DATI PERSONALI; ;ASSUNZIONE IMPEGNI DI SPESA PER LIQUIDAZIONE AI BENEFICIARI DELL ICDB 1 SEMESTRE 2018  - VEDI ELENCO ALLEGATO IN ATTI - MARIOTTO ALMERINA;25/10/2018;1895;0;707;1;Spese correnti;4;Trasferimenti correnti;2;Trasferimenti correnti a Famiglie;2;Interventi assistenziali;999;Altri assegni e sussidi assistenziali;25/10/2018
3098;1;0;720;720;OMESSO NOMINATIVO NEL RISPETTO DELLA NORMATIVA SULLA PROTEZIONE DATI PERSONALI; ;ASSUNZIONE IMPEGNI DI SPESA PER LIQUIDAZIONE AI BENEFICIARI DELL ICDB 1 SEMESTRE 2018  - VEDI ELENCO ALLEGATO IN ATTI - MATTIUZZI AURELIA;25/10/2018;1895;0;707;1;Spese correnti;4;Trasferimenti correnti;2;Trasferimenti correnti a Famiglie;2;Interventi assistenziali;999;Altri assegni e sussidi assistenziali;25/10/2018
3099;1;0;720;720;OMESSO NOMINATIVO NEL RISPETTO DELLA NORMATIVA SULLA PROTEZIONE DATI PERSONALI; ;ASSUNZIONE IMPEGNI DI SPESA PER LIQUIDAZIONE AI BENEFICIARI DELL ICDB 1 SEMESTRE 2018  - VEDI ELENCO ALLEGATO IN ATTI - MATTIUZZO BRUNO;25/10/2018;1895;0;707;1;Spese correnti;4;Trasferimenti correnti;2;Trasferimenti correnti a Famiglie;2;Interventi assistenziali;999;Altri assegni e sussidi assistenziali;25/10/2018
3100;1;0;720;720;OMESSO NOMINATIVO NEL RISPETTO DELLA NORMATIVA SULLA PROTEZIONE DATI PERSONALI; ;ASSUNZIONE IMPEGNI DI SPESA PER LIQUIDAZIONE AI BENEFICIARI DELL ICDB 1 SEMESTRE 2018  - VEDI ELENCO ALLEGATO IN ATTI - MENEGHEL PAOLO;25/10/2018;1895;0;707;1;Spese correnti;4;Trasferimenti correnti;2;Trasferimenti correnti a Famiglie;2;Interventi assistenziali;999;Altri assegni e sussidi assistenziali;25/10/2018
3101;1;0;720;720;OMESSO NOMINATIVO NEL RISPETTO DELLA NORMATIVA SULLA PROTEZIONE DATI PERSONALI; ;ASSUNZIONE IMPEGNI DI SPESA PER LIQUIDAZIONE AI BENEFICIARI DELL ICDB 1 SEMESTRE 2018  - VEDI ELENCO ALLEGATO IN ATTI - MIGOTTO GIUSEPPINA NATALINA;25/10/2018;1895;0;707;1;Spese correnti;4;Trasferimenti correnti;2;Trasferimenti correnti a Famiglie;2;Interventi assistenziali;999;Altri assegni e sussidi assistenziali;25/10/2018
3102;1;0;720;720;OMESSO NOMINATIVO NEL RISPETTO DELLA NORMATIVA SULLA PROTEZIONE DATI PERSONALI; ;ASSUNZIONE IMPEGNI DI SPESA PER LIQUIDAZIONE AI BENEFICIARI DELL ICDB 1 SEMESTRE 2018  - VEDI ELENCO ALLEGATO IN ATTI - MINERVINI MARIA;25/10/2018;1895;0;707;1;Spese correnti;4;Trasferimenti correnti;2;Trasferimenti correnti a Famiglie;2;Interventi assistenziali;999;Altri assegni e sussidi assistenziali;25/10/2018
3103;1;0;720;720;OMESSO NOMINATIVO NEL RISPETTO DELLA NORMATIVA SULLA PROTEZIONE DATI PERSONALI; ;ASSUNZIONE IMPEGNI DI SPESA PER LIQUIDAZIONE AI BENEFICIARI DELL ICDB 1 SEMESTRE 2018  - VEDI ELENCO ALLEGATO IN ATTI - MORANDO GIORGIO;25/10/2018;1895;0;707;1;Spese correnti;4;Trasferimenti correnti;2;Trasferimenti correnti a Famiglie;2;Interventi assistenziali;999;Altri assegni e sussidi assistenziali;25/10/2018
3104;1;0;720;720;OMESSO NOMINATIVO NEL RISPETTO DELLA NORMATIVA SULLA PROTEZIONE DATI PERSONALI; ;ASSUNZIONE IMPEGNI DI SPESA PER LIQUIDAZIONE AI BENEFICIARI DELL ICDB 1 SEMESTRE 2018  - VEDI ELENCO ALLEGATO IN ATTI - MUSTAFI MEVAIP;25/10/2018;1895;0;707;1;Spese correnti;4;Trasferimenti correnti;2;Trasferimenti correnti a Famiglie;2;Interventi assistenziali;999;Altri assegni e sussidi assistenziali;25/10/2018
3105;1;0;720;720;OMESSO NOMINATIVO NEL RISPETTO DELLA NORMATIVA SULLA PROTEZIONE DATI PERSONALI; ;ASSUNZIONE IMPEGNI DI SPESA PER LIQUIDAZIONE AI BENEFICIARI DELL ICDB 1 SEMESTRE 2018  - VEDI ELENCO ALLEGATO IN ATTI - NASUFOSKI ARGJEN;25/10/2018;1895;0;707;1;Spese correnti;4;Trasferimenti correnti;2;Trasferimenti correnti a Famiglie;2;Interventi assistenziali;999;Altri assegni e sussidi assistenziali;25/10/2018
3106;1;0;120;120;OMESSO NOMINATIVO NEL RISPETTO DELLA NORMATIVA SULLA PROTEZIONE DATI PERSONALI; ;ASSUNZIONE IMPEGNI DI SPESA PER LIQUIDAZIONE AI BENEFICIARI DELL ICDB 1 SEMESTRE 2018  - VEDI ELENCO ALLEGATO IN ATTI - NIERO INES;25/10/2018;1895;0;707;1;Spese correnti;4;Trasferimenti correnti;2;Trasferimenti correnti a Famiglie;2;Interventi assistenziali;999;Altri assegni e sussidi assistenziali;25/10/2018
3107;1;0;120;120;OMESSO NOMINATIVO NEL RISPETTO DELLA NORMATIVA SULLA PROTEZIONE DATI PERSONALI; ;ASSUNZIONE IMPEGNI DI SPESA PER LIQUIDAZIONE AI BENEFICIARI DELL ICDB 1 SEMESTRE 2018  - VEDI ELENCO ALLEGATO IN ATTI - NOSELLA ANNA;25/10/2018;1895;0;707;1;Spese correnti;4;Trasferimenti correnti;2;Trasferimenti correnti a Famiglie;2;Interventi assistenziali;999;Altri assegni e sussidi assistenziali;25/10/2018
3108;1;0;720;720;OMESSO NOMINATIVO NEL RISPETTO DELLA NORMATIVA SULLA PROTEZIONE DATI PERSONALI; ;ASSUNZIONE IMPEGNI DI SPESA PER LIQUIDAZIONE AI BENEFICIARI DELL ICDB 1 SEMESTRE 2018  - VEDI ELENCO ALLEGATO IN ATTI - ODORICO ANNA MARIA;25/10/2018;1895;0;707;1;Spese correnti;4;Trasferimenti correnti;2;Trasferimenti correnti a Famiglie;2;Interventi assistenziali;999;Altri assegni e sussidi assistenziali;25/10/2018
3109;1;0;720;720;OMESSO NOMINATIVO NEL RISPETTO DELLA NORMATIVA SULLA PROTEZIONE DATI PERSONALI; ;ASSUNZIONE IMPEGNI DI SPESA PER LIQUIDAZIONE AI BENEFICIARI DELL ICDB 1 SEMESTRE 2018  - VEDI ELENCO ALLEGATO IN ATTI - ORLANDINI VIRGINIA;25/10/2018;1895;0;707;1;Spese correnti;4;Trasferimenti correnti;2;Trasferimenti correnti a Famiglie;2;Interventi assistenziali;999;Altri assegni e sussidi assistenziali;25/10/2018
3110;1;0;720;720;OMESSO NOMINATIVO NEL RISPETTO DELLA NORMATIVA SULLA PROTEZIONE DATI PERSONALI; ;ASSUNZIONE IMPEGNI DI SPESA PER LIQUIDAZIONE AI BENEFICIARI DELL ICDB 1 SEMESTRE 2018  - VEDI ELENCO ALLEGATO IN ATTI - OSMANI FERIDE;25/10/2018;1895;0;707;1;Spese correnti;4;Trasferimenti correnti;2;Trasferimenti correnti a Famiglie;2;Interventi assistenziali;999;Altri assegni e sussidi assistenziali;25/10/2018
3111;1;0;720;720;OMESSO NOMINATIVO NEL RISPETTO DELLA NORMATIVA SULLA PROTEZIONE DATI PERSONALI; ;ASSUNZIONE IMPEGNI DI SPESA PER LIQUIDAZIONE AI BENEFICIARI DELL ICDB 1 SEMESTRE 2018  - VEDI ELENCO ALLEGATO IN ATTI - OSTAN ELISABETTA;25/10/2018;1895;0;707;1;Spese correnti;4;Trasferimenti correnti;2;Trasferimenti correnti a Famiglie;2;Interventi assistenziali;999;Altri assegni e sussidi assistenziali;25/10/2018
3112;1;0;720;720;OMESSO NOMINATIVO NEL RISPETTO DELLA NORMATIVA SULLA PROTEZIONE DATI PERSONALI; ;ASSUNZIONE IMPEGNI DI SPESA PER LIQUIDAZIONE AI BENEFICIARI DELL ICDB 1 SEMESTRE 2018  - VEDI ELENCO ALLEGATO IN ATTI - OSTANEL ELDA;25/10/2018;1895;0;707;1;Spese correnti;4;Trasferimenti correnti;2;Trasferimenti correnti a Famiglie;2;Interventi assistenziali;999;Altri assegni e sussidi assistenziali;25/10/2018
3113;1;0;720;720;OMESSO NOMINATIVO NEL RISPETTO DELLA NORMATIVA SULLA PROTEZIONE DATI PERSONALI; ;ASSUNZIONE IMPEGNI DI SPESA PER LIQUIDAZIONE AI BENEFICIARI DELL ICDB 1 SEMESTRE 2018  - VEDI ELENCO ALLEGATO IN ATTI - PAGLIARINI ELVIA;25/10/2018;1895;0;707;1;Spese correnti;4;Trasferimenti correnti;2;Trasferimenti correnti a Famiglie;2;Interventi assistenziali;999;Altri assegni e sussidi assistenziali;25/10/2018
3114;1;0;720;720;OMESSO NOMINATIVO NEL RISPETTO DELLA NORMATIVA SULLA PROTEZIONE DATI PERSONALI; ;ASSUNZIONE IMPEGNI DI SPESA PER LIQUIDAZIONE AI BENEFICIARI DELL ICDB 1 SEMESTRE 2018  - VEDI ELENCO ALLEGATO IN ATTI - PARPINEL ASSUNTA;25/10/2018;1895;0;707;1;Spese correnti;4;Trasferimenti correnti;2;Trasferimenti correnti a Famiglie;2;Interventi assistenziali;999;Altri assegni e sussidi assistenziali;25/10/2018
3115;1;0;720;720;OMESSO NOMINATIVO NEL RISPETTO DELLA NORMATIVA SULLA PROTEZIONE DATI PERSONALI; ;ASSUNZIONE IMPEGNI DI SPESA PER LIQUIDAZIONE AI BENEFICIARI DELL ICDB 1 SEMESTRE 2018  - VEDI ELENCO ALLEGATO IN ATTI - PASIAN MARIAGRAZIA;25/10/2018;1895;0;707;1;Spese correnti;4;Trasferimenti correnti;2;Trasferimenti correnti a Famiglie;2;Interventi assistenziali;999;Altri assegni e sussidi assistenziali;25/10/2018
3116;1;0;720;720;OMESSO NOMINATIVO NEL RISPETTO DELLA NORMATIVA SULLA PROTEZIONE DATI PERSONALI; ;ASSUNZIONE IMPEGNI DI SPESA PER LIQUIDAZIONE AI BENEFICIARI DELL ICDB 1 SEMESTRE 2018  - VEDI ELENCO ALLEGATO IN ATTI - PAVAN ROBERTA;25/10/2018;1895;0;707;1;Spese correnti;4;Trasferimenti correnti;2;Trasferimenti correnti a Famiglie;2;Interventi assistenziali;999;Altri assegni e sussidi assistenziali;25/10/2018
3117;1;0;720;720;OMESSO NOMINATIVO NEL RISPETTO DELLA NORMATIVA SULLA PROTEZIONE DATI PERSONALI; ;ASSUNZIONE IMPEGNI DI SPESA PER LIQUIDAZIONE AI BENEFICIARI DELL ICDB 1 SEMESTRE 2018  - VEDI ELENCO ALLEGATO IN ATTI - PAVAN LUIGI;25/10/2018;1895;0;707;1;Spese correnti;4;Trasferimenti correnti;2;Trasferimenti correnti a Famiglie;2;Interventi assistenziali;999;Altri assegni e sussidi assistenziali;25/10/2018
3118;1;0;360;360;OMESSO NOMINATIVO NEL RISPETTO DELLA NORMATIVA SULLA PROTEZIONE DATI PERSONALI; ;ASSUNZIONE IMPEGNI DI SPESA PER LIQUIDAZIONE AI BENEFICIARI DELL ICDB 1 SEMESTRE 2018  - VEDI ELENCO ALLEGATO IN ATTI - PAVANELLO ELEONORA;25/10/2018;1895;0;707;1;Spese correnti;4;Trasferimenti correnti;2;Trasferimenti correnti a Famiglie;2;Interventi assistenziali;999;Altri assegni e sussidi assistenziali;25/10/2018
3119;1;0;720;720;OMESSO NOMINATIVO NEL RISPETTO DELLA NORMATIVA SULLA PROTEZIONE DATI PERSONALI; ;ASSUNZIONE IMPEGNI DI SPESA PER LIQUIDAZIONE AI BENEFICIARI DELL ICDB 1 SEMESTRE 2018  - VEDI ELENCO ALLEGATO IN ATTI - PERISSINOTTO FEDERICO;25/10/2018;1895;0;707;1;Spese correnti;4;Trasferimenti correnti;2;Trasferimenti correnti a Famiglie;2;Interventi assistenziali;999;Altri assegni e sussidi assistenziali;25/10/2018
3120;1;0;720;720;OMESSO NOMINATIVO NEL RISPETTO DELLA NORMATIVA SULLA PROTEZIONE DATI PERSONALI; ;ASSUNZIONE IMPEGNI DI SPESA PER LIQUIDAZIONE AI BENEFICIARI DELL ICDB 1 SEMESTRE 2018  - VEDI ELENCO ALLEGATO IN ATTI - PEZZINI LEOPOLDO;25/10/2018;1895;0;707;1;Spese correnti;4;Trasferimenti correnti;2;Trasferimenti correnti a Famiglie;2;Interventi assistenziali;999;Altri assegni e sussidi assistenziali;25/10/2018
3121;1;0;720;720;OMESSO NOMINATIVO NEL RISPETTO DELLA NORMATIVA SULLA PROTEZIONE DATI PERSONALI; ;ASSUNZIONE IMPEGNI DI SPESA PER LIQUIDAZIONE AI BENEFICIARI DELL ICDB 1 SEMESTRE 2018  - VEDI ELENCO ALLEGATO IN ATTI - PITZALIS ANTONIO;25/10/2018;1895;0;707;1;Spese correnti;4;Trasferimenti correnti;2;Trasferimenti correnti a Famiglie;2;Interventi assistenziali;999;Altri assegni e sussidi assistenziali;25/10/2018
3122;1;0;720;720;OMESSO NOMINATIVO NEL RISPETTO DELLA NORMATIVA SULLA PROTEZIONE DATI PERSONALI; ;ASSUNZIONE IMPEGNI DI SPESA PER LIQUIDAZIONE AI BENEFICIARI DELL ICDB 1 SEMESTRE 2018  - VEDI ELENCO ALLEGATO IN ATTI - PIVETTA EMMA CHIARA;25/10/2018;1895;0;707;1;Spese correnti;4;Trasferimenti correnti;2;Trasferimenti correnti a Famiglie;2;Interventi assistenziali;999;Altri assegni e sussidi assistenziali;25/10/2018
3123;1;0;720;720;OMESSO NOMINATIVO NEL RISPETTO DELLA NORMATIVA SULLA PROTEZIONE DATI PERSONALI; ;ASSUNZIONE IMPEGNI DI SPESA PER LIQUIDAZIONE AI BENEFICIARI DELL ICDB 1 SEMESTRE 2018  - VEDI ELENCO ALLEGATO IN ATTI - PRATAVIERA TERESA;25/10/2018;1895;0;707;1;Spese correnti;4;Trasferimenti correnti;2;Trasferimenti correnti a Famiglie;2;Interventi assistenziali;999;Altri assegni e sussidi assistenziali;25/10/2018
3124;1;0;720;720;OMESSO NOMINATIVO NEL RISPETTO DELLA NORMATIVA SULLA PROTEZIONE DATI PERSONALI; ;ASSUNZIONE IMPEGNI DI SPESA PER LIQUIDAZIONE AI BENEFICIARI DELL ICDB 1 SEMESTRE 2018  - VEDI ELENCO ALLEGATO IN ATTI - PRATAVIERA ELSA;25/10/2018;1895;0;707;1;Spese correnti;4;Trasferimenti correnti;2;Trasferimenti correnti a Famiglie;2;Interventi assistenziali;999;Altri assegni e sussidi assistenziali;25/10/2018
3125;1;0;720;720;OMESSO NOMINATIVO NEL RISPETTO DELLA NORMATIVA SULLA PROTEZIONE DATI PERSONALI; ;ASSUNZIONE IMPEGNI DI SPESA PER LIQUIDAZIONE AI BENEFICIARI DELL ICDB 1 SEMESTRE 2018  - VEDI ELENCO ALLEGATO IN ATTI - PRATAVIERA GIUSEPPE;25/10/2018;1895;0;707;1;Spese correnti;4;Trasferimenti correnti;2;Trasferimenti correnti a Famiglie;2;Interventi assistenziali;999;Altri assegni e sussidi assistenziali;25/10/2018
3126;1;0;480;480;OMESSO NOMINATIVO NEL RISPETTO DELLA NORMATIVA SULLA PROTEZIONE DATI PERSONALI; ;ASSUNZIONE IMPEGNI DI SPESA PER LIQUIDAZIONE AI BENEFICIARI DELL ICDB 1 SEMESTRE 2018  - VEDI ELENCO ALLEGATO IN ATTI - RENATO ALBERTO;25/10/2018;1895;0;707;1;Spese correnti;4;Trasferimenti correnti;2;Trasferimenti correnti a Famiglie;2;Interventi assistenziali;999;Altri assegni e sussidi assistenziali;25/10/2018
3127;1;0;720;720;OMESSO NOMINATIVO NEL RISPETTO DELLA NORMATIVA SULLA PROTEZIONE DATI PERSONALI; ;ASSUNZIONE IMPEGNI DI SPESA PER LIQUIDAZIONE AI BENEFICIARI DELL ICDB 1 SEMESTRE 2018  - VEDI ELENCO ALLEGATO IN ATTI - RENATO GIULIA;25/10/2018;1895;0;707;1;Spese correnti;4;Trasferimenti correnti;2;Trasferimenti correnti a Famiglie;2;Interventi assistenziali;999;Altri assegni e sussidi assistenziali;25/10/2018
3128;1;0;720;720;OMESSO NOMINATIVO NEL RISPETTO DELLA NORMATIVA SULLA PROTEZIONE DATI PERSONALI; ;ASSUNZIONE IMPEGNI DI SPESA PER LIQUIDAZIONE AI BENEFICIARI DELL ICDB 1 SEMESTRE 2018  - VEDI ELENCO ALLEGATO IN ATTI - RIZZI DORINA;25/10/2018;1895;0;707;1;Spese correnti;4;Trasferimenti correnti;2;Trasferimenti correnti a Famiglie;2;Interventi assistenziali;999;Altri assegni e sussidi assistenziali;25/10/2018
3129;1;0;120;120;OMESSO NOMINATIVO NEL RISPETTO DELLA NORMATIVA SULLA PROTEZIONE DATI PERSONALI; ;ASSUNZIONE IMPEGNI DI SPESA PER LIQUIDAZIONE AI BENEFICIARI DELL ICDB 1 SEMESTRE 2018  - VEDI ELENCO ALLEGATO IN ATTI - RIZZIN MARIA;25/10/2018;1895;0;707;1;Spese correnti;4;Trasferimenti correnti;2;Trasferimenti correnti a Famiglie;2;Interventi assistenziali;999;Altri assegni e sussidi assistenziali;25/10/2018
3130;1;0;720;720;OMESSO NOMINATIVO NEL RISPETTO DELLA NORMATIVA SULLA PROTEZIONE DATI PERSONALI; ;ASSUNZIONE IMPEGNI DI SPESA PER LIQUIDAZIONE AI BENEFICIARI DELL ICDB 1 SEMESTRE 2018  - VEDI ELENCO ALLEGATO IN ATTI - ROCCHIO ORTENZIA FIORINDA;25/10/2018;1895;0;707;1;Spese correnti;4;Trasferimenti correnti;2;Trasferimenti correnti a Famiglie;2;Interventi assistenziali;999;Altri assegni e sussidi assistenziali;25/10/2018
3131;1;0;720;720;OMESSO NOMINATIVO NEL RISPETTO DELLA NORMATIVA SULLA PROTEZIONE DATI PERSONALI; ;ASSUNZIONE IMPEGNI DI SPESA PER LIQUIDAZIONE AI BENEFICIARI DELL ICDB 1 SEMESTRE 2018  - VEDI ELENCO ALLEGATO IN ATTI - ROCCO FERNANDA;25/10/2018;1895;0;707;1;Spese correnti;4;Trasferimenti correnti;2;Trasferimenti correnti a Famiglie;2;Interventi assistenziali;999;Altri assegni e sussidi assistenziali;25/10/2018
3132;1;0;720;720;OMESSO NOMINATIVO NEL RISPETTO DELLA NORMATIVA SULLA PROTEZIONE DATI PERSONALI; ;ASSUNZIONE IMPEGNI DI SPESA PER LIQUIDAZIONE AI BENEFICIARI DELL ICDB 1 SEMESTRE 2018  - VEDI ELENCO ALLEGATO IN ATTI - SALGARELLA ELEONORA;25/10/2018;1895;0;707;1;Spese correnti;4;Trasferimenti correnti;2;Trasferimenti correnti a Famiglie;2;Interventi assistenziali;999;Altri assegni e sussidi assistenziali;25/10/2018
3133;1;0;720;720;OMESSO NOMINATIVO NEL RISPETTO DELLA NORMATIVA SULLA PROTEZIONE DATI PERSONALI; ;ASSUNZIONE IMPEGNI DI SPESA PER LIQUIDAZIONE AI BENEFICIARI DELL ICDB 1 SEMESTRE 2018  - VEDI ELENCO ALLEGATO IN ATTI - SALGARELLA SARA;25/10/2018;1895;0;707;1;Spese correnti;4;Trasferimenti correnti;2;Trasferimenti correnti a Famiglie;2;Interventi assistenziali;999;Altri assegni e sussidi assistenziali;25/10/2018
3134;1;0;360;360;OMESSO NOMINATIVO NEL RISPETTO DELLA NORMATIVA SULLA PROTEZIONE DATI PERSONALI; ;ASSUNZIONE IMPEGNI DI SPESA PER LIQUIDAZIONE AI BENEFICIARI DELL ICDB 1 SEMESTRE 2018  - VEDI ELENCO ALLEGATO IN ATTI - SEGATEL BERNARDINO;25/10/2018;1895;0;707;1;Spese correnti;4;Trasferimenti correnti;2;Trasferimenti correnti a Famiglie;2;Interventi assistenziali;999;Altri assegni e sussidi assistenziali;25/10/2018
3135;1;0;480;480;OMESSO NOMINATIVO NEL RISPETTO DELLA NORMATIVA SULLA PROTEZIONE DATI PERSONALI; ;ASSUNZIONE IMPEGNI DI SPESA PER LIQUIDAZIONE AI BENEFICIARI DELL ICDB 1 SEMESTRE 2018  - VEDI ELENCO ALLEGATO IN ATTI - SEGATTO ALBERTO;25/10/2018;1895;0;707;1;Spese correnti;4;Trasferimenti correnti;2;Trasferimenti correnti a Famiglie;2;Interventi assistenziali;999;Altri assegni e sussidi assistenziali;25/10/2018
3136;1;0;600;600;OMESSO NOMINATIVO NEL RISPETTO DELLA NORMATIVA SULLA PROTEZIONE DATI PERSONALI; ;ASSUNZIONE IMPEGNI DI SPESA PER LIQUIDAZIONE AI BENEFICIARI DELL ICDB 1 SEMESTRE 2018  - VEDI ELENCO ALLEGATO IN ATTI - SFORZA TERSILLA;25/10/2018;1895;0;707;1;Spese correnti;4;Trasferimenti correnti;2;Trasferimenti correnti a Famiglie;2;Interventi assistenziali;999;Altri assegni e sussidi assistenziali;25/10/2018
3137;1;0;720;720;OMESSO NOMINATIVO NEL RISPETTO DELLA NORMATIVA SULLA PROTEZIONE DATI PERSONALI; ;ASSUNZIONE IMPEGNI DI SPESA PER LIQUIDAZIONE AI BENEFICIARI DELL ICDB 1 SEMESTRE 2018  - VEDI ELENCO ALLEGATO IN ATTI - SIMIONATO NIVES;25/10/2018;1895;0;707;1;Spese correnti;4;Trasferimenti correnti;2;Trasferimenti correnti a Famiglie;2;Interventi assistenziali;999;Altri assegni e sussidi assistenziali;25/10/2018
3138;1;0;720;720;OMESSO NOMINATIVO NEL RISPETTO DELLA NORMATIVA SULLA PROTEZIONE DATI PERSONALI; ;ASSUNZIONE IMPEGNI DI SPESA PER LIQUIDAZIONE AI BENEFICIARI DELL ICDB 1 SEMESTRE 2018  - VEDI ELENCO ALLEGATO IN ATTI - SPAGNOLO ANNA MARIA;25/10/2018;1895;0;707;1;Spese correnti;4;Trasferimenti correnti;2;Trasferimenti correnti a Famiglie;2;Interventi assistenziali;999;Altri assegni e sussidi assistenziali;25/10/2018
3139;1;0;720;720;OMESSO NOMINATIVO NEL RISPETTO DELLA NORMATIVA SULLA PROTEZIONE DATI PERSONALI; ;ASSUNZIONE IMPEGNI DI SPESA PER LIQUIDAZIONE AI BENEFICIARI DELL ICDB 1 SEMESTRE 2018  - VEDI ELENCO ALLEGATO IN ATTI - STRAZZA TERESINA;25/10/2018;1895;0;707;1;Spese correnti;4;Trasferimenti correnti;2;Trasferimenti correnti a Famiglie;2;Interventi assistenziali;999;Altri assegni e sussidi assistenziali;25/10/2018
3140;1;0;720;720;OMESSO NOMINATIVO NEL RISPETTO DELLA NORMATIVA SULLA PROTEZIONE DATI PERSONALI; ;ASSUNZIONE IMPEGNI DI SPESA PER LIQUIDAZIONE AI BENEFICIARI DELL ICDB 1 SEMESTRE 2018  - VEDI ELENCO ALLEGATO IN ATTI - TOMMASI BRUNA;25/10/2018;1895;0;707;1;Spese correnti;4;Trasferimenti correnti;2;Trasferimenti correnti a Famiglie;2;Interventi assistenziali;999;Altri assegni e sussidi assistenziali;25/10/2018
3141;1;0;720;720;OMESSO NOMINATIVO NEL RISPETTO DELLA NORMATIVA SULLA PROTEZIONE DATI PERSONALI; ;ASSUNZIONE IMPEGNI DI SPESA PER LIQUIDAZIONE AI BENEFICIARI DELL ICDB 1 SEMESTRE 2018  - VEDI ELENCO ALLEGATO IN ATTI - TONIOLO MARIA;25/10/2018;1895;0;707;1;Spese correnti;4;Trasferimenti correnti;2;Trasferimenti correnti a Famiglie;2;Interventi assistenziali;999;Altri assegni e sussidi assistenziali;25/10/2018
3142;1;0;720;720;OMESSO NOMINATIVO NEL RISPETTO DELLA NORMATIVA SULLA PROTEZIONE DATI PERSONALI; ;ASSUNZIONE IMPEGNI DI SPESA PER LIQUIDAZIONE AI BENEFICIARI DELL ICDB 1 SEMESTRE 2018  - VEDI ELENCO ALLEGATO IN ATTI - TORCELLI MARIA;25/10/2018;1895;0;707;1;Spese correnti;4;Trasferimenti correnti;2;Trasferimenti correnti a Famiglie;2;Interventi assistenziali;999;Altri assegni e sussidi assistenziali;25/10/2018
3143;1;0;120;120;OMESSO NOMINATIVO NEL RISPETTO DELLA NORMATIVA SULLA PROTEZIONE DATI PERSONALI; ;ASSUNZIONE IMPEGNI DI SPESA PER LIQUIDAZIONE AI BENEFICIARI DELL ICDB 1 SEMESTRE 2018  - VEDI ELENCO ALLEGATO IN ATTI - TUIS TERESINA;25/10/2018;1895;0;707;1;Spese correnti;4;Trasferimenti correnti;2;Trasferimenti correnti a Famiglie;2;Interventi assistenziali;999;Altri assegni e sussidi assistenziali;25/10/2018
3144;1;0;720;720;OMESSO NOMINATIVO NEL RISPETTO DELLA NORMATIVA SULLA PROTEZIONE DATI PERSONALI; ;ASSUNZIONE IMPEGNI DI SPESA PER LIQUIDAZIONE AI BENEFICIARI DELL ICDB 1 SEMESTRE 2018  - VEDI ELENCO ALLEGATO IN ATTI - VEDOATO MARIA;25/10/2018;1895;0;707;1;Spese correnti;4;Trasferimenti correnti;2;Trasferimenti correnti a Famiglie;2;Interventi assistenziali;999;Altri assegni e sussidi assistenziali;25/10/2018
3145;1;0;720;720;OMESSO NOMINATIVO NEL RISPETTO DELLA NORMATIVA SULLA PROTEZIONE DATI PERSONALI; ;ASSUNZIONE IMPEGNI DI SPESA PER LIQUIDAZIONE AI BENEFICIARI DELL ICDB 1 SEMESTRE 2018  - VEDI ELENCO ALLEGATO IN ATTI - VIAN LORENZO;25/10/2018;1895;0;707;1;Spese correnti;4;Trasferimenti correnti;2;Trasferimenti correnti a Famiglie;2;Interventi assistenziali;999;Altri assegni e sussidi assistenziali;25/10/2018
3146;1;0;720;720;OMESSO NOMINATIVO NEL RISPETTO DELLA NORMATIVA SULLA PROTEZIONE DATI PERSONALI; ;ASSUNZIONE IMPEGNI DI SPESA PER LIQUIDAZIONE AI BENEFICIARI DELL ICDB 1 SEMESTRE 2018  - VEDI ELENCO ALLEGATO IN ATTI - ZECCHINELLO EGIDIA;26/10/2018;1895;0;707;1;Spese correnti;4;Trasferimenti correnti;2;Trasferimenti correnti a Famiglie;2;Interventi assistenziali;999;Altri assegni e sussidi assistenziali;26/10/2018
3147;1;0;720;720;OMESSO NOMINATIVO NEL RISPETTO DELLA NORMATIVA SULLA PROTEZIONE DATI PERSONALI; ;ASSUNZIONE IMPEGNI DI SPESA PER LIQUIDAZIONE AI BENEFICIARI DELL ICDB 1 SEMESTRE 2018  - VEDI ELENCO ALLEGATO IN ATTI - ZORZETTO ENRICO;26/10/2018;1895;0;707;1;Spese correnti;4;Trasferimenti correnti;2;Trasferimenti correnti a Famiglie;2;Interventi assistenziali;999;Altri assegni e sussidi assistenziali;26/10/2018
3148;1;0;720;720;OMESSO NOMINATIVO NEL RISPETTO DELLA NORMATIVA SULLA PROTEZIONE DATI PERSONALI; ;ASSUNZIONE IMPEGNI DI SPESA PER LIQUIDAZIONE AI BENEFICIARI DELL ICDB 1 SEMESTRE 2018  - VEDI ELENCO ALLEGATO IN ATTI - ZUCCHETTO ONORINA;26/10/2018;1895;0;707;1;Spese correnti;4;Trasferimenti correnti;2;Trasferimenti correnti a Famiglie;2;Interventi assistenziali;999;Altri assegni e sussidi assistenziali;26/10/2018
3149;1;0;720;720;OMESSO NOMINATIVO NEL RISPETTO DELLA NORMATIVA SULLA PROTEZIONE DATI PERSONALI; ;ASSUNZIONE IMPEGNI DI SPESA PER LIQUIDAZIONE AI BENEFICIARI DELL ICDB 1 SEMESTRE 2018  - VEDI ELENCO ALLEGATO IN ATTI - ZULIANELLO MARCO;26/10/2018;1895;0;707;1;Spese correnti;4;Trasferimenti correnti;2;Trasferimenti correnti a Famiglie;2;Interventi assistenziali;999;Altri assegni e sussidi assistenziali;26/10/2018
3150;1;0;720;720;OMESSO NOMINATIVO NEL RISPETTO DELLA NORMATIVA SULLA PROTEZIONE DATI PERSONALI; ;ASSUNZIONE IMPEGNI DI SPESA PER LIQUIDAZIONE AI BENEFICIARI DELL ICDB 1 SEMESTRE 2018  - VEDI ELENCO ALLEGATO IN ATTI - ZULIANELLO ROMANA;26/10/2018;1895;0;707;1;Spese correnti;4;Trasferimenti correnti;2;Trasferimenti correnti a Famiglie;2;Interventi assistenziali;999;Altri assegni e sussidi assistenziali;26/10/2018
3151;1;0;720;720;OMESSO NOMINATIVO NEL RISPETTO DELLA NORMATIVA SULLA PROTEZIONE DATI PERSONALI; ;ASSUNZIONE IMPEGNI DI SPESA PER LIQUIDAZIONE AI BENEFICIARI DELL ICDB 1 SEMESTRE 2018  - VEDI ELENCO ALLEGATO IN ATTI - BELLOMO ADELINA MARIA;26/10/2018;1895;0;707;1;Spese correnti;4;Trasferimenti correnti;2;Trasferimenti correnti a Famiglie;2;Interventi assistenziali;999;Altri assegni e sussidi assistenziali;26/10/2018
3152;1;0;1.200,00;1.200,00;OMESSO NOMINATIVO NEL RISPETTO DELLA NORMATIVA SULLA PROTEZIONE DATI PERSONALI; ;ASSUNZIONE IMPEGNI DI SPESA PER LIQUIDAZIONE AI BENEFICIARI DELL ICDB 1 SEMESTRE 2018 E ICDM 2 TRIMESTRE 2018 - vedi elenco allegato - RIGON ARTURO;26/10/2018;1895;0;708;1;Spese correnti;4;Trasferimenti correnti;2;Trasferimenti correnti a Famiglie;2;Interventi assistenziali;999;Altri assegni e sussidi assistenziali;26/10/2018
3153;1;0;1.200,00;1.200,00;OMESSO NOMINATIVO NEL RISPETTO DELLA NORMATIVA SULLA PROTEZIONE DATI PERSONALI; ;ASSUNZIONE IMPEGNI DI SPESA PER LIQUIDAZIONE AI BENEFICIARI DELL ICDB 1 SEMESTRE 2018 E ICDM 2 TRIMESTRE 2018 - vedi elenco allegato - MICHIELETTO ROMEO;26/10/2018;1895;0;708;1;Spese correnti;4;Trasferimenti correnti;2;Trasferimenti correnti a Famiglie;2;Interventi assistenziali;999;Altri assegni e sussidi assistenziali;26/10/2018
3154;1;0;1.200,00;1.200,00;OMESSO NOMINATIVO NEL RISPETTO DELLA NORMATIVA SULLA PROTEZIONE DATI PERSONALI; ;ASSUNZIONE IMPEGNI DI SPESA PER LIQUIDAZIONE AI BENEFICIARI DELL ICDB 1 SEMESTRE 2018 E ICDM 2 TRIMESTRE 2018 - vedi elenco allegato - FINOTTO GIUSEPPE;26/10/2018;1895;0;708;1;Spese correnti;4;Trasferimenti correnti;2;Trasferimenti correnti a Famiglie;2;Interventi assistenziali;999;Altri assegni e sussidi assistenziali;26/10/2018
3155;1;0;1.200,00;1.200,00;OMESSO NOMINATIVO NEL RISPETTO DELLA NORMATIVA SULLA PROTEZIONE DATI PERSONALI; ;ASSUNZIONE IMPEGNI DI SPESA PER LIQUIDAZIONE AI BENEFICIARI DELL ICDB 1 SEMESTRE 2018 E ICDM 2 TRIMESTRE 2018 - vedi elenco allegato - ROCCO REGINA;26/10/2018;1895;0;708;1;Spese correnti;4;Trasferimenti correnti;2;Trasferimenti correnti a Famiglie;2;Interventi assistenziali;999;Altri assegni e sussidi assistenziali;26/10/2018
3156;1;0;1.200,00;1.200,00;OMESSO NOMINATIVO NEL RISPETTO DELLA NORMATIVA SULLA PROTEZIONE DATI PERSONALI; ;ASSUNZIONE IMPEGNI DI SPESA PER LIQUIDAZIONE AI BENEFICIARI DELL ICDB 1 SEMESTRE 2018 E ICDM 2 TRIMESTRE 2018 - vedi elenco allegato - ZAGO GIANFRANCO;26/10/2018;1895;0;708;1;Spese correnti;4;Trasferimenti correnti;2;Trasferimenti correnti a Famiglie;2;Interventi assistenziali;999;Altri assegni e sussidi assistenziali;26/10/2018
3157;1;0;1.200,00;1.200,00;OMESSO NOMINATIVO NEL RISPETTO DELLA NORMATIVA SULLA PROTEZIONE DATI PERSONALI; ;ASSUNZIONE IMPEGNI DI SPESA PER LIQUIDAZIONE AI BENEFICIARI DELL ICDB 1 SEMESTRE 2018 E ICDM 2 TRIMESTRE 2018 - vedi elenco allegato - MINUZ CLARA;26/10/2018;1895;0;708;1;Spese correnti;4;Trasferimenti correnti;2;Trasferimenti correnti a Famiglie;2;Interventi assistenziali;999;Altri assegni e sussidi assistenziali;26/10/2018
3158;1;0;1.200,00;1.200,00;OMESSO NOMINATIVO NEL RISPETTO DELLA NORMATIVA SULLA PROTEZIONE DATI PERSONALI; ;ASSUNZIONE IMPEGNI DI SPESA PER LIQUIDAZIONE AI BENEFICIARI DELL ICDB 1 SEMESTRE 2018 E ICDM 2 TRIMESTRE 2018 - vedi elenco allegato - CASAGRANDE ANTONIETTA;26/10/2018;1895;0;708;1;Spese correnti;4;Trasferimenti correnti;2;Trasferimenti correnti a Famiglie;2;Interventi assistenziali;999;Altri assegni e sussidi assistenziali;26/10/2018
3159;1;0;1.200,00;1.200,00;OMESSO NOMINATIVO NEL RISPETTO DELLA NORMATIVA SULLA PROTEZIONE DATI PERSONALI; ;ASSUNZIONE IMPEGNI DI SPESA PER LIQUIDAZIONE AI BENEFICIARI DELL ICDB 1 SEMESTRE 2018 E ICDM 2 TRIMESTRE 2018 - vedi elenco allegato - BATTISTON CARMELA;26/10/2018;1895;0;708;1;Spese correnti;4;Trasferimenti correnti;2;Trasferimenti correnti a Famiglie;2;Interventi assistenziali;999;Altri assegni e sussidi assistenziali;26/10/2018
3160;1;0;1.200,00;1.200,00;OMESSO NOMINATIVO NEL RISPETTO DELLA NORMATIVA SULLA PROTEZIONE DATI PERSONALI; ;ASSUNZIONE IMPEGNI DI SPESA PER LIQUIDAZIONE AI BENEFICIARI DELL ICDB 1 SEMESTRE 2018 E ICDM 2 TRIMESTRE 2018 - vedi elenco allegato - VIDOTTO LINA;26/10/2018;1895;0;708;1;Spese correnti;4;Trasferimenti correnti;2;Trasferimenti correnti a Famiglie;2;Interventi assistenziali;999;Altri assegni e sussidi assistenziali;26/10/2018
3161;1;0;1.200,00;1.200,00;OMESSO NOMINATIVO NEL RISPETTO DELLA NORMATIVA SULLA PROTEZIONE DATI PERSONALI; ;ASSUNZIONE IMPEGNI DI SPESA PER LIQUIDAZIONE AI BENEFICIARI DELL ICDB 1 SEMESTRE 2018 E ICDM 2 TRIMESTRE 2018 - vedi elenco allegato - BRAGATTO MARIA;26/10/2018;1895;0;708;1;Spese correnti;4;Trasferimenti correnti;2;Trasferimenti correnti a Famiglie;2;Interventi assistenziali;999;Altri assegni e sussidi assistenziali;26/10/2018
3162;1;0;1.200,00;1.200,00;OMESSO NOMINATIVO NEL RISPETTO DELLA NORMATIVA SULLA PROTEZIONE DATI PERSONALI; ;ASSUNZIONE IMPEGNI DI SPESA PER LIQUIDAZIONE AI BENEFICIARI DELL ICDB 1 SEMESTRE 2018 E ICDM 2 TRIMESTRE 2018 - vedi elenco allegato - RUBIN NATALINA;26/10/2018;1895;0;708;1;Spese correnti;4;Trasferimenti correnti;2;Trasferimenti correnti a Famiglie;2;Interventi assistenziali;999;Altri assegni e sussidi assistenziali;26/10/2018
3163;1;0;1.200,00;1.200,00;OMESSO NOMINATIVO NEL RISPETTO DELLA NORMATIVA SULLA PROTEZIONE DATI PERSONALI; ;ASSUNZIONE IMPEGNI DI SPESA PER LIQUIDAZIONE AI BENEFICIARI DELL ICDB 1 SEMESTRE 2018 E ICDM 2 TRIMESTRE 2018 - vedi elenco allegato - BINCOLETTO GIUSEPPE;26/10/2018;1895;0;708;1;Spese correnti;4;Trasferimenti correnti;2;Trasferimenti correnti a Famiglie;2;Interventi assistenziali;999;Altri assegni e sussidi assistenziali;26/10/2018
3164;1;0;1.200,00;1.200,00;OMESSO NOMINATIVO NEL RISPETTO DELLA NORMATIVA SULLA PROTEZIONE DATI PERSONALI; ;ASSUNZIONE IMPEGNI DI SPESA PER LIQUIDAZIONE AI BENEFICIARI DELL ICDB 1 SEMESTRE 2018 E ICDM 2 TRIMESTRE 2018 - vedi elenco allegato - ROSSI BRUNA;26/10/2018;1895;0;708;1;Spese correnti;4;Trasferimenti correnti;2;Trasferimenti correnti a Famiglie;2;Interventi assistenziali;999;Altri assegni e sussidi assistenziali;26/10/2018
3165;1;0;800;800;OMESSO NOMINATIVO NEL RISPETTO DELLA NORMATIVA SULLA PROTEZIONE DATI PERSONALI; ;ASSUNZIONE IMPEGNI DI SPESA PER LIQUIDAZIONE AI BENEFICIARI DELL ICDB 1 SEMESTRE 2018 E ICDM 2 TRIMESTRE 2018 - vedi elenco allegato - RIZZIN MARIA;26/10/2018;1895;0;708;1;Spese correnti;4;Trasferimenti correnti;2;Trasferimenti correnti a Famiglie;2;Interventi assistenziali;999;Altri assegni e sussidi assistenziali;26/10/2018
3166;1;0;1.200,00;1.200,00;OMESSO NOMINATIVO NEL RISPETTO DELLA NORMATIVA SULLA PROTEZIONE DATI PERSONALI; ;ASSUNZIONE IMPEGNI DI SPESA PER LIQUIDAZIONE AI BENEFICIARI DELL ICDB 1 SEMESTRE 2018 E ICDM 2 TRIMESTRE 2018 - vedi elenco allegato - FABRETTI URBANO;26/10/2018;1895;0;708;1;Spese correnti;4;Trasferimenti correnti;2;Trasferimenti correnti a Famiglie;2;Interventi assistenziali;999;Altri assegni e sussidi assistenziali;26/10/2018
3167;1;0;1.200,00;1.200,00;OMESSO NOMINATIVO NEL RISPETTO DELLA NORMATIVA SULLA PROTEZIONE DATI PERSONALI; ;ASSUNZIONE IMPEGNI DI SPESA PER LIQUIDAZIONE AI BENEFICIARI DELL ICDB 1 SEMESTRE 2018 E ICDM 2 TRIMESTRE 2018 - vedi elenco allegato  - PASCUTTO DIANA;26/10/2018;1895;0;708;1;Spese correnti;4;Trasferimenti correnti;2;Trasferimenti correnti a Famiglie;2;Interventi assistenziali;999;Altri assegni e sussidi assistenziali;26/10/2018
3168;1;0;1.200,00;1.200,00;OMESSO NOMINATIVO NEL RISPETTO DELLA NORMATIVA SULLA PROTEZIONE DATI PERSONALI; ;ASSUNZIONE IMPEGNI DI SPESA PER LIQUIDAZIONE AI BENEFICIARI DELL ICDB 1 SEMESTRE 2018 E ICDM 2 TRIMESTRE 2018 - vedi elenco allegato - MIGOTTO MARIO GAETANO;26/10/2018;1895;0;708;1;Spese correnti;4;Trasferimenti correnti;2;Trasferimenti correnti a Famiglie;2;Interventi assistenziali;999;Altri assegni e sussidi assistenziali;26/10/2018
3169;1;0;400;400;OMESSO NOMINATIVO NEL RISPETTO DELLA NORMATIVA SULLA PROTEZIONE DATI PERSONALI; ;ASSUNZIONE IMPEGNI DI SPESA PER LIQUIDAZIONE AI BENEFICIARI DELL ICDB 1 SEMESTRE 2018 E ICDM 2 TRIMESTRE 2018 - vedi elenco allegato - ZANOVELLO ERNESTO;26/10/2018;1895;0;708;1;Spese correnti;4;Trasferimenti correnti;2;Trasferimenti correnti a Famiglie;2;Interventi assistenziali;999;Altri assegni e sussidi assistenziali;26/10/2018
3170;1;0;1.200,00;1.200,00;OMESSO NOMINATIVO NEL RISPETTO DELLA NORMATIVA SULLA PROTEZIONE DATI PERSONALI; ;ASSUNZIONE IMPEGNI DI SPESA PER LIQUIDAZIONE AI BENEFICIARI DELL ICDB 1 SEMESTRE 2018 E ICDM 2 TRIMESTRE 2018 - vedi elenco allegato - GNES SANTINA;26/10/2018;1895;0;708;1;Spese correnti;4;Trasferimenti correnti;2;Trasferimenti correnti a Famiglie;2;Interventi assistenziali;999;Altri assegni e sussidi assistenziali;26/10/2018
3171;1;0;1.200,00;1.200,00;OMESSO NOMINATIVO NEL RISPETTO DELLA NORMATIVA SULLA PROTEZIONE DATI PERSONALI; ;ASSUNZIONE IMPEGNI DI SPESA PER LIQUIDAZIONE AI BENEFICIARI DELL ICDB 1 SEMESTRE 2018 E ICDM 2 TRIMESTRE 2018 - vedi elenco allegato - DAL SIE' ROMANA MARIA;26/10/2018;1895;0;708;1;Spese correnti;4;Trasferimenti correnti;2;Trasferimenti correnti a Famiglie;2;Interventi assistenziali;999;Altri assegni e sussidi assistenziali;26/10/2018
3172;1;0;1.200,00;1.200,00;OMESSO NOMINATIVO NEL RISPETTO DELLA NORMATIVA SULLA PROTEZIONE DATI PERSONALI; ;ASSUNZIONE IMPEGNI DI SPESA PER LIQUIDAZIONE AI BENEFICIARI DELL ICDB 1 SEMESTRE 2018 E ICDM 2 TRIMESTRE 2018 - vedi elenco allegato - DE ZAN BRUNA;26/10/2018;1895;0;708;1;Spese correnti;4;Trasferimenti correnti;2;Trasferimenti correnti a Famiglie;2;Interventi assistenziali;999;Altri assegni e sussidi assistenziali;26/10/2018
3173;1;0;800;800;OMESSO NOMINATIVO NEL RISPETTO DELLA NORMATIVA SULLA PROTEZIONE DATI PERSONALI; ;ASSUNZIONE IMPEGNI DI SPESA PER LIQUIDAZIONE AI BENEFICIARI DELL ICDB 1 SEMESTRE 2018 E ICDM 2 TRIMESTRE 2018 - vedi elenco allegato- SEGATEL BERNARDINO;26/10/2018;1895;0;708;1;Spese correnti;4;Trasferimenti correnti;2;Trasferimenti correnti a Famiglie;2;Interventi assistenziali;999;Altri assegni e sussidi assistenziali;26/10/2018
3174;1;0;5.437,54;5.437,54;PROV.REL.S.MARZIANO DI DON ORIONE; ;SALDO Fatt.n. 00201/000110/18  del 31/08/2018 RETTA DI RICOVERO DISABILI IV BIM. 2018 SIG.RA V.G.;26/10/2018;1880;0;231;1;Spese correnti;3;Acquisto di beni e servizi;2;Acquisto di servizi;15;Contratti di servizio pubblico;8;Contratti di servizio di assistenza sociale residenziale e semiresidenziale;26/10/2018
3178;1;0;3.187,43;3.187,43;IVA TESORIERE COMUNALE; ;Versamento IVA commerciale mese di ottobre 2018;05/11/2018;2155;0;757;1;Spese correnti;10;Altre spese correnti;3;Versamenti IVA a debito;1;Versamenti IVA a debito per le gestioni commerciali;1;Versamenti IVA a debito per le gestioni commerciali;05/11/2018
3181;1;0;6.588,00;6.588,00;FALEGNAMERIA BIASOTTO RENZO;ZF421507D5;SALDO Fatt.n. FATTPA 1_18  del 03/09/2018 Fornitura e posa porta blindata artigianale su misura per uffici di polizia;07/11/2018;3039;0;974;2;Spese in conto capitale;2;Investimenti fissi lordi e acquisto di terreni;1;Beni materiali;9;Beni immobili;2;Fabbricati ad uso commerciale;07/11/2018
3182;1;0;2,3;25,15;TESORIERE COMUNALE; ;SERVIZI POS-COMMISSIONI TRANSATO POS      COMUNE DI SAN STINO DI        LIVENZA98 COMM 009264607 TC 01MONETA GEST SETEFI5 (P.     105 -R.    2900);07/11/2018;1066;0;355;1;Spese correnti;3;Acquisto di beni e servizi;2;Acquisto di servizi;17;Servizi finanziari;1;Commissioni per servizi finanziari;07/11/2018
3182;2;0;3,23;25,15;TESORIERE COMUNALE; ;SERVIZI POS-COMMISSIONI TRANSATO POS      COMUNE DI SAN STINO DI        LIVENZA98 COMM 009264607 TC 16VISA GEST SETEFI5 (P.     106 -R.    2901);07/11/2018;1066;0;355;1;Spese correnti;3;Acquisto di beni e servizi;2;Acquisto di servizi;17;Servizi finanziari;1;Commissioni per servizi finanziari;07/11/2018
3182;3;0;6,1;25,15;TESORIERE COMUNALE; ;SERVIZI POS-COMMISSIONI TRANSATO POS      COMUNE DI SAN STINO DI        LIVENZA98 COMM 009264607 TC 21MC GEST SETEFI5 (P.     107 -R.    2902);07/11/2018;1066;0;355;1;Spese correnti;3;Acquisto di beni e servizi;2;Acquisto di servizi;17;Servizi finanziari;1;Commissioni per servizi finanziari;07/11/2018
3182;4;0;6,59;25,15;TESORIERE COMUNALE; ;SERVIZI POS-COMMISSIONI TRANSATO POS      COMUNE DI SAN STINO DI        LIVENZA98 COMM 009264607 TC 71MAESTRO GEST SETEFI5 (P.     108 -R.    2903);07/11/2018;1066;0;355;1;Spese correnti;3;Acquisto di beni e servizi;2;Acquisto di servizi;17;Servizi finanziari;1;Commissioni per servizi finanziari;07/11/2018
3182;5;0;6,93;25,15;TESORIERE COMUNALE; ;SERVIZI POS-COMMISSIONI TRANSATO POS      COMUNE DI SAN STINO DI        LIVENZA98 COMM 009264607 TC 06PAGOBAN GEST SETEFI5 (P.     104 -R.    2899);07/11/2018;1066;0;355;1;Spese correnti;3;Acquisto di beni e servizi;2;Acquisto di servizi;17;Servizi finanziari;1;Commissioni per servizi finanziari;07/11/2018
3184;1;0;640,66;640,66;OMESSO NOMINATIVO NEL RISPETTO DELLA NORMATIVA SULLA PROTEZIONE DATI PERSONALI; ;Pagamento retta anno 2018 soggetto n. AA18017 - compartecipazione retta di ricovero mese di settembre 2018 - iban IT75W89653620003040000012;09/11/2018;1883;0;238;1;Spese correnti;4;Trasferimenti correnti;2;Trasferimenti correnti a Famiglie;2;Interventi assistenziali;999;Altri assegni e sussidi assistenziali;09/11/2018
3188;1;0;1.085,80;1.085,80;INTRA CREAZIONI D'INTERNI SRL UNIPERSONALE;ZB12512DAF;SALDO Fatt.n. 2/FE/2018  del 15/10/2018 SOSTITUZIONE COPPIA BRACCIA PER TENDA DA SOLE C/O CUCINA SCUOLA PIAGET;09/11/2018;3039;0;718;2;Spese in conto capitale;2;Investimenti fissi lordi e acquisto di terreni;1;Beni materiali;9;Beni immobili;2;Fabbricati ad uso commerciale;09/11/2018
3190;1;0;246,6;1.966,03;PANIFICI ZANI SAS DI ZANI UMBERTO E C.;Z6024CC4E7;SALDO Fatt.n. 018  del 31/10/2018 FORNITURA PANE C/O SCUOLA INFANZIA SACRO CUORE OTTOBRE 2018;09/11/2018;1415;0;682;1;Spese correnti;3;Acquisto di beni e servizi;1;Acquisto di beni;2;Altri beni di consumo;11;Generi alimentari;09/11/2018
3190;2;0;1.719,43;1.966,03;PANIFICI ZANI SAS DI ZANI UMBERTO E C.;Z6024CC4E7;SALDO Fatt.n. 019  del 31/10/2018 FORNITURA PANE CENTRO COTTURE PIAGET - MENSA LA SALUTE OTTOBRE 2018;09/11/2018;1415;0;682;1;Spese correnti;3;Acquisto di beni e servizi;1;Acquisto di beni;2;Altri beni di consumo;11;Generi alimentari;09/11/2018
3191;1;0;111,84;111,84;MYO SPA;Z3825663D8;SALDO Fatt.n. 2040/180027282  del 26/10/2018 T.ORIG.H.P. LJ PRO 400 M426 3,1K CF226A;09/11/2018;1070;0;269;1;Spese correnti;3;Acquisto di beni e servizi;1;Acquisto di beni;2;Altri beni di consumo;6;Materiale informatico;09/11/2018
3192;1;0;212,28;212,28;MYO SPA;Z8E255B3FD;ACCONTO Fatt.n. 2040/180027281  del 26/10/2018 N.2 SEDIE TRENDY C/B REG.SEDILE BLU RETE NERO UFFICIO TRIBUTI ED ECONOMATO;09/11/2018;3189;0;743;2;Spese in conto capitale;2;Investimenti fissi lordi e acquisto di terreni;1;Beni materiali;6;Macchine per ufficio;1;Macchine per ufficio;09/11/2018
3193;1;0;212,28;212,28;MYO SPA;Z8E255B3FD;SALDO Fatt.n. 2040/180027281  del 26/10/2018 N.2 SEDIE TRENDY C/B REG.SEDILE BLU RETE NERO UFFICIO TRIBUTI ED ECONOMATO;09/11/2018;3107;0;276;2;Spese in conto capitale;2;Investimenti fissi lordi e acquisto di terreni;1;Beni materiali;6;Macchine per ufficio;1;Macchine per ufficio;09/11/2018
3194;1;0;164,52;164,52;MYO SPA;ZF825663A1;ACCONTO Fatt.n. 2040/180028217  del 31/10/2018 SERIE-REGISTRI STATO CIVILE ALLESTITI UFFICIO CAPOLUOGO E DELEGAZIONE;09/11/2018;1069;0;273;1;Spese correnti;3;Acquisto di beni e servizi;1;Acquisto di beni;2;Altri beni di consumo;1;Carta, cancelleria e stampati;09/11/2018
3195;1;0;310,01;310,01;MYO SPA;ZF825663A1;SALDO Fatt.n. 2040/180028217  del 31/10/2018 SERIE-REGISTRI STATO CIVILE ALLESTITI UFFICIO CAPOLUOGO E DELEGAZIONE;09/11/2018;1108;0;266;1;Spese correnti;3;Acquisto di beni e servizi;1;Acquisto di beni;2;Altri beni di consumo;1;Carta, cancelleria e stampati;09/11/2018
3196;1;0;7,08;7,08;MYO SPA;ZF825663A1;ACCONTO Fatt.n. 2040/180028216  del 31/10/2018 TIMBRI 2 RIGHE;09/11/2018;1250;0;262;1;Spese correnti;3;Acquisto di beni e servizi;1;Acquisto di beni;2;Altri beni di consumo;1;Carta, cancelleria e stampati;09/11/2018
3197;1;0;7,07;7,07;MYO SPA;ZF825663A1;SALDO Fatt.n. 2040/180028216  del 31/10/2018 TIMBRI 2 RIGHE;09/11/2018;1087;0;272;1;Spese correnti;3;Acquisto di beni e servizi;1;Acquisto di beni;2;Altri beni di consumo;1;Carta, cancelleria e stampati;09/11/2018
3198;1;0;1.924,00;1.924,00;DOMUS VESTRA SPA S.MARGHERITA RES.; ;SALDO Fatt.n. 123/PA  del 31/10/2018 RETTA MESE DI OTTOBRE 2018 SIG.RA D.G.;09/11/2018;1877;0;234;1;Spese correnti;3;Acquisto di beni e servizi;2;Acquisto di servizi;15;Contratti di servizio pubblico;8;Contratti di servizio di assistenza sociale residenziale e semiresidenziale;09/11/2018
3199;1;0;1.924,00;1.924,00;DOMUS VESTRA SPA S.MARGHERITA RES.; ;SALDO Fatt.n. 122/PA  del 31/10/2018 RETTA MESE DI OTTOBRE 2018 SIG.M.S.;09/11/2018;1880;0;230;1;Spese correnti;3;Acquisto di beni e servizi;2;Acquisto di servizi;15;Contratti di servizio pubblico;8;Contratti di servizio di assistenza sociale residenziale e semiresidenziale;09/11/2018
3200;1;0;5.349,87;5.349,87;PROV.REL.S.MARZIANO DI DON ORIONE; ;SALDO Fatt.n. 00256/000110/18  del 31/10/2018 RETTA DI RICOVERO DISABILI V BIM. 2018 SIG.RA V.G.;09/11/2018;1880;0;231;1;Spese correnti;3;Acquisto di beni e servizi;2;Acquisto di servizi;15;Contratti di servizio pubblico;8;Contratti di servizio di assistenza sociale residenziale e semiresidenziale;09/11/2018
3201;1;0;2.635,00;2.635,00;ASSOCIAZ. IL GIARDINO DI HANA ONLUS; ;Protocollo n. 18410 del 05-11-2018;09/11/2018;1783;0;223;1;Spese correnti;3;Acquisto di beni e servizi;2;Acquisto di servizi;15;Contratti di servizio pubblico;8;Contratti di servizio di assistenza sociale residenziale e semiresidenziale;09/11/2018
3202;1;0;25,99;25,99;TE.MA. UFFICIO S.R.L.;Z331EBEF59;ACCONTO Fatt.n. 000915/PA  del 29/10/2018 NOLEGGIO MULTIF. KYOCERA TASKALFA 5500I  - NOLEGGIO MULTIF.KYOCERA TASKALFA 3551CI  mesi OTTOBRE - DICEMBRE -NOLEGGIO SORTER TA5500 - NOLEGGIO SORTER mesi LUGLIO - DICEMBRE 2018 - copie eccedenti;09/11/2018;1039;0;421;1;Spese correnti;3;Acquisto di beni e servizi;2;Acquisto di servizi;7;Utilizzo di beni di terzi;8;Noleggi di impianti e macchinari;09/11/2018
3203;1;0;433,34;433,34;TE.MA. UFFICIO S.R.L.;Z331EBEF59;SALDO Fatt.n. 000915/PA  del 29/10/2018 NOLEGGIO MULTIF. KYOCERA TASKALFA 5500I  - NOLEGGIO MULTIF.KYOCERA TASKALFA 3551CI  mesi OTTOBRE - DICEMBRE -NOLEGGIO SORTER TA5500 - NOLEGGIO SORTER mesi LUGLIO - DICEMBRE 2018 - copie eccedenti;09/11/2018;1039;0;495;1;Spese correnti;3;Acquisto di beni e servizi;2;Acquisto di servizi;7;Utilizzo di beni di terzi;8;Noleggi di impianti e macchinari;09/11/2018
3204;1;0;146,4;146,4;TE.MA. UFFICIO S.R.L.;Z331EBEF59;SALDO Fatt.n. 000912/PA  del 29/10/2018 CANONE NOLEGGIO MULTIFUNZIONE KYOCERA TASKALFA 3510I S/N: LH43X00485 DAL 01/10/2018 AL 31/12/2018;09/11/2018;1036;0;494;1;Spese correnti;3;Acquisto di beni e servizi;2;Acquisto di servizi;7;Utilizzo di beni di terzi;8;Noleggi di impianti e macchinari;09/11/2018
3205;1;0;213,9;213,9;ATIS S.R.L.;Z5A253160A;SALDO Fatt.n. 869/V5  del 30/10/2018 Rapportino intervento n.ro 96450 del 23/10/2018 Presso: Mensa La Salute di Livenza Su vetrina self service sostituito ventilatore condensatore perche bloccato, sostituito termostato vano refrigerato perche bruciat;09/11/2018;1462;0;731;1;Spese correnti;3;Acquisto di beni e servizi;2;Acquisto di servizi;9;Manutenzione ordinaria e riparazioni;4;Manutenzione ordinaria e riparazioni di impianti e macchinari;09/11/2018
3206;1;0;4.291,98;4.291,98;A.P.A. TOURS DI PANZARIN GIAN LUIGI & C.SNC;74336233C2;SALDO Fatt.n. 056/2018E  del 31/10/2018 Servizio scolastico effettuato per Vs. conto, mese di Ottobre 2018, trasporto alunni della scuola elementare, media e materna;09/11/2018;1418;0;627;1;Spese correnti;3;Acquisto di beni e servizi;2;Acquisto di servizi;15;Contratti di servizio pubblico;2;Contratti di servizio di trasporto scolastico;09/11/2018
3207;1;0;4.291,98;4.291,98;A.T.A. DI ANTONIAZZI GIUSEPPE & C. SNC;74336233C2;SALDO Fatt.n. 158/2018E  del 31/10/2018 Servizio scolastico effettuato per Vs. conto nel mese di Ottobre 2018 per trasporto alunni della scuola elementare media e materna;09/11/2018;1418;0;626;1;Spese correnti;3;Acquisto di beni e servizi;2;Acquisto di servizi;15;Contratti di servizio pubblico;2;Contratti di servizio di trasporto scolastico;09/11/2018
3208;1;0;302,78;302,78;TE.MA. UFFICIO S.R.L.;ZF61851F42;SALDO Fatt.n. 000909/PA  del 29/10/2018 NOLEGGIO FOTOCOP. KYOCERA KM-1635 Sc.Mat.La Salute - NOLEGGIO MULTIFUNZ. RICOH MP1600 sc.mat.Piaget - NOLEGGIO FOTOCOP.KYOCERA KM-4050 Direz.Didattica DAL 01/10/18 AL 31/12/18- copie;09/11/2018;1373;0;230;1;Spese correnti;3;Acquisto di beni e servizi;2;Acquisto di servizi;7;Utilizzo di beni di terzi;8;Noleggi di impianti e macchinari;09/11/2018
3209;1;0;377,8;377,8;TE.MA. UFFICIO S.R.L.;ZF61851F42;SALDO Fatt.n. 000908/PA  del 29/10/2018 NOLEGGIO FOTOCOP.KYOCERA KM-3060 matr.QBA9906297 - MULTIF.TRIUMPH ADLER TA3060I ACC.FAX matr.LUD5505339 Uff. Scolastici DAL 01/10/2018 AL 31/12/2018 - Copie effettuate;09/11/2018;1485;0;231;1;Spese correnti;3;Acquisto di beni e servizi;2;Acquisto di servizi;7;Utilizzo di beni di terzi;8;Noleggi di impianti e macchinari;09/11/2018
3210;1;0;153,72;153,72;TE.MA. UFFICIO S.R.L.;Z701F68428;SALDO Fatt.n. 000911/PA  del 29/10/2018 CANONE NOLEGGIO MULTIFUNZIONE KYOCERA TASKALFA 3501I S/N: L7U3Z08885 DAL 01/10/2018 AL 31/12/2018;09/11/2018;1347;0;603;1;Spese correnti;3;Acquisto di beni e servizi;2;Acquisto di servizi;7;Utilizzo di beni di terzi;8;Noleggi di impianti e macchinari;09/11/2018
3211;1;0;99,06;99,06;TE.MA. UFFICIO S.R.L.;ZF421CF17B;SALDO Fatt.n. 000910/PA  del 29/10/2018 CANONE NOLEGGIO MULTIFUNZIONE TOSHIBA E-STUDIO 2051C S/N: C7H221556 DAL 01/10/2018 - 31/12/2018 - COPIE ECCEDENTI;09/11/2018;1300;0;154;1;Spese correnti;3;Acquisto di beni e servizi;2;Acquisto di servizi;7;Utilizzo di beni di terzi;8;Noleggi di impianti e macchinari;09/11/2018
3212;1;0;250;250;MAZZON RENZO;ZDD2541EC7;SALDO Fatt.n. 000003-2018-PRINCIP  del 10/10/2018 Tradizionali festeggiamenti di settembre a Corbolone.Rimborso spese partecipazione CCVLPS in frazione Corbolone del 12.09.2018 e del 21.09.2018;09/11/2018;1099;0;739;1;Spese correnti;3;Acquisto di beni e servizi;2;Acquisto di servizi;99;Altri servizi;5;Spese per commissioni e comitati dell'Ente;09/11/2018
3213;1;0;1.525,00;1.525,00;VELOCAR S.R.L.;Z4D21E7CB3;SALDO Fatt.n. 394/FE  del 15/10/2018 CANONE LOCAZIONE EVO L0 - MESE DI OTTOBRE 2018;09/11/2018;1302;0;214;1;Spese correnti;3;Acquisto di beni e servizi;2;Acquisto di servizi;8;Leasing operativo;2;Leasing operativo di attrezzature e macchinari;09/11/2018
3214;1;0;272,6;272,6;COOPERATIVA PROVINCIALE SERVIZI SOC.COOP.SOC.;747546982A;ACCONTO Fatt.n. 0000267/PA  del 04/10/2018 Servizo ristorazione scolastica, scodellamento e servizi ausiliari, produzione e confezionamento pasti mense scolastiche, accompagnamento e sorveglianza alunni, sostituzione ristorazione scolastica, sostituz;09/11/2018;2167;0;670;1;Spese correnti;3;Acquisto di beni e servizi;2;Acquisto di servizi;15;Contratti di servizio pubblico;999;Altre spese per contratti di servizio pubblico;09/11/2018
3215;1;0;2.869,82;2.869,82;COOPERATIVA PROVINCIALE SERVIZI SOC.COOP.SOC.;747546982A;ACCONTO Fatt.n. 0000267/PA  del 04/10/2018 Servizo ristorazione scolastica, scodellamento e servizi ausiliari, produzione e confezionamento pasti mense scolastiche, accompagnamento e sorveglianza alunni, sostituzione ristorazione scolastica, sostituz;09/11/2018;2175;0;669;1;Spese correnti;3;Acquisto di beni e servizi;2;Acquisto di servizi;15;Contratti di servizio pubblico;999;Altre spese per contratti di servizio pubblico;09/11/2018
3216;1;0;4.637,36;4.637,36;COOPERATIVA PROVINCIALE SERVIZI SOC.COOP.SOC.;747546982A;ACCONTO Fatt.n. 0000267/PA  del 04/10/2018 Servizo ristorazione scolastica, scodellamento e servizi ausiliari, produzione e confezionamento pasti mense scolastiche, accompagnamento e sorveglianza alunni, sostituzione ristorazione scolastica, sostituz;09/11/2018;2166;0;668;1;Spese correnti;3;Acquisto di beni e servizi;2;Acquisto di servizi;15;Contratti di servizio pubblico;6;Contratti di servizio per le mense scolastiche;09/11/2018
3217;1;0;8.799,20;8.799,20;COOPERATIVA PROVINCIALE SERVIZI SOC.COOP.SOC.;747546982A;SALDO Fatt.n. 0000267/PA  del 04/10/2018 Servizo ristorazione scolastica, scodellamento e servizi ausiliari, produzione e confezionamento pasti mense scolastiche, accompagnamento e sorveglianza alunni, sostituzione ristorazione scolastica, sostituzio;09/11/2018;2163;0;667;1;Spese correnti;3;Acquisto di beni e servizi;2;Acquisto di servizi;15;Contratti di servizio pubblico;6;Contratti di servizio per le mense scolastiche;09/11/2018
3218;1;0;1.802,00;1.802,00;AZIENDA ULSS N.2 - MARCA TREVIGIANA; ;SALDO Fatt.n. 18-932-00656  del 23/10/2018 POLO DISABILITA' SETTEMBRE 2018 I.M.E;09/11/2018;1880;0;229;1;Spese correnti;3;Acquisto di beni e servizi;2;Acquisto di servizi;15;Contratti di servizio pubblico;8;Contratti di servizio di assistenza sociale residenziale e semiresidenziale;09/11/2018
3219;1;0;29.488,80;29.488,80;DE ZOTTI IMPIANTI S.N.C. DI DE ZOTTI RIMO E C;Z282400875;SALDO Fatt.n. 80  del 04/10/2018 REALIZZAZIONE DI NUOVI IMPIANTI DI ILLUMINAZIONE SU VIA MARCO POLO, VIA CRISTOFORO COLOMBO, VIA CONDULMER;09/11/2018;3925;0;579;2;Spese in conto capitale;2;Investimenti fissi lordi e acquisto di terreni;1;Beni materiali;9;Beni immobili;12;Infrastrutture stradali;09/11/2018
3220;1;0;22,25;22,25;MILLE IDEE DI ZANIN FLAVIO E C.SNC; ;SALDO Fatt.n. 000006-2018-FATTELE  del 03/10/2018 FORNITURA LIBRI DI TESTO SCUOLA PRIMARIA;09/11/2018;1368;0;496;1;Spese correnti;4;Trasferimenti correnti;2;Trasferimenti correnti a Famiglie;5;Altri trasferimenti a famiglie;999;Altri trasferimenti a famiglie n.a.c.;09/11/2018
3221;1;0;198,59;198,59;SIAE; ;SALDO Fatt.n. 1618035080  del 18/10/2018 Diritti amministrativi di procedura CONCERTI MUSICA CLASSICA;09/11/2018;1508;0;711;1;Spese correnti;3;Acquisto di beni e servizi;2;Acquisto di servizi;2;Organizzazione eventi, pubblicita` e servizi per trasferta;5;Organizzazione e partecipazione a manifestazioni e convegni;09/11/2018
3222;1;0;153,72;153,72;SIAE; ;SALDO Fatt.n. 1618033302  del 04/10/2018 Diritti amministrativi di procedura Olaf PDL;09/11/2018;1508;0;691;1;Spese correnti;3;Acquisto di beni e servizi;2;Acquisto di servizi;2;Organizzazione eventi, pubblicita` e servizi per trasferta;5;Organizzazione e partecipazione a manifestazioni e convegni;09/11/2018
3223;1;0;4,88;341,5;SIAE; ;SALDO Fatt.n. 1618033295  del 04/10/2018 Diritti amministrativi di procedura;09/11/2018;1508;0;665;1;Spese correnti;3;Acquisto di beni e servizi;2;Acquisto di servizi;2;Organizzazione eventi, pubblicita` e servizi per trasferta;5;Organizzazione e partecipazione a manifestazioni e convegni;09/11/2018
3223;2;0;4,88;341,5;SIAE; ;SALDO Fatt.n. 1618033298  del 04/10/2018  Diritti Amministrativi di procedura;09/11/2018;1508;0;665;1;Spese correnti;3;Acquisto di beni e servizi;2;Acquisto di servizi;2;Organizzazione eventi, pubblicita` e servizi per trasferta;5;Organizzazione e partecipazione a manifestazioni e convegni;09/11/2018
3223;3;0;156,18;341,5;SIAE; ;SALDO Fatt.n. 1618033294  del 04/10/2018  CONCERTI/SPETTACOLI DI MUSICA LEGGERA Diritti Amministrativi di procedura;09/11/2018;1508;0;665;1;Spese correnti;3;Acquisto di beni e servizi;2;Acquisto di servizi;2;Organizzazione eventi, pubblicita` e servizi per trasferta;5;Organizzazione e partecipazione a manifestazioni e convegni;09/11/2018
3223;4;0;175,56;341,5;SIAE; ;SALDO Fatt.n. 1618033297  del 04/10/2018 CONCERTI MUSICA CLASSICA Diritti amministrativi di procedura;09/11/2018;1508;0;665;1;Spese correnti;3;Acquisto di beni e servizi;2;Acquisto di servizi;2;Organizzazione eventi, pubblicita` e servizi per trasferta;5;Organizzazione e partecipazione a manifestazioni e convegni;09/11/2018
3224;1;0;263,3;263,3;SIAE; ;SALDO Fatt.n. 1618033296  del 04/10/2018  CONCERTI/SPETTACOLI DI MUSICA LEGGERA Diritti Amministrativi di procedura;09/11/2018;1508;0;649;1;Spese correnti;3;Acquisto di beni e servizi;2;Acquisto di servizi;2;Organizzazione eventi, pubblicita` e servizi per trasferta;5;Organizzazione e partecipazione a manifestazioni e convegni;09/11/2018
3225;1;0;11,81;80,77;IDEAL GESTIONI SRL;Z4B2237F98;SALDO Fatt.n. 41/PA  del 20/10/2018 ACQUISTO GENERI ALIMENTARI ED IGENICI SCUOLA SACRO CUORE;09/11/2018;1416;0;499;1;Spese correnti;3;Acquisto di beni e servizi;1;Acquisto di beni;2;Altri beni di consumo;11;Generi alimentari;09/11/2018
3225;2;0;68,96;80,77;IDEAL GESTIONI SRL;Z4B2237F98;SALDO Fatt.n. 40/PA  del 20/10/2018 ACQUISTO GENERI ALIMENTARI ED IGENICI SCUOLA SACRO CUORE;09/11/2018;1416;0;499;1;Spese correnti;3;Acquisto di beni e servizi;1;Acquisto di beni;2;Altri beni di consumo;11;Generi alimentari;09/11/2018
3226;1;0;73,42;73,42;SME S.P.A.;Z762530222;SALDO Fatt.n. 10300150  del 23/10/2018 Adattatore RCA F/Jack  -RCA M/1 - Spitter IDATA HDMI - Convertitore IDATA SPdif;09/11/2018;1512;0;730;1;Spese correnti;3;Acquisto di beni e servizi;2;Acquisto di servizi;9;Manutenzione ordinaria e riparazioni;4;Manutenzione ordinaria e riparazioni di impianti e macchinari;09/11/2018
3227;1;0;740;740;PIZZIN MARIO;Z512533107;SALDO Fatt.n. FATTPA 4_18  del 23/10/2018 Recupero salma;09/11/2018;1624;0;734;1;Spese correnti;3;Acquisto di beni e servizi;2;Acquisto di servizi;99;Altri servizi;999;Altri servizi diversi n.a.c.;09/11/2018
3228;1;0;1.435,82;1.435,82;OS - OPEN SOFTWARE  S.R.L.;Z6D21D09E2;SALDO Fatt.n. 004571  del 30/09/2018 Rendicontazione verbali spediti tramite FastMail - Stampa/Imbustamento verbali con Servizio Print On Demand;12/11/2018;1281;0;156;1;Spese correnti;3;Acquisto di beni e servizi;2;Acquisto di servizi;16;Servizi amministrativi;999;Altre spese per servizi amministrativi;12/11/2018
3229;1;0;147,6;147,6;EGAF EDIZIONI SRL;Z902504057;SALDO Fatt.n. 2019 V VS2 98 0  del 18/10/2018 PRONTUARIO DELLE VIOLAZIONI ALLA CIRCOLAZIONE STRADALE - FORMULA ABBONAMENTO - 2019 - VIOLAZIONI CDS APP -2019;12/11/2018;1250;0;723;1;Spese correnti;3;Acquisto di beni e servizi;1;Acquisto di beni;2;Altri beni di consumo;1;Carta, cancelleria e stampati;12/11/2018
3230;1;0;3.789,50;3.789,50;MICHELE VIAGGI DI MARCASSA MICHELE E C. SNC;ZD1250DA25;SALDO Fatt.n. 79/02  del 20/10/2018 VI RIMETTIAMO FATTURA PER SERVIZIO TRASPORTO ALLE TERME DI BIBIONE ANNO 2018 N.13 VIAGGI;12/11/2018;1902;0;736;1;Spese correnti;3;Acquisto di beni e servizi;2;Acquisto di servizi;99;Altri servizi;999;Altri servizi diversi n.a.c.;12/11/2018
3231;1;0;7.612,80;7.612,80;ANGELUCCI ANTONIO;Z9A236C11D;SALDO Fatt.n. FPA 1/18  del 10/10/2018 Progetto preliminare definitivo ed esecutivo Realizzazione di un collegamento ciclo-pedonale da Via Stazione lungo Via Papa Giovanni XXIII;12/11/2018;3007;0;522;2;Spese in conto capitale;2;Investimenti fissi lordi e acquisto di terreni;3;Beni immateriali;5;Incarichi professionali per la realizzazione di investimenti;1;Incarichi professionali per la realizzazione di investimenti;12/11/2018
3232;1;0;1.281,00;1.281,00;BRUGNERA LIVIO;Z61201E8EE;SALDO Fatt.n. FATTPA 7_18  del 15/10/2018 Redazione della progettazione architettonica definitiva esecutiva, relativa all'impianto elettrico per i lavori di Valorizzazione, riqualificazione e messa in sicurezza dell itinerario GiraLivenza in S.Stino;12/11/2018;3310;0;723;2;Spese in conto capitale;2;Investimenti fissi lordi e acquisto di terreni;1;Beni materiali;9;Beni immobili;14;Opere per la sistemazione del suolo;12/11/2018
3233;1;0;437,5;437,5;FINGOLO TIZIANO;Z1224FE09C;Protocollo n. 17233 del 16-10-2018 CIG Z1224FE09C;12/11/2018;1508;0;698;1;Spese correnti;3;Acquisto di beni e servizi;2;Acquisto di servizi;2;Organizzazione eventi, pubblicita` e servizi per trasferta;5;Organizzazione e partecipazione a manifestazioni e convegni;12/11/2018
3234;1;0;318,35;318,35;SME S.P.A.;Z182513E4B;SALDO Fatt.n. 10300147  del 16/10/2018 N. 10  Cell.G351 TITAN F1,3M McSd BT HAC;12/11/2018;1091;0;271;1;Spese correnti;3;Acquisto di beni e servizi;1;Acquisto di beni;2;Altri beni di consumo;6;Materiale informatico;12/11/2018
3235;1;0;32,3;113,95;LIVENZA TAGLIAMENTO ACQUE SPA;Z5D2239422;SALDO Fatt.n. 001258/2018/E  del 08/10/2018 FATTURA CONSUMI ACQUA   UTENZA: 19629 PERIODO II 2018 P.LE DELLA REPUBBLICA DELEGAZIONE;12/11/2018;1076;0;161;1;Spese correnti;3;Acquisto di beni e servizi;2;Acquisto di servizi;5;Utenze e canoni;5;Acqua;12/11/2018
3235;2;0;81,65;113,95;LIVENZA TAGLIAMENTO ACQUE SPA;Z5D2239422;SALDO Fatt.n. 001240/2018/E  del 08/10/2018 FATTURA CONSUMI ACQUA   UTENZA: 16419 PERIODO II 2018 P.LE DELLA REPUBBLICA 2 DELEGAZIONE COMUNALE;12/11/2018;1076;0;161;1;Spese correnti;3;Acquisto di beni e servizi;2;Acquisto di servizi;5;Utenze e canoni;5;Acqua;12/11/2018
3236;1;0;27,47;197,19;LIVENZA TAGLIAMENTO ACQUE SPA;Z5D2239422;SALDO Fatt.n. 001263/2018/E  del 08/10/2018 FATTURA CONSUMI ACQUA   UTENZA: 56611 PERIODO II 2018 C.SO CAVOUR LA SALUTE  FONTANA;12/11/2018;1633;0;167;1;Spese correnti;3;Acquisto di beni e servizi;2;Acquisto di servizi;5;Utenze e canoni;5;Acqua;12/11/2018
3236;2;0;28,66;197,19;LIVENZA TAGLIAMENTO ACQUE SPA;Z5D2239422;SALDO Fatt.n. 001260/2018/E  del 08/10/2018 FATTURA CONSUMI ACQUA   UTENZA: 55072 PERIODO II 2018 FONTANA VIA DEL GALLO;12/11/2018;1633;0;167;1;Spese correnti;3;Acquisto di beni e servizi;2;Acquisto di servizi;5;Utenze e canoni;5;Acqua;12/11/2018
3236;3;0;43,57;197,19;LIVENZA TAGLIAMENTO ACQUE SPA;Z5D2239422;SALDO Fatt.n. 001275/2018/E  del 08/10/2018 FATTURA CONSUMI ACQUA   UTENZA: 81331 PERIODO II 2018 VIA RIVIERA SILVIO TRENTIN FONTANELLA;12/11/2018;1633;0;167;1;Spese correnti;3;Acquisto di beni e servizi;2;Acquisto di servizi;5;Utenze e canoni;5;Acqua;12/11/2018
3236;4;0;97,49;197,19;LIVENZA TAGLIAMENTO ACQUE SPA;Z5D2239422;SALDO Fatt.n. 001271/2018/E  del 08/10/2018 FATTURA CONSUMI ACQUA   UTENZA: 65761 PERIODO II 2018 VIA NIEVO IPPOLITO RISTORO CICLISTI;12/11/2018;1633;0;167;1;Spese correnti;3;Acquisto di beni e servizi;2;Acquisto di servizi;5;Utenze e canoni;5;Acqua;12/11/2018
3237;1;0;61,36;61,36;LIVENZA TAGLIAMENTO ACQUE SPA;Z5D2239422;SALDO Fatt.n. 001294/2018/E  del 08/10/2018 FATTURA CONSUMI ACQUA   UTENZA: 62332 PERIODO II 2018 VIA I MAGGIO MAGAZZINO COMUNALE;12/11/2018;1160;0;164;1;Spese correnti;3;Acquisto di beni e servizi;2;Acquisto di servizi;5;Utenze e canoni;5;Acqua;12/11/2018
3238;1;0;64,32;172,11;LIVENZA TAGLIAMENTO ACQUE SPA;Z5D2239422;SALDO Fatt.n. 001248/2018/E  del 08/10/2018 FATTURA CONSUMI ACQUA   UTENZA: 17970 PERIODO II 2018 VIA GONFI CIMITERO;12/11/2018;1656;0;170;1;Spese correnti;3;Acquisto di beni e servizi;2;Acquisto di servizi;5;Utenze e canoni;5;Acqua;12/11/2018
3238;2;0;107,79;172,11;LIVENZA TAGLIAMENTO ACQUE SPA;Z5D2239422;SALDO Fatt.n. 001239/2018/E  del 08/10/2018 FATTURA CONSUMI ACQUA   UTENZA: 16355 PERIODO II 2018 VIA GONFI CIMITERO;12/11/2018;1656;0;170;1;Spese correnti;3;Acquisto di beni e servizi;2;Acquisto di servizi;5;Utenze e canoni;5;Acqua;12/11/2018
3239;1;0;25,2;395,36;LIVENZA TAGLIAMENTO ACQUE SPA;Z5D2239422;SALDO Fatt.n. 001251/2018/E  del 08/10/2018 FATTURA CONSUMI ACQUA   UTENZA: 18657 PERIODO II 2018 VIA GAFFAREE X PARCO;12/11/2018;1811;0;174;1;Spese correnti;3;Acquisto di beni e servizi;2;Acquisto di servizi;5;Utenze e canoni;5;Acqua;12/11/2018
3239;2;0;26,08;395,36;LIVENZA TAGLIAMENTO ACQUE SPA;Z5D2239422;SALDO Fatt.n. 001264/2018/E  del 08/10/2018 FATTURA CONSUMI ACQUA   UTENZA: 57026 PERIODO II 2018 AREA VERDE VIA XXV APRILE;12/11/2018;1811;0;174;1;Spese correnti;3;Acquisto di beni e servizi;2;Acquisto di servizi;5;Utenze e canoni;5;Acqua;12/11/2018
3239;3;0;27,01;395,36;LIVENZA TAGLIAMENTO ACQUE SPA;Z5D2239422;SALDO Fatt.n. 001237/2018/E  del 08/10/2018 FATTURA CONSUMI ACQUA   UTENZA: 20009 PERIODO II 2018 VIA FOSSON;12/11/2018;1811;0;174;1;Spese correnti;3;Acquisto di beni e servizi;2;Acquisto di servizi;5;Utenze e canoni;5;Acqua;12/11/2018
3239;4;0;29,02;395,36;LIVENZA TAGLIAMENTO ACQUE SPA;Z5D2239422;SALDO Fatt.n. 001253/2018/E  del 08/10/2018 FATTURA CONSUMI ACQUA   UTENZA: 19160 PERIODO II 2018 VIA DE GASPERI ALCIDE PARCHEGGIO;12/11/2018;1811;0;174;1;Spese correnti;3;Acquisto di beni e servizi;2;Acquisto di servizi;5;Utenze e canoni;5;Acqua;12/11/2018
3239;5;0;32,66;395,36;LIVENZA TAGLIAMENTO ACQUE SPA;Z5D2239422;SALDO Fatt.n. 001256/2018/E  del 08/10/2018 FATTURA CONSUMI ACQUA   UTENZA: 19615 PERIODO II 2018 VIA LONCON AREA VERDE;12/11/2018;1811;0;174;1;Spese correnti;3;Acquisto di beni e servizi;2;Acquisto di servizi;5;Utenze e canoni;5;Acqua;12/11/2018
3239;6;0;33,5;395,36;LIVENZA TAGLIAMENTO ACQUE SPA;Z5D2239422;SALDO Fatt.n. 001272/2018/E  del 08/10/2018 FATTURA CONSUMI ACQUA   UTENZA: 69079 PERIODO II 2018 VIA BOSCO LONCON;12/11/2018;1811;0;174;1;Spese correnti;3;Acquisto di beni e servizi;2;Acquisto di servizi;5;Utenze e canoni;5;Acqua;12/11/2018
3239;7;0;33,77;395,36;LIVENZA TAGLIAMENTO ACQUE SPA;Z5D2239422;SALDO Fatt.n. 001261/2018/E  del 08/10/2018 FATTURA CONSUMI ACQUA   UTENZA: 56477 PERIODO II 2018 VIA BOSCO BANDIZIOL FONTANA;12/11/2018;1811;0;174;1;Spese correnti;3;Acquisto di beni e servizi;2;Acquisto di servizi;5;Utenze e canoni;5;Acqua;12/11/2018
3239;8;0;82,73;395,36;LIVENZA TAGLIAMENTO ACQUE SPA;Z5D2239422;SALDO Fatt.n. 001267/2018/E  del 08/10/2018 FATTURA CONSUMI ACQUA   UTENZA: 60889 PERIODO II 2018 AMM.NE COM.LE ISOLA ECOLOGICA VIA CANALETA;12/11/2018;1811;0;174;1;Spese correnti;3;Acquisto di beni e servizi;2;Acquisto di servizi;5;Utenze e canoni;5;Acqua;12/11/2018
3239;9;0;105,39;395,36;LIVENZA TAGLIAMENTO ACQUE SPA;Z5D2239422;SALDO Fatt.n. 001257/2018/E  del 08/10/2018 FATTURA CONSUMI ACQUA   UTENZA: 19620 PERIODO II 2018 P.ZZA GOLDONI CARLO;12/11/2018;1811;0;174;1;Spese correnti;3;Acquisto di beni e servizi;2;Acquisto di servizi;5;Utenze e canoni;5;Acqua;12/11/2018
3240;1;0;24,11;132,12;LIVENZA TAGLIAMENTO ACQUE SPA;Z5D2239422;SALDO Fatt.n. 001274/2018/E  del 08/10/2018 FATTURA CONSUMI ACQUA   UTENZA: 74187 PERIODO II 2018 VIALE TRIESTE IRRIGAZIONE ROTATORIA;12/11/2018;1810;0;173;1;Spese correnti;3;Acquisto di beni e servizi;2;Acquisto di servizi;5;Utenze e canoni;5;Acqua;12/11/2018
3240;2;0;26,28;132,12;LIVENZA TAGLIAMENTO ACQUE SPA;Z5D2239422;SALDO Fatt.n. 001268/2018/E  del 08/10/2018 FATTURA CONSUMI ACQUA   UTENZA: 61429 PERIODO II 2018 VIALE TRIESTE IRRIGAZIONE AREE VERDI;12/11/2018;1810;0;173;1;Spese correnti;3;Acquisto di beni e servizi;2;Acquisto di servizi;5;Utenze e canoni;5;Acqua;12/11/2018
3240;3;0;27,01;132,12;LIVENZA TAGLIAMENTO ACQUE SPA;Z5D2239422;SALDO Fatt.n. 001252/2018/E  del 08/10/2018 FATTURA CONSUMI ACQUA   UTENZA: 19102 PERIODO II 2018 VIA MATTEOTTI GIACOMO GIARDINI PUBBLICI;12/11/2018;1810;0;173;1;Spese correnti;3;Acquisto di beni e servizi;2;Acquisto di servizi;5;Utenze e canoni;5;Acqua;12/11/2018
3240;4;0;27,18;132,12;LIVENZA TAGLIAMENTO ACQUE SPA;Z5D2239422;SALDO Fatt.n. 001270/2018/E  del 08/10/2018 FATTURA CONSUMI ACQUA   UTENZA: 65760 PERIODO II 2018 L.GO TRIESTE IRRIGAZIONE ROTATORIA;12/11/2018;1810;0;173;1;Spese correnti;3;Acquisto di beni e servizi;2;Acquisto di servizi;5;Utenze e canoni;5;Acqua;12/11/2018
3240;5;0;27,54;132,12;LIVENZA TAGLIAMENTO ACQUE SPA;Z5D2239422;SALDO Fatt.n. 001269/2018/E  del 08/10/2018 FATTURA CONSUMI ACQUA   UTENZA: 61430 PERIODO II 2018 VIA LEOPARDI GIACOMO IRRIGAZIONE AREE VERDI;12/11/2018;1810;0;173;1;Spese correnti;3;Acquisto di beni e servizi;2;Acquisto di servizi;5;Utenze e canoni;5;Acqua;12/11/2018
3241;1;0;225,43;225,43;LIVENZA TAGLIAMENTO ACQUE SPA;Z5D2239422;SALDO Fatt.n. 001238/2018/E  del 08/10/2018 FATTURA CONSUMI ACQUA   UTENZA: 15992 PERIODO II 2018 P.ZZA ALDO MORO 1 MUNICIPIO;12/11/2018;1074;0;159;1;Spese correnti;3;Acquisto di beni e servizi;2;Acquisto di servizi;5;Utenze e canoni;5;Acqua;12/11/2018
3242;1;0;87,3;87,3;LIVENZA TAGLIAMENTO ACQUE SPA;Z5D2239422;SALDO Fatt.n. 001247/2018/E  del 08/10/2018 FATTURA CONSUMI ACQUA   UTENZA: 17916 PERIODO II 2018 VIA TORQUATO TASSO CIMITERO;12/11/2018;1650;0;169;1;Spese correnti;3;Acquisto di beni e servizi;2;Acquisto di servizi;5;Utenze e canoni;5;Acqua;12/11/2018
3243;1;0;80,39;80,39;LIVENZA TAGLIAMENTO ACQUE SPA;Z5D2239422;SALDO Fatt.n. 001243/2018/E  del 08/10/2018 FATTURA CONSUMI ACQUA   UTENZA: 17236 PERIODO II 2018 VIA DON FACCI 5 CIMITERO;12/11/2018;1647;0;168;1;Spese correnti;3;Acquisto di beni e servizi;2;Acquisto di servizi;5;Utenze e canoni;5;Acqua;12/11/2018
3244;1;0;133,71;1.304,04;LIVENZA TAGLIAMENTO ACQUE SPA;Z5D2239422;SALDO Fatt.n. 001282/2018/E  del 08/10/2018 FATTURA CONSUMI ACQUA   UTENZA: 59127 PERIODO II 2018 SCUOLA ELEM. VIA BIVERONE 35 ANTINCENDIO;12/11/2018;1156;0;162;1;Spese correnti;3;Acquisto di beni e servizi;2;Acquisto di servizi;5;Utenze e canoni;5;Acqua;12/11/2018
3244;2;0;136,82;1.304,04;LIVENZA TAGLIAMENTO ACQUE SPA;Z5D2239422;SALDO Fatt.n. 001280/2018/E  del 08/10/2018 FATTURA CONSUMI ACQUA   UTENZA: 57232 PERIODO II 2018 P.ZZA CAVALIERI DI VITTORIO V.TO 1 SCUOLE ELEM. ANTINCENDIO;12/11/2018;1156;0;162;1;Spese correnti;3;Acquisto di beni e servizi;2;Acquisto di servizi;5;Utenze e canoni;5;Acqua;12/11/2018
3244;3;0;142;1.304,04;LIVENZA TAGLIAMENTO ACQUE SPA;Z5D2239422;SALDO Fatt.n. 001281/2018/E  del 08/10/2018 FATTURA CONSUMI ACQUA   UTENZA: 57233 PERIODO II 2018 SCUOLA ELEM. C.SO CAVOUR LA SALUTE ANTINCENDIO;12/11/2018;1156;0;162;1;Spese correnti;3;Acquisto di beni e servizi;2;Acquisto di servizi;5;Utenze e canoni;5;Acqua;12/11/2018
3244;4;0;142;1.304,04;LIVENZA TAGLIAMENTO ACQUE SPA;Z5D2239422;SALDO Fatt.n. 001283/2018/E  del 08/10/2018 FATTURA CONSUMI ACQUA   UTENZA: 62314 PERIODO II 2018 SCUOLA MATERNA PIAGET VIA PAPA GIOVANNI XXIII ANTINCENDIO;12/11/2018;1156;0;162;1;Spese correnti;3;Acquisto di beni e servizi;2;Acquisto di servizi;5;Utenze e canoni;5;Acqua;12/11/2018
3244;5;0;142;1.304,04;LIVENZA TAGLIAMENTO ACQUE SPA;Z5D2239422;SALDO Fatt.n. 001279/2018/E  del 08/10/2018 FATTURA CONSUMI ACQUA   UTENZA: 54893 PERIODO II 2018 C.SO CAVOUR LA SALUTE SCUOLA MEDIA FOGAZZARO ANTINCENDIO;12/11/2018;1156;0;162;1;Spese correnti;3;Acquisto di beni e servizi;2;Acquisto di servizi;5;Utenze e canoni;5;Acqua;12/11/2018
3244;6;0;145,89;1.304,04;LIVENZA TAGLIAMENTO ACQUE SPA;Z5D2239422;SALDO Fatt.n. 001286/2018/E  del 08/10/2018 FATTURA CONSUMI ACQUA   UTENZA: 81692 PERIODO II 2018 VIA DE GASPERI ALCIDE SCUOLA MEDIA TONIOLO ANTINCENDIO;12/11/2018;1156;0;162;1;Spese correnti;3;Acquisto di beni e servizi;2;Acquisto di servizi;5;Utenze e canoni;5;Acqua;12/11/2018
3244;7;0;151,4;1.304,04;LIVENZA TAGLIAMENTO ACQUE SPA;Z5D2239422;SALDO Fatt.n. 001278/2018/E  del 08/10/2018 FATTURA CONSUMI ACQUA   UTENZA: 53691 PERIODO II 2018 VIA PAPA GIOVANNI XXIII CINEMA TEATRO ANTINCENDIO;12/11/2018;1156;0;162;1;Spese correnti;3;Acquisto di beni e servizi;2;Acquisto di servizi;5;Utenze e canoni;5;Acqua;12/11/2018
3244;8;0;153,62;1.304,04;LIVENZA TAGLIAMENTO ACQUE SPA;Z5D2239422;SALDO Fatt.n. 001284/2018/E  del 08/10/2018 FATTURA CONSUMI ACQUA   UTENZA: 62331 PERIODO II 2018 VIA I MAGGIO MAGAZZINO COMUNALE ANTINCENDIO;12/11/2018;1156;0;162;1;Spese correnti;3;Acquisto di beni e servizi;2;Acquisto di servizi;5;Utenze e canoni;5;Acqua;12/11/2018
3244;9;0;156,6;1.304,04;LIVENZA TAGLIAMENTO ACQUE SPA;Z5D2239422;SALDO Fatt.n. 001285/2018/E  del 08/10/2018 FATTURA CONSUMI ACQUA   UTENZA: 70924 PERIODO II 2018 VIA F.LLI MARTINA 22 ASILO INFANTILE ANTINCENDIO;12/11/2018;1156;0;162;1;Spese correnti;3;Acquisto di beni e servizi;2;Acquisto di servizi;5;Utenze e canoni;5;Acqua;12/11/2018
3245;1;0;89;89;SME S.P.A.;Z762530222;SALDO Fatt.n. 10300149  del 16/10/2018 N.1 Let.Blu-Ray BDPS3700B WiFi Usb;12/11/2018;1512;0;730;1;Spese correnti;3;Acquisto di beni e servizi;2;Acquisto di servizi;9;Manutenzione ordinaria e riparazioni;4;Manutenzione ordinaria e riparazioni di impianti e macchinari;12/11/2018
3246;1;0;1.724,00;1.724,00;FONDAZIONE FRATELLI ZULIANELLO ONLUS; ;SALDO Fatt.n. E/2018/079  del 01/10/2018 RETTA MESE OTTOBRE 2018 G.C.;12/11/2018;1877;0;638;1;Spese correnti;3;Acquisto di beni e servizi;2;Acquisto di servizi;15;Contratti di servizio pubblico;8;Contratti di servizio di assistenza sociale residenziale e semiresidenziale;12/11/2018
3247;1;0;76;76;ATVO S.P.A.; ;SALDO Fatt.n. 000546  del 30/09/2018 A vostro debito per il rimborso delle integrazioni tariffarie su biglietti venduti con CARTA ARGENTO su servizi di trasporto extraurbano per il mese di SETTEMBRE 2018;12/11/2018;1661;0;357;1;Spese correnti;3;Acquisto di beni e servizi;2;Acquisto di servizi;99;Altri servizi;999;Altri servizi diversi n.a.c.;12/11/2018
3248;1;0;9,49;9,49;IDEAL GESTIONI SRL;Z4B2237F98;SALDO Fatt.n. 38/PA  del 10/10/2018 ACQUISTO GENERI ALIMENTARI ED IGENICI SCUOLA SACRO CUORE;12/11/2018;1416;0;221;1;Spese correnti;3;Acquisto di beni e servizi;1;Acquisto di beni;2;Altri beni di consumo;11;Generi alimentari;12/11/2018
3249;1;0;98,2;98,2;IDEAL GESTIONI SRL;Z4B2237F98;SALDO Fatt.n. 39/PA  del 11/10/2018 ACQUISTO GENERI ALIMENTARI ED IGENICI SCUOLA SACRO CUORE;12/11/2018;1416;0;499;1;Spese correnti;3;Acquisto di beni e servizi;1;Acquisto di beni;2;Altri beni di consumo;11;Generi alimentari;12/11/2018
3250;1;0;71,85;71,85;TIM SPA;ZEC2105886;SALDO Fatt.n. 8E00876244  del 05/10/2018 6BIM 2018 AGOSTO - SETTEMBRE 0421/473903;12/11/2018;1043;0;312;1;Spese correnti;3;Acquisto di beni e servizi;2;Acquisto di servizi;5;Utenze e canoni;1;Telefonia fissa;12/11/2018
3251;1;0;186,01;186,01;TIM SPA;ZEC2105886;SALDO Fatt.n. 8E00874793  del 05/10/2018 6BIM 2018  AGOSTO - SETTEMBRE 0421/80110;12/11/2018;1043;0;312;1;Spese correnti;3;Acquisto di beni e servizi;2;Acquisto di servizi;5;Utenze e canoni;1;Telefonia fissa;12/11/2018
3252;1;0;35,59;477,52;TIM SPA;ZEC2105886;SALDO Fatt.n. 8E00875054  del 05/10/2018 6BIM 2018  AGOSTO - SETTEMBRE 0421/310080;12/11/2018;1043;0;312;1;Spese correnti;3;Acquisto di beni e servizi;2;Acquisto di servizi;5;Utenze e canoni;1;Telefonia fissa;12/11/2018
3252;2;0;41,48;477,52;TIM SPA;ZEC2105886;SALDO Fatt.n. 8E00877150  del 05/10/2018 6BIM 2018  AGOSTO - SETTEMBRE 0421/312370;12/11/2018;1043;0;312;1;Spese correnti;3;Acquisto di beni e servizi;2;Acquisto di servizi;5;Utenze e canoni;1;Telefonia fissa;12/11/2018
3252;3;0;70,76;477,52;TIM SPA;ZEC2105886;SALDO Fatt.n. 8E00875398  del 05/10/2018 6BIM 2018 AGOSTO - SETTEMBRE 0421/473904;12/11/2018;1043;0;312;1;Spese correnti;3;Acquisto di beni e servizi;2;Acquisto di servizi;5;Utenze e canoni;1;Telefonia fissa;12/11/2018
3252;4;0;82,47;477,52;TIM SPA;ZEC2105886;SALDO Fatt.n. 8E00871101  del 05/10/2018 6BIM 2018  AGOSTO - SETTEMBRE 0421/473902;12/11/2018;1043;0;312;1;Spese correnti;3;Acquisto di beni e servizi;2;Acquisto di servizi;5;Utenze e canoni;1;Telefonia fissa;12/11/2018
3252;5;0;247,22;477,52;TIM SPA;ZEC2105886;SALDO Fatt.n. 8E00877393  del 05/10/2018 6BIM 2018  AGOSTO - SETTEMBRE 0421/473901;12/11/2018;1043;0;312;1;Spese correnti;3;Acquisto di beni e servizi;2;Acquisto di servizi;5;Utenze e canoni;1;Telefonia fissa;12/11/2018
3253;1;0;110,13;110,13;TIM SPA;ZEC2105886;SALDO Fatt.n. 8E00876914  del 05/10/2018 6BIM 2018 AGOSTO - SETTEMBRE 0421/460468;12/11/2018;1346;0;104;1;Spese correnti;3;Acquisto di beni e servizi;2;Acquisto di servizi;5;Utenze e canoni;1;Telefonia fissa;12/11/2018
3254;1;0;95,4;95,4;TIM SPA;ZFA23166CD;SALDO Fatt.n. 8E00871931  del 05/10/2018 6BIM 2018  AGOSTO - SETTEMBRE 0421/341719;12/11/2018;1387;0;418;1;Spese correnti;3;Acquisto di beni e servizi;2;Acquisto di servizi;5;Utenze e canoni;1;Telefonia fissa;12/11/2018
3255;1;0;47,58;47,58;TIM SPA;ZEC2105886;SALDO Fatt.n. 8E00872769  del 05/10/2018 6BIM 2018 AGOSTO - SETTEMBRE 0421/312007;12/11/2018;1630;0;117;1;Spese correnti;3;Acquisto di beni e servizi;2;Acquisto di servizi;5;Utenze e canoni;1;Telefonia fissa;12/11/2018
3256;1;0;117,57;117,57;TIM SPA;ZEC2105886;SALDO Fatt.n. 8E00873501  del 05/10/2018 6BIM 2018  AGOSTO - SETTEMBRE 0421/80196;12/11/2018;1383;0;113;1;Spese correnti;3;Acquisto di beni e servizi;2;Acquisto di servizi;5;Utenze e canoni;1;Telefonia fissa;12/11/2018
3257;1;0;71,78;291,93;TIM SPA;ZEC2105886;SALDO Fatt.n. 8E00871925  del 05/10/2018 6BIM 2018  AGOSTO - SETTEMBRE 0421/312332;12/11/2018;1365;0;109;1;Spese correnti;3;Acquisto di beni e servizi;2;Acquisto di servizi;5;Utenze e canoni;1;Telefonia fissa;12/11/2018
3257;2;0;220,15;291,93;TIM SPA;ZEC2105886;SALDO Fatt.n. 8E00875451  del 05/10/2018 6BIM 2018  AGOSTO - SETTEMBRE 0421/310254;12/11/2018;1365;0;109;1;Spese correnti;3;Acquisto di beni e servizi;2;Acquisto di servizi;5;Utenze e canoni;1;Telefonia fissa;12/11/2018
3258;1;0;99,28;99,28;TIM SPA;ZEC2105886;SALDO Fatt.n. 8E00872444  del 05/10/2018 6BIM 2018  AGOSTO - SETTEMBRE 0421/311648;12/11/2018;1346;0;105;1;Spese correnti;3;Acquisto di beni e servizi;2;Acquisto di servizi;5;Utenze e canoni;1;Telefonia fissa;12/11/2018
3259;1;0;96,95;96,95;TIM SPA;Z002316617;SALDO Fatt.n. 8E00875296  del 05/10/2018 6BIM 2018  AGOSTO - SETTEMBRE 0421/324221;12/11/2018;1380;0;417;1;Spese correnti;3;Acquisto di beni e servizi;2;Acquisto di servizi;5;Utenze e canoni;1;Telefonia fissa;12/11/2018
3260;1;0;36,15;36,15;TIM SPA;ZEC2105886;SALDO Fatt.n. 8E00874458  del 05/10/2018 6BIM 2018  AGOSTO - SETTEMBRE 0421/290639;12/11/2018;1354;0;108;1;Spese correnti;3;Acquisto di beni e servizi;2;Acquisto di servizi;5;Utenze e canoni;1;Telefonia fissa;12/11/2018
3261;1;0;104,63;104,63;TIM SPA;ZEC2105886;SALDO Fatt.n. 8E00873470  del 05/10/2018 6BIM 2018  AGOSTO - SETTEMBRE 0421/310855;12/11/2018;1351;0;106;1;Spese correnti;3;Acquisto di beni e servizi;2;Acquisto di servizi;5;Utenze e canoni;1;Telefonia fissa;12/11/2018
3262;1;0;133,03;133,03;TIM SPA;ZEC2105886;SALDO Fatt.n. 8E00873524  del 05/10/2018 6BIM 2018  AGOSTO - SETTEMBRE 0421/80290;12/11/2018;1388;0;115;1;Spese correnti;3;Acquisto di beni e servizi;2;Acquisto di servizi;5;Utenze e canoni;1;Telefonia fissa;12/11/2018
3263;1;0;36,78;36,78;TIM SPA;ZEC2105886;SALDO Fatt.n. 8E00872625  del 05/10/2018 6BIM 2018  AGOSTO - SETTEMBRE 0421/80138;12/11/2018;1354;0;107;1;Spese correnti;3;Acquisto di beni e servizi;2;Acquisto di servizi;5;Utenze e canoni;1;Telefonia fissa;12/11/2018
3264;1;0;70,76;70,76;TIM SPA;ZEC2105886;SALDO Fatt.n. 8E00872341  del 05/10/2018 6BIM 2018  AGOSTO - SETTEMBRE 0421/310627;12/11/2018;1515;0;116;1;Spese correnti;3;Acquisto di beni e servizi;2;Acquisto di servizi;5;Utenze e canoni;1;Telefonia fissa;12/11/2018
3265;1;0;114,44;114,44;TIM SPA;ZEC2105886;SALDO Fatt.n. 8E00872078  del 05/10/2018 6BIM 2018  AGOSTO - SETTEMBRE 0421/310766;12/11/2018;1377;0;111;1;Spese correnti;3;Acquisto di beni e servizi;2;Acquisto di servizi;5;Utenze e canoni;1;Telefonia fissa;12/11/2018
3266;1;0;101,86;101,86;TIM SPA;ZEC2105886;SALDO Fatt.n. 8E00875439  del 05/10/2018 6BIM 2018  AGOSTO - SETTEMBRE 0421/312320;12/11/2018;1365;0;110;1;Spese correnti;3;Acquisto di beni e servizi;2;Acquisto di servizi;5;Utenze e canoni;1;Telefonia fissa;12/11/2018
3267;1;0;77,3;77,3;TIM SPA;ZEC2105886;SALDO Fatt.n. 8E00876193  del 05/10/2018 6BIM 2018  AGOSTO - SETTEMBRE 0421/310181;12/11/2018;1387;0;114;1;Spese correnti;3;Acquisto di beni e servizi;2;Acquisto di servizi;5;Utenze e canoni;1;Telefonia fissa;12/11/2018
3268;1;0;4.606,42;4.606,42;AZIENDA ULSS N.4 VENETO ORIENTALE; ;SALDO Fatt.n. VP  201800000346  del 15/10/2018 PRESTAZIONI SOCIO SANITARIE COMUNITA' ALLOGGIO DI GRUARO III TRIM. 2018 A FAVORE DI B.M.L.;12/11/2018;1880;0;233;1;Spese correnti;3;Acquisto di beni e servizi;2;Acquisto di servizi;15;Contratti di servizio pubblico;8;Contratti di servizio di assistenza sociale residenziale e semiresidenziale;12/11/2018
3269;1;0;8,97;21,41;GLOBAL POWER S.P.A.;ZA91450307;SALDO Fatt.n. V6/37379  del 29/10/2018 FORNITURA GAS;12/11/2018;1904;0;150;1;Spese correnti;3;Acquisto di beni e servizi;2;Acquisto di servizi;5;Utenze e canoni;4;Energia elettrica;12/11/2018
3269;2;0;12,44;21,41;GLOBAL POWER S.P.A.;ZA91450307;SALDO Fatt.n. V6/37380  del 29/10/2018 FORNITURA GAS;12/11/2018;1904;0;150;1;Spese correnti;3;Acquisto di beni e servizi;2;Acquisto di servizi;5;Utenze e canoni;4;Energia elettrica;12/11/2018
3270;1;0;482,14;482,14;GLOBAL POWER S.P.A.;622385037F;SALDO Fatt.n. V0/134129  del 01/11/2018 Fattura Energia Elettrica;12/11/2018;1830;0;149;1;Spese correnti;3;Acquisto di beni e servizi;2;Acquisto di servizi;5;Utenze e canoni;4;Energia elettrica;12/11/2018
3271;1;0;390,32;390,32;GLOBAL POWER S.P.A.;622385037F;SALDO Fatt.n. V0/134130  del 01/11/2018 Fattura Energia Elettrica;12/11/2018;1427;0;147;1;Spese correnti;3;Acquisto di beni e servizi;2;Acquisto di servizi;5;Utenze e canoni;4;Energia elettrica;12/11/2018
3272;1;0;169,22;169,22;GLOBAL POWER S.P.A.;622385037F;SALDO Fatt.n. V0/134131  del 01/11/2018 Fattura Energia Elettrica;12/11/2018;1632;0;144;1;Spese correnti;3;Acquisto di beni e servizi;2;Acquisto di servizi;5;Utenze e canoni;4;Energia elettrica;12/11/2018
3273;1;0;277,35;277,35;GLOBAL POWER S.P.A.;622385037F;SALDO Fatt.n. V0/134136  del 01/11/2018 Fattura Energia Elettrica;12/11/2018;1360;0;142;1;Spese correnti;3;Acquisto di beni e servizi;2;Acquisto di servizi;5;Utenze e canoni;4;Energia elettrica;12/11/2018
3274;1;0;687,02;687,02;GLOBAL POWER S.P.A.;622385037F;SALDO Fatt.n. V0/134140  del 01/11/2018 Fattura Energia Elettrica;12/11/2018;1514;0;148;1;Spese correnti;3;Acquisto di beni e servizi;2;Acquisto di servizi;5;Utenze e canoni;4;Energia elettrica;12/11/2018
3275;1;0;108,47;108,47;GLOBAL POWER S.P.A.;622385037F;SALDO Fatt.n. V0/134142  del 01/11/2018 Fattura Energia Elettrica;12/11/2018;1359;0;140;1;Spese correnti;3;Acquisto di beni e servizi;2;Acquisto di servizi;5;Utenze e canoni;4;Energia elettrica;12/11/2018
3276;1;0;199,01;199,01;GLOBAL POWER S.P.A.;622385037F;SALDO Fatt.n. V0/134143  del 01/11/2018 Fattura Energia Elettrica;12/11/2018;1359;0;141;1;Spese correnti;3;Acquisto di beni e servizi;2;Acquisto di servizi;5;Utenze e canoni;4;Energia elettrica;12/11/2018
3277;1;0;209,41;209,41;GLOBAL POWER S.P.A.;622385037F;SALDO Fatt.n. V0/134144  del 01/11/2018 Fattura Energia Elettrica;12/11/2018;1452;0;146;1;Spese correnti;3;Acquisto di beni e servizi;2;Acquisto di servizi;5;Utenze e canoni;4;Energia elettrica;12/11/2018
3278;1;0;236,83;236,83;GLOBAL POWER S.P.A.;622385037F;SALDO Fatt.n. V0/134145  del 01/11/2018 Fattura Energia Elettrica;12/11/2018;1363;0;145;1;Spese correnti;3;Acquisto di beni e servizi;2;Acquisto di servizi;5;Utenze e canoni;4;Energia elettrica;12/11/2018
3279;1;0;167,08;167,08;GLOBAL POWER S.P.A.;622385037F;SALDO Fatt.n. V0/134146  del 01/11/2018 Fattura Energia Elettrica;12/11/2018;1361;0;143;1;Spese correnti;3;Acquisto di beni e servizi;2;Acquisto di servizi;5;Utenze e canoni;4;Energia elettrica;12/11/2018
3280;1;0;175,22;175,22;GLOBAL POWER S.P.A.;622385037F;SALDO Fatt.n. V0/134147  del 01/11/2018 Fattura Energia Elettrica;12/11/2018;1357;0;138;1;Spese correnti;3;Acquisto di beni e servizi;2;Acquisto di servizi;5;Utenze e canoni;4;Energia elettrica;12/11/2018
3281;1;0;223,07;223,07;GLOBAL POWER S.P.A.;622385037F;SALDO Fatt.n. V0/134150  del 01/11/2018 Fattura Energia Elettrica;12/11/2018;1357;0;139;1;Spese correnti;3;Acquisto di beni e servizi;2;Acquisto di servizi;5;Utenze e canoni;4;Energia elettrica;12/11/2018
3282;1;0;380,05;380,05;GLOBAL POWER S.P.A.;622385037F;SALDO Fatt.n. V0/134152  del 01/11/2018 Fattura Energia Elettrica;12/11/2018;1356;0;137;1;Spese correnti;3;Acquisto di beni e servizi;2;Acquisto di servizi;5;Utenze e canoni;4;Energia elettrica;12/11/2018
3283;1;0;1.166,56;1.166,56;GLOBAL POWER S.P.A.;622385037F;SALDO Fatt.n. V0/134155  del 01/11/2018 Fattura Energia Elettrica;12/11/2018;1353;0;136;1;Spese correnti;3;Acquisto di beni e servizi;2;Acquisto di servizi;5;Utenze e canoni;4;Energia elettrica;12/11/2018
3284;1;0;25,61;103,66;GLOBAL POWER S.P.A.;622385037F;SALDO Fatt.n. V0/134141  del 01/11/2018 Fattura Energia Elettrica;12/11/2018;1904;0;150;1;Spese correnti;3;Acquisto di beni e servizi;2;Acquisto di servizi;5;Utenze e canoni;4;Energia elettrica;12/11/2018
3284;2;0;35,23;103,66;GLOBAL POWER S.P.A.;622385037F;SALDO Fatt.n. V0/134159  del 01/11/2018 Fattura Energia Elettrica;12/11/2018;1904;0;150;1;Spese correnti;3;Acquisto di beni e servizi;2;Acquisto di servizi;5;Utenze e canoni;4;Energia elettrica;12/11/2018
3284;3;0;42,82;103,66;GLOBAL POWER S.P.A.;622385037F;SALDO Fatt.n. V0/134157  del 01/11/2018 Fattura Energia Elettrica;12/11/2018;1904;0;150;1;Spese correnti;3;Acquisto di beni e servizi;2;Acquisto di servizi;5;Utenze e canoni;4;Energia elettrica;12/11/2018
3285;1;0;40;40;ECONOMO COMUNALE - COMUNE DI S. STINO DI LIVENZA; ;Rimborso bolletta N.   149 del  30-10-18 RIMBORSO SCONTRINO FISCALE N. 6 DEL 30.10.18 OREFICERIA GUERRETTA SAN STINO DI LIVENZA - DETERMINA N. 460 DEL 28.09.18;14/11/2018;1048;0;712;1;Spese correnti;3;Acquisto di beni e servizi;1;Acquisto di beni;2;Altri beni di consumo;9;Beni per attività di rappresentanza;14/11/2018
3286;1;0;48,4;48,4;ECONOMO COMUNALE - COMUNE DI S. STINO DI LIVENZA; ;Rimborso bolletta N.   140 del  02-10-18 ACQUISTO CANCELLERIA VARIA VEDI BUONO ECONOMATO RIMBORSO SCONTRINO FISCALE N. 16 DEL 02.10.18 CARTOLIBRERIA BENEDET;14/11/2018;1055;0;261;1;Spese correnti;3;Acquisto di beni e servizi;1;Acquisto di beni;2;Altri beni di consumo;1;Carta, cancelleria e stampati;14/11/2018
3287;1;0;1,6;1,6;ECONOMO COMUNALE - COMUNE DI S. STINO DI LIVENZA; ;Rimborso bolletta N.   150 del  31-10-18 IMPOSTA DI BOLLO SU C/C ECONOMATO PERIODO 31.07 - 30.09;14/11/2018;1066;0;278;1;Spese correnti;3;Acquisto di beni e servizi;2;Acquisto di servizi;17;Servizi finanziari;1;Commissioni per servizi finanziari;14/11/2018
3289;1;0;6,5;6,5;ECONOMO COMUNALE - COMUNE DI S. STINO DI LIVENZA; ;Rimborso bolletta N.   147 del  26-10-18 RIMBORSO CAD POSTE ITALIANE DEL 26.10.2018 RIC.787679468739  AVVISO RICEVIMENTO ATTI;14/11/2018;1273;0;330;1;Spese correnti;3;Acquisto di beni e servizi;2;Acquisto di servizi;16;Servizi amministrativi;2;Spese postali;14/11/2018
3290;1;0;44;44;ECONOMO COMUNALE - COMUNE DI S. STINO DI LIVENZA; ;Rimborso bolletta N.   143 del  16-10-18 ACQUISTO MATERIALE PER MENSA (TAGLIERE, BACINELLE,PELAPATATE) RIMBORSO SCONTRINO NON FISCALE AI SENSI ART.1 C. 429 LEGGE 311/2004 SME SAN DONA' DI PIAVE;14/11/2018;1414;0;733;1;Spese correnti;3;Acquisto di beni e servizi;1;Acquisto di beni;2;Altri beni di consumo;999;Altri beni e materiali di consumo n.a.c.;14/11/2018
3291;1;0;48;48;ECONOMO COMUNALE - COMUNE DI S. STINO DI LIVENZA; ;Rimborso bolletta N.   145 del  19-10-18 RIMBORSO SCONTRINO FISCALE N. 12 DEL 19.10.18 ACQUISTO NR. 02 RISME CARTA A3 AVORIO 140GR PER BIBLIOTECA;14/11/2018;1478;0;265;1;Spese correnti;3;Acquisto di beni e servizi;1;Acquisto di beni;2;Altri beni di consumo;1;Carta, cancelleria e stampati;14/11/2018
3292;1;0;50;50;ECONOMO COMUNALE - COMUNE DI S. STINO DI LIVENZA; ;Rimborso bolletta N.   144 del  17-10-18 RICARICA WIND NUMERO 329/9303745 DEL 16.10.2018 - TEATRO - RICEVUTA DI PAGAMENTO N. 18101616521496624;14/11/2018;1515;0;222;1;Spese correnti;3;Acquisto di beni e servizi;2;Acquisto di servizi;5;Utenze e canoni;1;Telefonia fissa;14/11/2018
3294;1;0;168,84;168,84;ECONOMO COMUNALE - COMUNE DI S. STINO DI LIVENZA; ;Rimborso bolletta N.   142 del  05-10-18 PAGATE BOLLETTE TIM E ENEL SIG. AA18031;14/11/2018;1878;0;717;1;Spese correnti;4;Trasferimenti correnti;2;Trasferimenti correnti a Famiglie;2;Interventi assistenziali;999;Altri assegni e sussidi assistenziali;14/11/2018
3296;1;0;10,01;21,29;POSTE ITALIANE S.P.A.;ZE21F582A0;SALDO Fatt.n. 8018180605  del 16/10/2018 POSTA LIGHT;15/11/2018;1100;0;135;1;Spese correnti;3;Acquisto di beni e servizi;2;Acquisto di servizi;16;Servizi amministrativi;2;Spese postali;15/11/2018
3296;2;0;11,28;21,29;POSTE ITALIANE S.P.A.;ZE21F582A0;SALDO Fatt.n. 8018181855  del 16/10/2018 POSTA LIGHT;15/11/2018;1100;0;135;1;Spese correnti;3;Acquisto di beni e servizi;2;Acquisto di servizi;16;Servizi amministrativi;2;Spese postali;15/11/2018
3297;1;0;2.633,20;2.633,20;POSTE ITALIANE S.P.A.;ZE921CF36B;ACCONTO Fatt.n. 8718347138  del 17/10/2018 ATTI GIUDIZIARI, CAD, COMUNICAZIOEN AVVENUTA NOTIFICA SETTEMBRE 2018;15/11/2018;1273;0;206;1;Spese correnti;3;Acquisto di beni e servizi;2;Acquisto di servizi;16;Servizi amministrativi;2;Spese postali;15/11/2018
3298;1;0;1.800,90;1.800,90;POSTE ITALIANE S.P.A.;ZE921CF36B;SALDO Fatt.n. 8718347138  del 17/10/2018 ATTI GIUDIZIARI, CAD, COMUNICAZIOEN AVVENUTA NOTIFICA SETTEMBRE 2018;15/11/2018;1273;0;673;1;Spese correnti;3;Acquisto di beni e servizi;2;Acquisto di servizi;16;Servizi amministrativi;2;Spese postali;15/11/2018
3299;1;0;590,22;590,22;PITNEY BOWES ITALIA SRL; ;Impegno di spesa per le spese postali degli uffici comunali fino alla fine dell'esercizio finanziario 2018 - PAGAMENTO AFFRANCAPOSTA;16/11/2018;1100;0;781;1;Spese correnti;3;Acquisto di beni e servizi;2;Acquisto di servizi;16;Servizi amministrativi;2;Spese postali;16/11/2018
3300;1;0;136,22;136,22;OMESSO NOMINATIVO NEL RISPETTO DELLA NORMATIVA SULLA PROTEZIONE DATI PERSONALI; ;CONTRIBUTO ECONOMICO STRAORDINARIO SIGNORA AA18047 PER ACQUISTO LIBRI E MATERIALE SCOLASTICO  FIGLIA IN OBBLIGO SCOLASTICO - liquidazione con quietanza dell'agente contabile Edi Tallon;16/11/2018;1662;0;751;1;Spese correnti;4;Trasferimenti correnti;2;Trasferimenti correnti a Famiglie;2;Interventi assistenziali;999;Altri assegni e sussidi assistenziali;16/11/2018
3301;1;0;1.200,00;1.200,00;OMESSO NOMINATIVO NEL RISPETTO DELLA NORMATIVA SULLA PROTEZIONE DATI PERSONALI; ;ASSUNZIONE IMPEGNI DI SPESA PER LIQUIDAZIONE AI BENEFICIARI DELL ICDB 1 SEMESTRE 2018 E ICDM 2 TRIMESTRE 2018 - LIQUIDAZIONE ICDM 2 TRIMESTRE - VEDI ELENCO ALLEGATO - NOSELLA ANNA;16/11/2018;1895;0;708;1;Spese correnti;4;Trasferimenti correnti;2;Trasferimenti correnti a Famiglie;2;Interventi assistenziali;999;Altri assegni e sussidi assistenziali;16/11/2018
3302;1;0;833,76;833,76;OLIVETTI SPA;Z2321B32EC;SALDO Fatt.n. 0000016927  del 08/11/2018 TRASPORTO ALWAYS FLAT MESE DI OTTOBRE 2018;16/11/2018;1096;0;313;1;Spese correnti;3;Acquisto di beni e servizi;2;Acquisto di servizi;19;Servizi informatici e di telecomunicazioni;4;Servizi di rete per trasmissione dati e VoIP e relativa manutenzione;16/11/2018
3303;1;0;559,8;559,8;CIGAINA SRL;ZF42325275;SALDO Fatt.n. 356  del 09/11/2018 fornitura carta per fotocopie per gli uffici comunali;16/11/2018;1055;0;261;1;Spese correnti;3;Acquisto di beni e servizi;1;Acquisto di beni;2;Altri beni di consumo;1;Carta, cancelleria e stampati;16/11/2018
3304;1;0;115,29;115,29;MYO SPA;ZF7258302E;SALDO Fatt.n. 2040/180028675  del 09/11/2018 CARTELLINO-CONTR.INVALIDI EU CF10 C/OLOGR;16/11/2018;1250;0;723;1;Spese correnti;3;Acquisto di beni e servizi;1;Acquisto di beni;2;Altri beni di consumo;1;Carta, cancelleria e stampati;16/11/2018
3305;1;0;686,86;686,86;GIANFORT SRL;ZEB24BE97C;SALDO Fatt.n. 69 /3  del 31/10/2018 acquisto di calzature polizia municipale;16/11/2018;1265;0;676;1;Spese correnti;3;Acquisto di beni e servizi;1;Acquisto di beni;2;Altri beni di consumo;4;Vestiario;16/11/2018
3306;1;0;1.525,00;1.525,00;VELOCAR S.R.L.;Z4D21E7CB3;SALDO Fatt.n. 430/FE  del 05/11/2018 CANONE LOCAZIONE EVO L0 - MESE DI NOVEMBRE 2018;16/11/2018;1302;0;214;1;Spese correnti;3;Acquisto di beni e servizi;2;Acquisto di servizi;8;Leasing operativo;2;Leasing operativo di attrezzature e macchinari;16/11/2018
3307;1;0;677,77;1.801,78;STEP S.R.L.;7122037AD9;SALDO Fatt.n. FATTPA 1550_18  del 13/11/2018 AGGIO RISCOSSIONE COATTIVA NEL MESE DI OTTOBRE 2018 POLIZIA URBANA - RECUPERO SPESE PROCEDURA COATTIVA E SPESE POSTALI;16/11/2018;2158;0;200;1;Spese correnti;3;Acquisto di beni e servizi;2;Acquisto di servizi;3;Aggi di riscossione;999;Altri aggi di riscossione n.a.c.;16/11/2018
3307;2;0;1.124,01;1.801,78;STEP S.R.L.;7122037AD9;SALDO Fatt.n. FATTPA 1549_18  del 13/11/2018 AGGIO RISCOSSIONE COATTIVA UFFICIO TRIBUTI OTTOBRE 2018 - RECUPERO SPESE POSTALI E PROCEDURA COATTIVA;16/11/2018;2158;0;200;1;Spese correnti;3;Acquisto di beni e servizi;2;Acquisto di servizi;3;Aggi di riscossione;999;Altri aggi di riscossione n.a.c.;16/11/2018
3308;1;0;132;132;DELFINO & PATNERS SPA;Z6521DE164;SALDO Fatt.n. 1143/PA  del 12/11/2018 Partecipazione seminario Finanza locale e Bilancio 2019-2021 tenuto dal Dott. Maurizio Delfino il 07.11.2018 a Casier;16/11/2018;1040;0;769;1;Spese correnti;3;Acquisto di beni e servizi;2;Acquisto di servizi;4;Acquisto di servizi per formazione e addestramento del personale dell'ente;999;Acquisto di servizi per altre spese per formazione e addestramento n.a.c.;16/11/2018
3309;1;0;38,51;78,24;POSTE ITALIANE S.P.A.;ZE21F582A0;ACCONTO Fatt.n. 8018198548  del 12/11/2018 POSTA LIGHT;16/11/2018;1100;0;135;1;Spese correnti;3;Acquisto di beni e servizi;2;Acquisto di servizi;16;Servizi amministrativi;2;Spese postali;16/11/2018
3309;2;0;39,73;78,24;POSTE ITALIANE S.P.A.;ZE21F582A0;ACCONTO Fatt.n. 8018198618  del 12/11/2018 POSTA LIGHT;16/11/2018;1100;0;135;1;Spese correnti;3;Acquisto di beni e servizi;2;Acquisto di servizi;16;Servizi amministrativi;2;Spese postali;16/11/2018
3310;1;0;584,87;584,87;MARCHIOL S.P.A.;Z742521A34;SALDO Fatt.n. 1118631373  del 31/10/2018 MATERIALE ELETTRICO;16/11/2018;1666;0;724;1;Spese correnti;3;Acquisto di beni e servizi;1;Acquisto di beni;2;Altri beni di consumo;999;Altri beni e materiali di consumo n.a.c.;16/11/2018
3311;1;0;1.074,00;1.074,00;M.D.M. S.N.C. DI LORENZON M., NICOLETTI D. & VIERA M.;Z1324BBCFE;SALDO Fatt.n. FATTPA 2_18  del 27/10/2018 SMALTIMENTO VETRI ESISTENTI - FORNITURA E POSA VETRI DA 10 MM TEMPERATO E SAGOMATO AD ARCO;16/11/2018;3327;0;681;2;Spese in conto capitale;2;Investimenti fissi lordi e acquisto di terreni;1;Beni materiali;9;Beni immobili;5;Fabbricati rurali;16/11/2018
3312;1;0;1.952,00;1.952,00;ECONORD S.N.C. DI PICCININ L. & C.;Z8D236C188;SALDO Fatt.n. 07/E  del 31/10/2018  INTERVENTI DI PULIZIA POZZETTI NEL VS TERRITORIO COMUNALE;16/11/2018;1628;0;502;1;Spese correnti;3;Acquisto di beni e servizi;2;Acquisto di servizi;9;Manutenzione ordinaria e riparazioni;8;Manutenzione ordinaria e riparazioni di beni immobili;16/11/2018
3313;1;0;158,6;158,6;IMQ S.P.A.;ZAB22FFF3F;SALDO Fatt.n. 118031393  del 31/10/2018 Collaudo/Verifica impianti elevatori;16/11/2018;1094;0;441;1;Spese correnti;3;Acquisto di beni e servizi;2;Acquisto di servizi;9;Manutenzione ordinaria e riparazioni;8;Manutenzione ordinaria e riparazioni di beni immobili;16/11/2018
3314;1;0;1.732,40;1.732,40;TERMOIDRAULICA SETTIN SNC;Z3B23ED1DE;SALDO Fatt.n. 7  del 08/11/2018 FORNITURA E POSA DI N.17 SONDE DI MINIMA INSTALLATE SUI VENTILCONVETTORI DELL'IMMOBILE CASERMA DEI CARABINIERI;16/11/2018;3043;0;557;2;Spese in conto capitale;2;Investimenti fissi lordi e acquisto di terreni;1;Beni materiali;9;Beni immobili;2;Fabbricati ad uso commerciale;16/11/2018
3315;1;0;2.088,01;2.088,01;COOPERATIVA SOC.A.P.E. ARL;ZBF229AA0A;SALDO Fatt.n. 8/PAA  del 09/11/2018  Emettiamo fattura per progetto sociale di inserimento lavorativo. Mese di ottobre 2018;16/11/2018;1918;0;468;1;Spese correnti;3;Acquisto di beni e servizi;2;Acquisto di servizi;9;Manutenzione ordinaria e riparazioni;12;Manutenzione ordinaria e riparazioni di terreni e beni materiali non prodotti;16/11/2018
3316;1;0;1.243,05;1.243,05;LASTIMMA S.R.L. SEGNALETICA STRADALE;Z0A224227B;SALDO Fatt.n. E-86  del 13/11/2018 FORNITURA DI SEGNALETICA VERTICALE;16/11/2018;1933;0;317;1;Spese correnti;3;Acquisto di beni e servizi;2;Acquisto di servizi;9;Manutenzione ordinaria e riparazioni;12;Manutenzione ordinaria e riparazioni di terreni e beni materiali non prodotti;16/11/2018
3317;1;0;1.525,00;1.525,00;SA.CI. SANIFICAZIONI CIVILI s.r.l.;Z3E2358BFB;SALDO Fatt.n. P/20180036  del 14/11/2018 TRATTAMENTO ANTI LARVALE PER IL CONTROLLO DEI CULICIDI IV INTERVENTO;16/11/2018;1616;0;501;1;Spese correnti;3;Acquisto di beni e servizi;2;Acquisto di servizi;99;Altri servizi;9;Acquisto di sevizi per verde e arredo urbano;16/11/2018
3318;1;0;2.111,40;2.111,40;STUDIO INFERMIERISTICO ASSOCIATO PRESTINF;6983857D1A;SALDO Fatt.n. 000048-2018-PA  del 31/10/2018 SEDUTE PRESSO I CENTRI PRELIEVI MESE DI OTTOBRE 2018;16/11/2018;1881;0;296;1;Spese correnti;3;Acquisto di beni e servizi;2;Acquisto di servizi;18;Servizi sanitari;14;Acquisti di servizi socio sanitari a rilevanza sanitaria;16/11/2018
3319;1;0;951,6;951,6;CHIARELLO GIAMPAOLO;Z61253316B;SALDO Fatt.n. 1 / PA  del 31/10/2018 Dosatore ed Addolcitore per detersivo - Tritacarne professionale TC 22 con coltello autoaffilante e nr. 2 piastre V 380;16/11/2018;1414;0;732;1;Spese correnti;3;Acquisto di beni e servizi;1;Acquisto di beni;2;Altri beni di consumo;999;Altri beni e materiali di consumo n.a.c.;16/11/2018
3320;1;0;13.622,50;13.622,50;EDIL FAB SRL;599968048F;SALDO Fatt.n. FATTPA 31_18  del 31/10/2018 TREDICESIMA RATA CANONE DI CONCESSIONE AMPLIAMENTO CIMITERI COMUNALI;16/11/2018;1622;0;1;1;Spese correnti;3;Acquisto di beni e servizi;2;Acquisto di servizi;6;Canoni per Progetti in Partenariato Pubblico-Privato;1;Canoni Disponibilità;16/11/2018
3321;1;0;27.500,00;27.500,00;EDIL FAB SRL;599968048F;SALDO Fatt.n. FATTPA 32_18  del 31/10/2018 TREDICESIMA RATA CANONE CONCESSIONE AMPLIAMENTO CIMITERI COMUNALI;16/11/2018;1622;0;1;1;Spese correnti;3;Acquisto di beni e servizi;2;Acquisto di servizi;6;Canoni per Progetti in Partenariato Pubblico-Privato;1;Canoni Disponibilità;16/11/2018
3322;1;0;302,56;302,56;FERRAMENTA HOBBY IDEA S.N.C.;Z1625680EB;SALDO Fatt.n. 55  del 31/10/2018 PENSILINA IN ALLUMINIO E POLICARBONATO DIM. 95X150;16/11/2018;3506;0;766;2;Spese in conto capitale;2;Investimenti fissi lordi e acquisto di terreni;1;Beni materiali;9;Beni immobili;18;Musei, teatri e biblioteche;16/11/2018
3323;1;0;15,81;15,81;IDEAL GESTIONI SRL;Z4B2237F98;SALDO Fatt.n. 43/PA  del 31/10/2018 ACQUISTO GENERI ALIMENTARI ED IGENICI SCUOLA SACRO CUORE;16/11/2018;1416;0;499;1;Spese correnti;3;Acquisto di beni e servizi;1;Acquisto di beni;2;Altri beni di consumo;11;Generi alimentari;16/11/2018
3324;1;0;24;24;VODAFONE ITALIA SPA;Z222259F7D;ACCONTO Fatt.n. AI14611386  del 14/08/2018 BIMESTRE 09/06/18 - 14/08/18 TELEFONIA MOBILE;16/11/2018;1014;0;185;1;Spese correnti;3;Acquisto di beni e servizi;2;Acquisto di servizi;5;Utenze e canoni;2;Telefonia mobile;16/11/2018
3325;1;0;154;154;VODAFONE ITALIA SPA;Z222259F7D;ACCONTO Fatt.n. AI14611386  del 14/08/2018 BIMESTRE 09/06/18 - 14/08/18 TELEFONIA MOBILE;16/11/2018;1324;0;183;1;Spese correnti;3;Acquisto di beni e servizi;2;Acquisto di servizi;5;Utenze e canoni;2;Telefonia mobile;16/11/2018
3326;1;0;203;203;VODAFONE ITALIA SPA;Z222259F7D;ACCONTO Fatt.n. AI14611386  del 14/08/2018 BIMESTRE 09/06/18 - 14/08/18 TELEFONIA MOBILE;16/11/2018;1484;0;184;1;Spese correnti;3;Acquisto di beni e servizi;2;Acquisto di servizi;5;Utenze e canoni;2;Telefonia mobile;16/11/2018
3327;1;0;414,19;414,19;VODAFONE ITALIA SPA;Z222259F7D;ACCONTO Fatt.n. AI14611386  del 14/08/2018 BIMESTRE 09/06/18 - 14/08/18 TELEFONIA MOBILE;16/11/2018;1276;0;182;1;Spese correnti;3;Acquisto di beni e servizi;2;Acquisto di servizi;5;Utenze e canoni;2;Telefonia mobile;16/11/2018
3328;1;0;477,18;477,18;VODAFONE ITALIA SPA;Z222259F7D;SALDO Fatt.n. AI14611386  del 14/08/2018 BIMESTRE 09/06/18 - 14/08/18 TELEFONIA MOBILE;16/11/2018;1093;0;181;1;Spese correnti;3;Acquisto di beni e servizi;2;Acquisto di servizi;5;Utenze e canoni;2;Telefonia mobile;16/11/2018
3329;1;0;527,18;527,18;VODAFONE ITALIA SPA;Z222259F7D;ACCONTO Fatt.n. AI18605074  del 13/10/2018 BIMESTRE 09/08/18 - 08/10/18 TELEFONIA MOBILE;16/11/2018;1093;0;181;1;Spese correnti;3;Acquisto di beni e servizi;2;Acquisto di servizi;5;Utenze e canoni;2;Telefonia mobile;16/11/2018
3330;1;0;363,8;363,8;VODAFONE ITALIA SPA;Z222259F7D;ACCONTO Fatt.n. AI18605074  del 13/10/2018 BIMESTRE 09/08/18 - 08/10/18 TELEFONIA MOBILE;16/11/2018;1276;0;182;1;Spese correnti;3;Acquisto di beni e servizi;2;Acquisto di servizi;5;Utenze e canoni;2;Telefonia mobile;16/11/2018
3331;1;0;132,74;132,74;VODAFONE ITALIA SPA;Z222259F7D;ACCONTO Fatt.n. AI18605074  del 13/10/2018 BIMESTRE 09/08/18 - 08/10/18 TELEFONIA MOBILE;16/11/2018;1324;0;183;1;Spese correnti;3;Acquisto di beni e servizi;2;Acquisto di servizi;5;Utenze e canoni;2;Telefonia mobile;16/11/2018
3332;1;0;24;24;VODAFONE ITALIA SPA;Z222259F7D;SALDO Fatt.n. AI18605074  del 13/10/2018 BIMESTRE 09/08/18 - 08/10/18 TELEFONIA MOBILE;16/11/2018;1014;0;185;1;Spese correnti;3;Acquisto di beni e servizi;2;Acquisto di servizi;5;Utenze e canoni;2;Telefonia mobile;16/11/2018
3333;1;0;545;545;DIVISIONE ENERGIA SRL (AEQUA GROUP);Z2E1B47FAD;SALDO Fatt.n. PA016/2018  del 30/10/2018 SERVIZIO DI SPORTELLO ENERGIA PRESSO LA SEDE DEL COMUNE DI SAN STINO DI LIVENZA SALDO 2016;16/11/2018;1703;0;749;1;Spese correnti;3;Acquisto di beni e servizi;2;Acquisto di servizi;11;Prestazioni professionali e specialistiche;999;Altre prestazioni professionali e specialistiche n.a.c.;16/11/2018
3334;1;0;318,15;318,15;FERCAR DI CARNIELETTO ROBERTO;ZCA21D3D6C;SALDO Fatt.n. 4/FEA/2018  del 31/10/2018 MATERIALE VARIO DI FERRAMENTA MESE DI OTTOBRE 2018;16/11/2018;1397;0;128;1;Spese correnti;3;Acquisto di beni e servizi;1;Acquisto di beni;2;Altri beni di consumo;999;Altri beni e materiali di consumo n.a.c.;16/11/2018
3335;1;0;131,76;131,76;TIM SPA;Z6B132FFD7;SALDO Fatt.n. 8E00871684  del 05/10/2018 6BIM 2018  AGOSTO - SETTEMBRE 0421/310854;16/11/2018;1088;0;179;1;Spese correnti;3;Acquisto di beni e servizi;2;Acquisto di servizi;5;Utenze e canoni;1;Telefonia fissa;16/11/2018
3336;1;0;35,48;35,48;TIM SPA;Z6B132FFD7;SALDO Fatt.n. 8E00872517  del 05/10/2018 6BIM 2018  AGOSTO - SETTEMBRE 0421/310773;16/11/2018;1088;0;179;1;Spese correnti;3;Acquisto di beni e servizi;2;Acquisto di servizi;5;Utenze e canoni;1;Telefonia fissa;16/11/2018
3337;1;0;1.348,32;1.348,32;DITTA SANTIN R. DI SANTIN DARIO;Z2F253C3C2;SALDO Fatt.n. 216PA  del 20/10/2018 RIPARAZIONE E MANUTENZIONE ATTREZZATURE PER IL VERDE PUBBLICO;16/11/2018;1919;0;742;1;Spese correnti;3;Acquisto di beni e servizi;2;Acquisto di servizi;9;Manutenzione ordinaria e riparazioni;4;Manutenzione ordinaria e riparazioni di impianti e macchinari;16/11/2018
3338;1;0;2.074,00;2.074,00;LINEA MARMO SNC DI PRATAVIERA FABIO E SIMONE;ZE725158AC;SALDO Fatt.n. 000002-2018-FT 2018  del 30/10/2018 LAVORI DI INCISIONE DI N. 17 NOMI DEI SOLDATI CADUTI DURANTE IL PRIMO CONFLITTO MONDIALE SULLE LAPIDI MARMOREE DEL MONUMENTO AI CADUTI IN PIAZZA ALDO MORO;16/11/2018;3039;0;720;2;Spese in conto capitale;2;Investimenti fissi lordi e acquisto di terreni;1;Beni materiali;9;Beni immobili;2;Fabbricati ad uso commerciale;16/11/2018
3339;1;0;119,9;119,9;VERITAS S.P.A.;Z5D2239422;SALDO Fatt.n. 810000274237  del 29/10/2018 SERVIZIO IDRICO INTEGRATO periodo 16.10.2017-23.11.2017 VIA ROMERO IDRANTI;16/11/2018;1810;0;173;1;Spese correnti;3;Acquisto di beni e servizi;2;Acquisto di servizi;5;Utenze e canoni;5;Acqua;16/11/2018
3340;1;0;1.035,37;1.035,37;GLOBAL POWER S.P.A.;622385037F;SALDO Fatt.n. V0/134125  del 01/11/2018 Fattura Energia Elettrica;16/11/2018;1073;0;158;1;Spese correnti;3;Acquisto di beni e servizi;2;Acquisto di servizi;5;Utenze e canoni;4;Energia elettrica;16/11/2018
3341;1;0;376,33;376,33;GLOBAL POWER S.P.A.;622385037F;SALDO Fatt.n. V0/134126  del 01/11/2018 Fattura Energia Elettrica;16/11/2018;1627;0;166;1;Spese correnti;3;Acquisto di beni e servizi;2;Acquisto di servizi;5;Utenze e canoni;4;Energia elettrica;16/11/2018
3342;1;0;71,99;71,99;GLOBAL POWER S.P.A.;622385037F;SALDO Fatt.n. V0/134137  del 01/11/2018 Fattura Energia Elettrica;16/11/2018;1932;0;177;1;Spese correnti;3;Acquisto di beni e servizi;2;Acquisto di servizi;5;Utenze e canoni;4;Energia elettrica;16/11/2018
3343;1;0;71,57;71,57;GLOBAL POWER S.P.A.;622385037F;SALDO Fatt.n. V0/134160  del 01/11/2018 Fattura Energia Elettrica;16/11/2018;1807;0;172;1;Spese correnti;3;Acquisto di beni e servizi;2;Acquisto di servizi;5;Utenze e canoni;4;Energia elettrica;16/11/2018
3344;1;0;41,5;41,5;GLOBAL POWER S.P.A.;622385037F;SALDO Fatt.n. V0/134149  del 01/11/2018 Fattura Energia Elettrica;16/11/2018;1928;0;176;1;Spese correnti;3;Acquisto di beni e servizi;2;Acquisto di servizi;5;Utenze e canoni;4;Energia elettrica;16/11/2018
3345;1;0;425,93;425,93;GLOBAL POWER S.P.A.;622385037F;SALDO Fatt.n. V0/134148  del 01/11/2018 Fattura Energia Elettrica;16/11/2018;1075;0;160;1;Spese correnti;3;Acquisto di beni e servizi;2;Acquisto di servizi;5;Utenze e canoni;4;Energia elettrica;16/11/2018
3346;1;0;745,15;745,15;GLOBAL POWER S.P.A.;622385037F;SALDO Fatt.n. V0/134133  del 01/11/2018 Fattura Energia Elettrica;16/11/2018;1831;0;175;1;Spese correnti;3;Acquisto di beni e servizi;2;Acquisto di servizi;5;Utenze e canoni;4;Energia elettrica;16/11/2018
3347;1;0;94;94;GLOBAL POWER S.P.A.;622385037F;SALDO Fatt.n. V0/134138  del 01/11/2018 Fattura Energia Elettrica;16/11/2018;1159;0;163;1;Spese correnti;3;Acquisto di beni e servizi;2;Acquisto di servizi;5;Utenze e canoni;4;Energia elettrica;16/11/2018
3348;1;0;32,01;149,21;GLOBAL POWER S.P.A.;622385037F;SALDO Fatt.n. V0/134139  del 01/11/2018 Fattura Energia Elettrica;16/11/2018;1806;0;171;1;Spese correnti;3;Acquisto di beni e servizi;2;Acquisto di servizi;5;Utenze e canoni;4;Energia elettrica;16/11/2018
3348;2;0;50;149,21;GLOBAL POWER S.P.A.;622385037F;SALDO Fatt.n. V0/134158  del 01/11/2018 Fattura Energia Elettrica;16/11/2018;1806;0;171;1;Spese correnti;3;Acquisto di beni e servizi;2;Acquisto di servizi;5;Utenze e canoni;4;Energia elettrica;16/11/2018
3348;3;0;67,2;149,21;GLOBAL POWER S.P.A.;622385037F;SALDO Fatt.n. V0/134132  del 01/11/2018 Fattura Energia Elettrica;16/11/2018;1806;0;171;1;Spese correnti;3;Acquisto di beni e servizi;2;Acquisto di servizi;5;Utenze e canoni;4;Energia elettrica;16/11/2018
3349;1;0;41,87;41,87;GLOBAL POWER S.P.A.;622385037F;SALDO Fatt.n. V0/134156  del 01/11/2018 Fattura Energia Elettrica;16/11/2018;1807;0;172;1;Spese correnti;3;Acquisto di beni e servizi;2;Acquisto di servizi;5;Utenze e canoni;4;Energia elettrica;16/11/2018
3350;1;0;143,31;26.271,49;GLOBAL POWER S.P.A.;622385037F;SALDO Fatt.n. V0/134161  del 01/11/2018 Fattura Energia Elettrica;16/11/2018;1937;0;178;1;Spese correnti;3;Acquisto di beni e servizi;2;Acquisto di servizi;5;Utenze e canoni;4;Energia elettrica;16/11/2018
3350;2;0;146,71;26.271,49;GLOBAL POWER S.P.A.;622385037F;SALDO Fatt.n. V0/134128  del 01/11/2018 Fattura Energia Elettrica;16/11/2018;1937;0;178;1;Spese correnti;3;Acquisto di beni e servizi;2;Acquisto di servizi;5;Utenze e canoni;4;Energia elettrica;16/11/2018
3350;3;0;172,96;26.271,49;GLOBAL POWER S.P.A.;622385037F;SALDO Fatt.n. V0/134135  del 01/11/2018 Fattura Energia Elettrica;16/11/2018;1937;0;178;1;Spese correnti;3;Acquisto di beni e servizi;2;Acquisto di servizi;5;Utenze e canoni;4;Energia elettrica;16/11/2018
3350;4;0;173,01;26.271,49;GLOBAL POWER S.P.A.;622385037F;SALDO Fatt.n. V0/134153  del 01/11/2018 Fattura Energia Elettrica;16/11/2018;1937;0;178;1;Spese correnti;3;Acquisto di beni e servizi;2;Acquisto di servizi;5;Utenze e canoni;4;Energia elettrica;16/11/2018
3350;5;0;200,81;26.271,49;GLOBAL POWER S.P.A.;622385037F;SALDO Fatt.n. V0/134134  del 01/11/2018 Fattura Energia Elettrica;16/11/2018;1937;0;178;1;Spese correnti;3;Acquisto di beni e servizi;2;Acquisto di servizi;5;Utenze e canoni;4;Energia elettrica;16/11/2018
3350;6;0;209,12;26.271,49;GLOBAL POWER S.P.A.;622385037F;SALDO Fatt.n. V0/134151  del 01/11/2018 Fattura Energia Elettrica;16/11/2018;1937;0;178;1;Spese correnti;3;Acquisto di beni e servizi;2;Acquisto di servizi;5;Utenze e canoni;4;Energia elettrica;16/11/2018
3350;7;0;524,89;26.271,49;GLOBAL POWER S.P.A.;622385037F;SALDO Fatt.n. V0/134154  del 01/11/2018 Fattura Energia Elettrica;16/11/2018;1937;0;178;1;Spese correnti;3;Acquisto di beni e servizi;2;Acquisto di servizi;5;Utenze e canoni;4;Energia elettrica;16/11/2018
3350;8;0;577,18;26.271,49;GLOBAL POWER S.P.A.;622385037F;SALDO Fatt.n. V0/134127  del 01/11/2018 Fattura Energia Elettrica;16/11/2018;1937;0;178;1;Spese correnti;3;Acquisto di beni e servizi;2;Acquisto di servizi;5;Utenze e canoni;4;Energia elettrica;16/11/2018
3350;9;0;24.123,50;26.271,49;GLOBAL POWER S.P.A.;622385037F;SALDO Fatt.n. V0/134162  del 01/11/2018 Fattura Energia Elettrica;16/11/2018;1937;0;178;1;Spese correnti;3;Acquisto di beni e servizi;2;Acquisto di servizi;5;Utenze e canoni;4;Energia elettrica;16/11/2018
3351;1;0;79,99;79,99;IDEAL GESTIONI SRL;Z4B2237F98;SALDO Fatt.n. 44/PA  del 03/11/2018 ACQUISTO GENERI ALIMENTARI ED IGENICI SCUOLA SACRO CUORE;16/11/2018;1416;0;499;1;Spese correnti;3;Acquisto di beni e servizi;1;Acquisto di beni;2;Altri beni di consumo;11;Generi alimentari;16/11/2018
3352;1;0;3.806,40;3.806,40;PESCAROLLO ROBERTO;Z37201EA5B;SALDO Fatt.n. FATTPA 17_18  del 27/10/2018 Progetto esecutivo qualificazione itinerario GiraLivenza in San Stino di Livenza;16/11/2018;3310;0;721;2;Spese in conto capitale;2;Investimenti fissi lordi e acquisto di terreni;1;Beni materiali;9;Beni immobili;14;Opere per la sistemazione del suolo;16/11/2018
3353;1;0;6,15;1.832,25;TINAZZO MARIKA; ;SALDO Fatt.n. 7PA/2018  del 06/11/2018 NOTA DI ADDEBITO DIFFERENZA PREZZI LIBRI SCOLASTICI;19/11/2018;1368;0;496;1;Spese correnti;4;Trasferimenti correnti;2;Trasferimenti correnti a Famiglie;5;Altri trasferimenti a famiglie;999;Altri trasferimenti a famiglie n.a.c.;19/11/2018
3353;2;0;27,13;1.832,25;TINAZZO MARIKA; ;SALDO Fatt.n. 8PA/2018  del 06/11/2018 NOTA DI ADDEBITO DIFFERENZA PREZZI LIBRI SCOLASTICI;19/11/2018;1368;0;496;1;Spese correnti;4;Trasferimenti correnti;2;Trasferimenti correnti a Famiglie;5;Altri trasferimenti a famiglie;999;Altri trasferimenti a famiglie n.a.c.;19/11/2018
3353;3;0;303,99;1.832,25;TINAZZO MARIKA; ;SALDO Fatt.n. 5PA/2018  del 12/10/2018 FORNITURA GRATUITA LIBRI DI TESTO AGLI ALUNNI RESIDENTI NEL TERRRITORIO COMUNALE;19/11/2018;1368;0;496;1;Spese correnti;4;Trasferimenti correnti;2;Trasferimenti correnti a Famiglie;5;Altri trasferimenti a famiglie;999;Altri trasferimenti a famiglie n.a.c.;19/11/2018
3353;4;0;1.494,98;1.832,25;TINAZZO MARIKA; ;SALDO Fatt.n. 6PA/2018  del 22/10/2018 FORNITURA GRATUITA LIBRI DI TESTO AGLI ALUNNI RESIDENTI NEL TERRRITORIO COMUNALE;19/11/2018;1368;0;496;1;Spese correnti;4;Trasferimenti correnti;2;Trasferimenti correnti a Famiglie;5;Altri trasferimenti a famiglie;999;Altri trasferimenti a famiglie n.a.c.;19/11/2018
3354;1;0;250;250;MACERIA GIANCARLO;ZA3240780C;Prot.18153 del 30/10/2018;19/11/2018;1099;0;559;1;Spese correnti;3;Acquisto di beni e servizi;2;Acquisto di servizi;99;Altri servizi;5;Spese per commissioni e comitati dell'Ente;19/11/2018
3355;1;0;819,07;1.638,14;COOP NONCELLO SOC. COOPERATIVA SOCIALE ONLUS;74884375B3;SALDO Fatt.n. 2018/VPA/2385  del 30/09/2018 SERVIZIO PULIZIE CIVILI - MEN PULIZIE DELEGAZIONE COMUNALE SETTEMBRE 2018;19/11/2018;1460;0;650;1;Spese correnti;3;Acquisto di beni e servizi;2;Acquisto di servizi;13;Servizi ausiliari per il funzionamento dell'ente;2;Servizi di pulizia e lavanderia;19/11/2018
3355;2;0;819,07;1.638,14;COOP NONCELLO SOC. COOPERATIVA SOCIALE ONLUS;74884375B3;SALDO Fatt.n. 2018/VPA/2502  del 31/10/2018 SERVIZIO PULIZIE CIVILI - MEN PULIZIE DELEGAZIONE COMUNALE OTTOBRE 2018;19/11/2018;1460;0;650;1;Spese correnti;3;Acquisto di beni e servizi;2;Acquisto di servizi;13;Servizi ausiliari per il funzionamento dell'ente;2;Servizi di pulizia e lavanderia;19/11/2018
3356;1;0;31,38;435,07;COOP NONCELLO SOC. COOPERATIVA SOCIALE ONLUS;74884375B3;SALDO Fatt.n. 2018/VPA/2499  del 31/10/2018 SERVIZIO PULIZIE CIVILI - MEN PUL. PALESTRA SC.SECONDARIA USO COMMERC.OTTOBRE 2018;19/11/2018;1460;0;650;1;Spese correnti;3;Acquisto di beni e servizi;2;Acquisto di servizi;13;Servizi ausiliari per il funzionamento dell'ente;2;Servizi di pulizia e lavanderia;19/11/2018
3356;2;0;142,65;435,07;COOP NONCELLO SOC. COOPERATIVA SOCIALE ONLUS;74884375B3;ACCONTO Fatt.n. 2018/VPA/2499  del 31/10/2018 SERVIZIO PULIZIE CIVILI - MEN PUL. PALESTRA SC.SECONDARIA USO COMMERC.OTTOBRE 2018;19/11/2018;1460;0;650;1;Spese correnti;3;Acquisto di beni e servizi;2;Acquisto di servizi;13;Servizi ausiliari per il funzionamento dell'ente;2;Servizi di pulizia e lavanderia;19/11/2018
3356;3;0;261,04;435,07;COOP NONCELLO SOC. COOPERATIVA SOCIALE ONLUS;74884375B3;SALDO Fatt.n. 2018/VPA/2498  del 31/10/2018 SERVIZIO PULIZIE CIVILI - MEN PUL. PALESTRA SC.SECONDARIA USO ISTITUZ.OTTOBRE 2018;19/11/2018;1460;0;650;1;Spese correnti;3;Acquisto di beni e servizi;2;Acquisto di servizi;13;Servizi ausiliari per il funzionamento dell'ente;2;Servizi di pulizia e lavanderia;19/11/2018
3357;1;0;44,11;611,58;COOP NONCELLO SOC. COOPERATIVA SOCIALE ONLUS;74884375B3;SALDO Fatt.n. 2018/VPA/2497  del 31/10/2018 SERVIZIO PULIZIE CIVILI - MEN PUL. PALESTRA SC.PRIMARIA USO COMM. OTTOBRE 2018;19/11/2018;1460;0;650;1;Spese correnti;3;Acquisto di beni e servizi;2;Acquisto di servizi;13;Servizi ausiliari per il funzionamento dell'ente;2;Servizi di pulizia e lavanderia;19/11/2018
3357;2;0;200,52;611,58;COOP NONCELLO SOC. COOPERATIVA SOCIALE ONLUS;74884375B3;ACCONTO Fatt.n. 2018/VPA/2497  del 31/10/2018 SERVIZIO PULIZIE CIVILI - MEN PUL. PALESTRA SC.PRIMARIA USO COMM. OTTOBRE 2018;19/11/2018;1460;0;650;1;Spese correnti;3;Acquisto di beni e servizi;2;Acquisto di servizi;13;Servizi ausiliari per il funzionamento dell'ente;2;Servizi di pulizia e lavanderia;19/11/2018
3357;3;0;366,95;611,58;COOP NONCELLO SOC. COOPERATIVA SOCIALE ONLUS;74884375B3;SALDO Fatt.n. 2018/VPA/2496  del 31/10/2018 SERVIZIO PULIZIE CIVILI - MEN PUL. PALESTRA SC.PRIMARIA USO ISTITUZ. OTTOBRE 2018;19/11/2018;1460;0;650;1;Spese correnti;3;Acquisto di beni e servizi;2;Acquisto di servizi;13;Servizi ausiliari per il funzionamento dell'ente;2;Servizi di pulizia e lavanderia;19/11/2018
3358;1;0;44,11;611,58;COOP NONCELLO SOC. COOPERATIVA SOCIALE ONLUS;74884375B3;SALDO Fatt.n. 2018/VPA/2495  del 31/10/2018 SERVIZIO PULIZIE CIVILI - MEN PULIZIE PALESTRA LA SALUTE-USO COMMERC.OTTOBRE 2018;19/11/2018;1460;0;650;1;Spese correnti;3;Acquisto di beni e servizi;2;Acquisto di servizi;13;Servizi ausiliari per il funzionamento dell'ente;2;Servizi di pulizia e lavanderia;19/11/2018
3358;2;0;200,52;611,58;COOP NONCELLO SOC. COOPERATIVA SOCIALE ONLUS;74884375B3;ACCONTO Fatt.n. 2018/VPA/2495  del 31/10/2018 SERVIZIO PULIZIE CIVILI - MEN PULIZIE PALESTRA LA SALUTE-USO COMMERC.OTTOBRE 2018;19/11/2018;1460;0;650;1;Spese correnti;3;Acquisto di beni e servizi;2;Acquisto di servizi;13;Servizi ausiliari per il funzionamento dell'ente;2;Servizi di pulizia e lavanderia;19/11/2018
3358;3;0;366,95;611,58;COOP NONCELLO SOC. COOPERATIVA SOCIALE ONLUS;74884375B3;SALDO Fatt.n. 2018/VPA/2494  del 31/10/2018 SERVIZIO PULIZIE CIVILI - MEN PULIZIE PALESTRA LA SALUTE-USO ISTITUZ. OTTOBRE 2018;19/11/2018;1460;0;650;1;Spese correnti;3;Acquisto di beni e servizi;2;Acquisto di servizi;13;Servizi ausiliari per il funzionamento dell'ente;2;Servizi di pulizia e lavanderia;19/11/2018
3359;1;0;31,38;435,07;COOP NONCELLO SOC. COOPERATIVA SOCIALE ONLUS;74884375B3;SALDO Fatt.n. 2018/VPA/2382  del 30/09/2018 SERVIZIO PULIZIE CIVILI - MEN PUL. PALESTRA SC.SECONDARIA USO COMMERC.SETTEMBRE 2018;19/11/2018;1460;0;650;1;Spese correnti;3;Acquisto di beni e servizi;2;Acquisto di servizi;13;Servizi ausiliari per il funzionamento dell'ente;2;Servizi di pulizia e lavanderia;19/11/2018
3359;2;0;142,65;435,07;COOP NONCELLO SOC. COOPERATIVA SOCIALE ONLUS;74884375B3;ACCONTO Fatt.n. 2018/VPA/2382  del 30/09/2018 SERVIZIO PULIZIE CIVILI - MEN PUL. PALESTRA SC.SECONDARIA USO COMMERC.SETTEMBRE 2018;19/11/2018;1460;0;650;1;Spese correnti;3;Acquisto di beni e servizi;2;Acquisto di servizi;13;Servizi ausiliari per il funzionamento dell'ente;2;Servizi di pulizia e lavanderia;19/11/2018
3359;3;0;261,04;435,07;COOP NONCELLO SOC. COOPERATIVA SOCIALE ONLUS;74884375B3;SALDO Fatt.n. 2018/VPA/2381  del 30/09/2018 SERVIZIO PULIZIE CIVILI - MEN PUL. PALESTRA SC.SECONDARIA USO ISTITUZ.SETTEMBRE 2018;19/11/2018;1460;0;650;1;Spese correnti;3;Acquisto di beni e servizi;2;Acquisto di servizi;13;Servizi ausiliari per il funzionamento dell'ente;2;Servizi di pulizia e lavanderia;19/11/2018
3360;1;0;44,11;611,58;COOP NONCELLO SOC. COOPERATIVA SOCIALE ONLUS;74884375B3;SALDO Fatt.n. 2018/VPA/2380  del 30/09/2018 SERVIZIO PULIZIE CIVILI - MEN PUL. PALESTRA SC.PRIMARIA USO COMM. SETTMBRE 2018;19/11/2018;1460;0;650;1;Spese correnti;3;Acquisto di beni e servizi;2;Acquisto di servizi;13;Servizi ausiliari per il funzionamento dell'ente;2;Servizi di pulizia e lavanderia;19/11/2018
3360;2;0;200,52;611,58;COOP NONCELLO SOC. COOPERATIVA SOCIALE ONLUS;74884375B3;ACCONTO Fatt.n. 2018/VPA/2380  del 30/09/2018 SERVIZIO PULIZIE CIVILI - MEN PUL. PALESTRA SC.PRIMARIA USO COMM. SETTMBRE 2018;19/11/2018;1460;0;650;1;Spese correnti;3;Acquisto di beni e servizi;2;Acquisto di servizi;13;Servizi ausiliari per il funzionamento dell'ente;2;Servizi di pulizia e lavanderia;19/11/2018
3360;3;0;366,95;611,58;COOP NONCELLO SOC. COOPERATIVA SOCIALE ONLUS;74884375B3;SALDO Fatt.n. 2018/VPA/2379  del 30/09/2018 SERVIZIO PULIZIE CIVILI - MEN PUL. PALESTRA SC.PRIMARIA USO ISTITUZ. SETTEMBRE 2018;19/11/2018;1460;0;650;1;Spese correnti;3;Acquisto di beni e servizi;2;Acquisto di servizi;13;Servizi ausiliari per il funzionamento dell'ente;2;Servizi di pulizia e lavanderia;19/11/2018
3361;1;0;44,11;611,58;COOP NONCELLO SOC. COOPERATIVA SOCIALE ONLUS;74884375B3;SALDO Fatt.n. 2018/VPA/2378  del 30/09/2018 SERVIZIO PULIZIE CIVILI - MEN PULIZIE PALESTRA LA SALUTE-USO COMMERC.SETTEMBRE 2018;19/11/2018;1460;0;650;1;Spese correnti;3;Acquisto di beni e servizi;2;Acquisto di servizi;13;Servizi ausiliari per il funzionamento dell'ente;2;Servizi di pulizia e lavanderia;19/11/2018
3361;2;0;200,52;611,58;COOP NONCELLO SOC. COOPERATIVA SOCIALE ONLUS;74884375B3;ACCONTO Fatt.n. 2018/VPA/2378  del 30/09/2018 SERVIZIO PULIZIE CIVILI - MEN PULIZIE PALESTRA LA SALUTE-USO COMMERC.SETTEMBRE 2018;19/11/2018;1460;0;650;1;Spese correnti;3;Acquisto di beni e servizi;2;Acquisto di servizi;13;Servizi ausiliari per il funzionamento dell'ente;2;Servizi di pulizia e lavanderia;19/11/2018
3361;3;0;366,95;611,58;COOP NONCELLO SOC. COOPERATIVA SOCIALE ONLUS;74884375B3;SALDO Fatt.n. 2018/VPA/2377  del 30/09/2018 SERVIZIO PULIZIE CIVILI - MEN PULIZIE PALESTRA LA SALUTE-USO ISTITUZ. SETTEMBRE 2018;19/11/2018;1460;0;650;1;Spese correnti;3;Acquisto di beni e servizi;2;Acquisto di servizi;13;Servizi ausiliari per il funzionamento dell'ente;2;Servizi di pulizia e lavanderia;19/11/2018
3362;1;0;121,55;1.215,44;COOP NONCELLO SOC. COOPERATIVA SOCIALE ONLUS;74884375B3;SALDO Fatt.n. 2018/VPA/2500  del 31/10/2018 SERVIZIO PULIZIE CIVILI - MEN PUL. PALAZZETTO MARTA RUSSO USO ISTITUZ OTTOBRE 2018;19/11/2018;1837;0;651;1;Spese correnti;3;Acquisto di beni e servizi;2;Acquisto di servizi;13;Servizi ausiliari per il funzionamento dell'ente;2;Servizi di pulizia e lavanderia;19/11/2018
3362;2;0;197,26;1.215,44;COOP NONCELLO SOC. COOPERATIVA SOCIALE ONLUS;74884375B3;SALDO Fatt.n. 2018/VPA/2501  del 31/10/2018 SERVIZIO PULIZIE CIVILI - MEN PUL. PALAZZETTO MARTA RUSSO USO COMMERC. OTTOBRE 2018;19/11/2018;1837;0;651;1;Spese correnti;3;Acquisto di beni e servizi;2;Acquisto di servizi;13;Servizi ausiliari per il funzionamento dell'ente;2;Servizi di pulizia e lavanderia;19/11/2018
3362;3;0;896,63;1.215,44;COOP NONCELLO SOC. COOPERATIVA SOCIALE ONLUS;74884375B3;ACCONTO Fatt.n. 2018/VPA/2501  del 31/10/2018 SERVIZIO PULIZIE CIVILI - MEN PUL. PALAZZETTO MARTA RUSSO USO COMMERC. OTTOBRE 2018;19/11/2018;1837;0;651;1;Spese correnti;3;Acquisto di beni e servizi;2;Acquisto di servizi;13;Servizi ausiliari per il funzionamento dell'ente;2;Servizi di pulizia e lavanderia;19/11/2018
3363;1;0;121,55;1.215,44;COOP NONCELLO SOC. COOPERATIVA SOCIALE ONLUS;74884375B3;SALDO Fatt.n. 2018/VPA/2383  del 30/09/2018 SERVIZIO PULIZIE CIVILI - MEN PUL. PALAZZETTO MARTA RUSSO USO ISTITUZ. GIORNI DA LUNEDI' A SABATO SETTEMBRE 2018;19/11/2018;1837;0;651;1;Spese correnti;3;Acquisto di beni e servizi;2;Acquisto di servizi;13;Servizi ausiliari per il funzionamento dell'ente;2;Servizi di pulizia e lavanderia;19/11/2018
3363;2;0;197,26;1.215,44;COOP NONCELLO SOC. COOPERATIVA SOCIALE ONLUS;74884375B3;SALDO Fatt.n. 2018/VPA/2384  del 30/09/2018 SERVIZIO PULIZIE CIVILI - MEN PUL. PALAZZETTO MARTA RUSSO USO COMMERC. DOMENICA SETTEMBRE 2018;19/11/2018;1837;0;651;1;Spese correnti;3;Acquisto di beni e servizi;2;Acquisto di servizi;13;Servizi ausiliari per il funzionamento dell'ente;2;Servizi di pulizia e lavanderia;19/11/2018
3363;3;0;896,63;1.215,44;COOP NONCELLO SOC. COOPERATIVA SOCIALE ONLUS;74884375B3;ACCONTO Fatt.n. 2018/VPA/2384  del 30/09/2018 SERVIZIO PULIZIE CIVILI - MEN PUL. PALAZZETTO MARTA RUSSO USO COMMERC. DOMENICA SETTEMBRE 2018;19/11/2018;1837;0;651;1;Spese correnti;3;Acquisto di beni e servizi;2;Acquisto di servizi;13;Servizi ausiliari per il funzionamento dell'ente;2;Servizi di pulizia e lavanderia;19/11/2018
3364;1;0;1.851,03;3.702,06;COOP NONCELLO SOC. COOPERATIVA SOCIALE ONLUS;74884375B3;SALDO Fatt.n. 2018/VPA/2386  del 30/09/2018 SERVIZIO PULIZIE CIVILI - MEN PULIZIE MUNICIPIO E POLIZIA MUNICIPALE SETTEMBRE 2018;19/11/2018;1097;0;652;1;Spese correnti;3;Acquisto di beni e servizi;2;Acquisto di servizi;13;Servizi ausiliari per il funzionamento dell'ente;2;Servizi di pulizia e lavanderia;19/11/2018
3364;2;0;1.851,03;3.702,06;COOP NONCELLO SOC. COOPERATIVA SOCIALE ONLUS;74884375B3;SALDO Fatt.n. 2018/VPA/2503  del 31/10/2018 SERVIZIO PULIZIE CIVILI - MEN PULIZIE MUNICIPIO E POLIZIA MUNICIPALE OTTOBRE 2018;19/11/2018;1097;0;652;1;Spese correnti;3;Acquisto di beni e servizi;2;Acquisto di servizi;13;Servizi ausiliari per il funzionamento dell'ente;2;Servizi di pulizia e lavanderia;19/11/2018
3365;1;0;2.848,62;2.848,62;ADS RETE DI SOLIDARIETA'; ;Prot. N. 0018619 - 07-11-2018-RICEVUTA DI CONTRIBUTO ASSOCIAZIONE ADS - RETE DI SOLIDARIETA;19/11/2018;1910;0;641;1;Spese correnti;4;Trasferimenti correnti;4;Trasferimenti correnti a Istituzioni Sociali Private;1;Trasferimenti correnti a Istituzioni Sociali Private;1;Trasferimenti correnti a Istituzioni Sociali Private;19/11/2018
3366;1;0;500;500;BIANCHI S.N.C. DI BIANCHI IGINO & LUCIANO;Z7B1E3C7BA;SALDO Fatt.n. 852/PA  del 30/06/2018 ACQUISTO MATERIALE DI PULIZIA PALAZZETTO;20/11/2018;1637;0;467;1;Spese correnti;3;Acquisto di beni e servizi;1;Acquisto di beni;2;Altri beni di consumo;999;Altri beni e materiali di consumo n.a.c.;20/11/2018
3367;1;0;6.693,28;6.693,28;STIPENDI TESORIERE COMUNALE; ;STIPENDI MESE DI: NOVEMBRE 18;20/11/2018;1001;0;1;1;Spese correnti;3;Acquisto di beni e servizi;2;Acquisto di servizi;1;Organi e incarichi istituzionali dell'amministrazione;1;Organi istituzionali dell'amministrazione - Indennità;20/11/2018
3369;1;0;618,59;618,59;ONERI TESORIERE COMUNALE; ;VERS.CONTRIB. MESE: NOVEMBRE 18 A CARICO DELL`ENTE;20/11/2018;1017;0;16;1;Spese correnti;4;Trasferimenti correnti;1;Trasferimenti correnti a Amministrazioni Pubbliche;3;Trasferimenti correnti a Enti di Previdenza;1;Trasferimenti correnti a INPS;20/11/2018
3376;1;0;10;10;STIPENDI TESORIERE COMUNALE; ;STIPENDI MESE DI: NOVEMBRE 18;20/11/2018;1035;0;60;1;Spese correnti;3;Acquisto di beni e servizi;2;Acquisto di servizi;2;Organizzazione eventi, pubblicita` e servizi per trasferta;2;Indennità di missione e di trasferta;20/11/2018
3385;1;0;11,3;120,3;STIPENDI TESORIERE COMUNALE; ;STIPENDI MESE DI: NOVEMBRE 18;20/11/2018;1084;0;61;1;Spese correnti;3;Acquisto di beni e servizi;2;Acquisto di servizi;2;Organizzazione eventi, pubblicita` e servizi per trasferta;2;Indennità di missione e di trasferta;20/11/2018
3385;2;0;109;120,3;STIPENDI TESORIERE COMUNALE; ;STIPENDI MESE DI: NOVEMBRE 18;20/11/2018;1084;0;61;1;Spese correnti;3;Acquisto di beni e servizi;2;Acquisto di servizi;2;Organizzazione eventi, pubblicita` e servizi per trasferta;2;Indennità di missione e di trasferta;20/11/2018
3387;1;0;125;125;STIPENDI TESORIERE COMUNALE; ;COMMISSIONE COLLAUDO MANTOVAN FRANCO ANNO 2018;20/11/2018;1099;0;739;1;Spese correnti;3;Acquisto di beni e servizi;2;Acquisto di servizi;99;Altri servizi;5;Spese per commissioni e comitati dell'Ente;20/11/2018
3390;1;0;20;20;STIPENDI TESORIERE COMUNALE; ;STIPENDI MESE DI: NOVEMBRE 18;20/11/2018;1114;0;62;1;Spese correnti;3;Acquisto di beni e servizi;2;Acquisto di servizi;2;Organizzazione eventi, pubblicita` e servizi per trasferta;2;Indennità di missione e di trasferta;20/11/2018
3397;1;0;32,6;32,6;STIPENDI TESORIERE COMUNALE; ;STIPENDI MESE DI: NOVEMBRE 18;20/11/2018;1266;0;63;1;Spese correnti;3;Acquisto di beni e servizi;2;Acquisto di servizi;2;Organizzazione eventi, pubblicita` e servizi per trasferta;2;Indennità di missione e di trasferta;20/11/2018
